Workbook

Sheet RNAseq_Transcripts_Per_Million
A1: Ensembl | B1: Gene Symbol | C1: BM_MSC_1 | D1: BM_MSC_2 | E1: BM_MSC_3 | F1: BM_MSC_4 | G1: RC17_ESC_VTR_1 | H1: RC17_ESC_VTR_2 | I1: RC17_ESC_VTR_3 | J1: RC9_ESC_HA_1 | K1: RC9_ESC_HA_2 | L1: RC9_ESC_HA_3 | M1: RC9_ESC_HA_4 | N1: RC9_ESC_SP_1 | O1: RC9_ESC_SP_2 | P1: RC9_ESC_SP_3 | Q1: RC9_ESC_SP_4 | R1: RC9_ESC_VTR_1 | S1: RC9_ESC_VTR_2 | T1: RC9_ESC_VTR_3 | U1: RC9_MPC_1 | V1: RC9_MPC_2 | W1: RC9_MPC_3 | X1: RC9_MPC_4 | Y1: RC9_MSC_MP0_HA_1 | Z1: RC9_MSC_MP0_HA_2 | AA1: RC9_MSC_MP0_HA_3 | AB1: RC9_MSC_MP0_VTR_1 | AC1: RC9_MSC_MP0_VTR_2 | AD1: RC9_MSC_MP0_VTR_3 | AE1: RC9_MSC_MP0_VTR_4 | AF1: RC9_MSC_MP1_HA_1 | AG1: RC9_MSC_MP1_HA_2 | AH1: RC9_MSC_MP1_HA_3 | AI1: RC9_MSC_MP1_VTR_1 | AJ1: RC9_MSC_MP1_VTR_2 | AK1: RC9_MSC_MP1_VTR_3 | AM1: hBM MSC AVG | AN1: hBM SD | AO1: hMS AVG | AP1: hMS SD | AQ1: hESC AVG | AR1: hESC SD
A2: ENSG00000106992 | B2: AK1 | C2: 74 | D2: 85 | E2: 104 | F2: 98 | G2: 24 | H2: 24 | I2: 31 | J2: 26 | K2: 28 | L2: 27 | M2: 27 | N2: 29 | O2: 29 | P2: 30 | Q2: 28 | R2: 22 | S2: 28 | T2: 33 | U2: 110 | V2: 104 | W2: 111 | X2: 118 | Y2: 74 | Z2: 81 | AA2: 87 | AB2: 101 | AC2: 104 | AD2: 84 | AE2: 84 | AF2: 118 | AG2: 109 | AH2: 103 | AI2: 81 | AJ2: 107 | AK2: 99 | AM2: =AVERAGE(C2:F2) -> 90 | AN2: =STDEV(C2:F2) -> 13 | AO2: =AVERAGE(U2:X2) -> 111 | AP2: =STDEV(U2:X2) -> 6 | AQ2: =AVERAGE(N2:Q2) -> 29 | AR2: =STDEV(N2:Q2) -> 1
A3: ENSG00000142208 | B3: AKT1 | C3: 91 | D3: 123 | E3: 85 | F3: 104 | G3: 43 | H3: 41 | I3: 47 | J3: 46 | K3: 47 | L3: 42 | M3: 43 | N3: 48 | O3: 50 | P3: 48 | Q3: 44 | R3: 38 | S3: 44 | T3: 51 | U3: 131 | V3: 132 | W3: 137 | X3: 140 | Y3: 198 | Z3: 197 | AA3: 209 | AB3: 174 | AC3: 191 | AD3: 168 | AE3: 167 | AF3: 149 | AG3: 149 | AH3: 145 | AI3: 111 | AJ3: 134 | AK3: 148 | AM3: =AVERAGE(C3:F3) -> 101 | AN3: =STDEV(C3:F3) -> 17 | AO3: =AVERAGE(U3:X3) -> 135 | AP3: =STDEV(U3:X3) -> 4 | AQ3: =AVERAGE(N3:Q3) -> 48 | AR3: =STDEV(N3:Q3) -> 3
A4: ENSG00000105221 | B4: AKT2 | C4: 96 | D4: 96 | E4: 98 | F4: 100 | G4: 112 | H4: 85 | I4: 133 | J4: 133 | K4: 118 | L4: 125 | M4: 115 | N4: 126 | O4: 115 | P4: 108 | Q4: 103 | R4: 85 | S4: 92 | T4: 105 | U4: 108 | V4: 113 | W4: 105 | X4: 106 | Y4: 91 | Z4: 95 | AA4: 108 | AB4: 113 | AC4: 93 | AD4: 90 | AE4: 89 | AF4: 93 | AG4: 90 | AH4: 91 | AI4: 71 | AJ4: 75 | AK4: 77 | AM4: =AVERAGE(C4:F4) -> 97 | AN4: =STDEV(C4:F4) -> 2 | AO4: =AVERAGE(U4:X4) -> 108 | AP4: =STDEV(U4:X4) -> 3 | AQ4: =AVERAGE(N4:Q4) -> 113 | AR4: =STDEV(N4:Q4) -> 10
A5: ENSG00000117020 | B5: AKT3 | C5: 25 | D5: 23 | E5: 22 | F5: 21 | G5: 11 | H5: 8 | I5: 10 | J5: 10 | K5: 11 | L5: 10 | M5: 10 | N5: 11 | O5: 11 | P5: 10 | Q5: 11 | R5: 8 | S5: 9 | T5: 14 | U5: 21 | V5: 21 | W5: 21 | X5: 20 | Y5: 15 | Z5: 17 | AA5: 15 | AB5: 14 | AC5: 15 | AD5: 16 | AE5: 17 | AF5: 13 | AG5: 13 | AH5: 15 | AI5: 17 | AJ5: 14 | AK5: 17 | AM5: =AVERAGE(C5:F5) -> 23 | AN5: =STDEV(C5:F5) -> 1 | AO5: =AVERAGE(U5:X5) -> 21 | AP5: =STDEV(U5:X5) -> 0 | AQ5: =AVERAGE(N5:Q5) -> 11 | AR5: =STDEV(N5:Q5) -> 0
A6: ENSG00000100030 | B6: MAPK1 | C6: 86 | D6: 96 | E6: 73 | F6: 74 | G6: 38 | H6: 20 | I6: 48 | J6: 62 | K6: 56 | L6: 61 | M6: 54 | N6: 44 | O6: 47 | P6: 45 | Q6: 42 | R6: 52 | S6: 52 | T6: 59 | U6: 80 | V6: 90 | W6: 85 | X6: 76 | Y6: 109 | Z6: 103 | AA6: 102 | AB6: 93 | AC6: 98 | AD6: 95 | AE6: 101 | AF6: 88 | AG6: 88 | AH6: 91 | AI6: 98 | AJ6: 81 | AK6: 98 | AM6: =AVERAGE(C6:F6) -> 82 | AN6: =STDEV(C6:F6) -> 11 | AO6: =AVERAGE(U6:X6) -> 83 | AP6: =STDEV(U6:X6) -> 6 | AQ6: =AVERAGE(N6:Q6) -> 44 | AR6: =STDEV(N6:Q6) -> 2
A7: ENSG00000102882 | B7: MAPK3 | C7: 100 | D7: 108 | E7: 123 | F7: 104 | G7: 58 | H7: 47 | I7: 55 | J7: 58 | K7: 52 | L7: 47 | M7: 45 | N7: 58 | O7: 56 | P7: 57 | Q7: 62 | R7: 34 | S7: 40 | T7: 40 | U7: 63 | V7: 53 | W7: 60 | X7: 65 | Y7: 32 | Z7: 33 | AA7: 33 | AB7: 41 | AC7: 54 | AD7: 48 | AE7: 45 | AF7: 40 | AG7: 41 | AH7: 41 | AI7: 32 | AJ7: 42 | AK7: 42 | AM7: =AVERAGE(C7:F7) -> 109 | AN7: =STDEV(C7:F7) -> 10 | AO7: =AVERAGE(U7:X7) -> 60 | AP7: =STDEV(U7:X7) -> 5 | AQ7: =AVERAGE(N7:Q7) -> 58 | AR7: =STDEV(N7:Q7) -> 2
A8: ENSG00000067182 | B8: TNFRSF1A | C8: 211 | D8: 179 | E8: 173 | F8: 179 | G8: 19 | H8: 20 | I8: 25 | J8: 38 | K8: 54 | L8: 50 | M8: 38 | N8: 33 | O8: 26 | P8: 36 | Q8: 35 | R8: 57 | S8: 58 | T8: 50 | U8: 188 | V8: 168 | W8: 199 | X8: 169 | Y8: 102 | Z8: 115 | AA8: 109 | AB8: 100 | AC8: 119 | AD8: 110 | AE8: 104 | AF8: 176 | AG8: 181 | AH8: 173 | AI8: 151 | AJ8: 168 | AK8: 140 | AM8: =AVERAGE(C8:F8) -> 185 | AN8: =STDEV(C8:F8) -> 17 | AO8: =AVERAGE(U8:X8) -> 181 | AP8: =STDEV(U8:X8) -> 15 | AQ8: =AVERAGE(N8:Q8) -> 33 | AR8: =STDEV(N8:Q8) -> 5
A9: ENSG00000161955 | B9: TNFSF13 | C9: 1 | D9: 1 | E9: 1 | F9: 0 | G9: 2 | H9: 2 | I9: 2 | J9: 1 | K9: 2 | L9: 1 | M9: 2 | N9: 1 | O9: 2 | P9: 2 | Q9: 2 | R9: 1 | S9: 2 | T9: 1 | U9: 0 | V9: 1 | W9: 0 | X9: 0 | Y9: 0 | Z9: 1 | AA9: 1 | AB9: 1 | AC9: 1 | AD9: 1 | AE9: 1 | AF9: 0 | AG9: 0 | AH9: 1 | AI9: 2 | AJ9: 1 | AK9: 0 | AM9: =AVERAGE(C9:F9) -> 1 | AN9: =STDEV(C9:F9) -> 0 | AO9: =AVERAGE(U9:X9) -> 0 | AP9: =STDEV(U9:X9) -> 0 | AQ9: =AVERAGE(N9:Q9) -> 2 | AR9: =STDEV(N9:Q9) -> 1
A10: ENSG00000102524 | B10: TNFSF13B | C10: 1 | D10: 1 | E10: 1 | F10: 1 | G10: 0 | H10: 0 | I10: 0 | J10: 0 | K10: 0 | L10: 0 | M10: 0 | N10: 0 | O10: 0 | P10: 0 | Q10: 0 | R10: 0 | S10: 0 | T10: 0 | U10: 1 | V10: 1 | W10: 1 | X10: 1 | Y10: 0 | Z10: 0 | AA10: 0 | AB10: 0 | AC10: 0 | AD10: 0 | AE10: 0 | AF10: 2 | AG10: 1 | AH10: 2 | AI10: 1 | AJ10: 1 | AK10: 1 | AM10: =AVERAGE(C10:F10) -> 1 | AN10: =STDEV(C10:F10) -> 0 | AO10: =AVERAGE(U10:X10) -> 1 | AP10: =STDEV(U10:X10) -> 0 | AQ10: =AVERAGE(N10:Q10) -> 0 | AR10: =STDEV(N10:Q10) -> 0
A11: ENSG00000169245 | B11: CXCL10 | C11: 0 | D11: 0 | E11: 0 | F11: 0 | G11: 0 | H11: 0 | I11: 0 | J11: 0 | K11: 0 | L11: 0 | M11: 0 | N11: 0 | O11: 0 | P11: 0 | Q11: 0 | R11: 0 | S11: 0 | T11: 0 | U11: 0 | V11: 0 | W11: 0 | X11: 0 | Y11: 0 | Z11: 0 | AA11: 0 | AB11: 0 | AC11: 0 | AD11: 0 | AE11: 0 | AF11: 0 | AG11: 0 | AH11: 0 | AI11: 0 | AJ11: 0 | AK11: 0 | AM11: =AVERAGE(C11:F11) -> 0 | AN11: =STDEV(C11:F11) -> 0 | AO11: =AVERAGE(U11:X11) -> 0 | AP11: =STDEV(U11:X11) -> 0 | AQ11: =AVERAGE(N11:Q11) -> 0 | AR11: =STDEV(N11:Q11) -> 0
A12: ENSG00000169248 | B12: CXCL11 | C12: 0 | D12: 0 | E12: 0 | F12: 0 | G12: 0 | H12: 0 | I12: 0 | J12: 0 | K12: 0 | L12: 0 | M12: 0 | N12: 0 | O12: 0 | P12: 0 | Q12: 0 | R12: 0 | S12: 0 | T12: 0 | U12: 0 | V12: 0 | W12: 0 | X12: 0 | Y12: 0 | Z12: 0 | AA12: 0 | AB12: 0 | AC12: 0 | AD12: 0 | AE12: 0 | AF12: 0 | AG12: 0 | AH12: 0 | AI12: 0 | AJ12: 0 | AK12: 0 | AM12: =AVERAGE(C12:F12) -> 0 | AN12: =STDEV(C12:F12) -> 0 | AO12: =AVERAGE(U12:X12) -> 0 | AP12: =STDEV(U12:X12) -> 0 | AQ12: =AVERAGE(N12:Q12) -> 0 | AR12: =STDEV(N12:Q12) -> 0
A13: ENSG00000138755 | B13: CXCL9 | C13: 0 | D13: 0 | E13: 0 | F13: 0 | G13: 0 | H13: 0 | I13: 0 | J13: 0 | K13: 0 | L13: 0 | M13: 0 | N13: 0 | O13: 0 | P13: 0 | Q13: 0 | R13: 0 | S13: 0 | T13: 0 | U13: 0 | V13: 0 | W13: 0 | X13: 0 | Y13: 0 | Z13: 0 | AA13: 0 | AB13: 0 | AC13: 0 | AD13: 0 | AE13: 0 | AF13: 0 | AG13: 0 | AH13: 0 | AI13: 0 | AJ13: 0 | AK13: 0 | AM13: =AVERAGE(C13:F13) -> 0 | AN13: =STDEV(C13:F13) -> 0 | AO13: =AVERAGE(U13:X13) -> 0 | AP13: =STDEV(U13:X13) -> 0 | AQ13: =AVERAGE(N13:Q13) -> 0 | AR13: =STDEV(N13:Q13) -> 0
A14: ENSG00000116815 | B14: CD58 | C14: 15 | D14: 13 | E14: 13 | F14: 13 | G14: 6 | H14: 5 | I14: 5 | J14: 6 | K14: 6 | L14: 6 | M14: 5 | N14: 4 | O14: 5 | P14: 5 | Q14: 5 | R14: 8 | S14: 7 | T14: 7 | U14: 11 | V14: 11 | W14: 11 | X14: 11 | Y14: 18 | Z14: 17 | AA14: 16 | AB14: 17 | AC14: 16 | AD14: 19 | AE14: 19 | AF14: 25 | AG14: 24 | AH14: 25 | AI14: 21 | AJ14: 19 | AK14: 23 | AM14: =AVERAGE(C14:F14) -> 14 | AN14: =STDEV(C14:F14) -> 1 | AO14: =AVERAGE(U14:X14) -> 11 | AP14: =STDEV(U14:X14) -> 0 | AQ14: =AVERAGE(N14:Q14) -> 5 | AR14: =STDEV(N14:Q14) -> 0
A15: ENSG00000137101 | B15: CD72 | C15: 1 | D15: 1 | E15: 1 | F15: 1 | G15: 6 | H15: 6 | I15: 5 | J15: 8 | K15: 7 | L15: 7 | M15: 8 | N15: 5 | O15: 3 | P15: 4 | Q15: 4 | R15: 4 | S15: 4 | T15: 7 | U15: 1 | V15: 1 | W15: 1 | X15: 1 | Y15: 1 | Z15: 1 | AA15: 1 | AB15: 2 | AC15: 1 | AD15: 2 | AE15: 1 | AF15: 3 | AG15: 1 | AH15: 2 | AI15: 1 | AJ15: 2 | AK15: 1 | AM15: =AVERAGE(C15:F15) -> 1 | AN15: =STDEV(C15:F15) -> 0 | AO15: =AVERAGE(U15:X15) -> 1 | AP15: =STDEV(U15:X15) -> 0 | AQ15: =AVERAGE(N15:Q15) -> 4 | AR15: =STDEV(N15:Q15) -> 1
A16: ENSG00000090339 | B16: ICAM1 | C16: 5 | D16: 6 | E16: 9 | F16: 7 | G16: 9 | H16: 9 | I16: 9 | J16: 6 | K16: 4 | L16: 4 | M16: 3 | N16: 2 | O16: 2 | P16: 2 | Q16: 1 | R16: 3 | S16: 3 | T16: 5 | U16: 18 | V16: 16 | W16: 19 | X16: 18 | Y16: 36 | Z16: 39 | AA16: 39 | AB16: 31 | AC16: 31 | AD16: 29 | AE16: 27 | AF16: 109 | AG16: 101 | AH16: 105 | AI16: 51 | AJ16: 63 | AK16: 57 | AM16: =AVERAGE(C16:F16) -> 7 | AN16: =STDEV(C16:F16) -> 2 | AO16: =AVERAGE(U16:X16) -> 18 | AP16: =STDEV(U16:X16) -> 1 | AQ16: =AVERAGE(N16:Q16) -> 2 | AR16: =STDEV(N16:Q16) -> 0
A17: ENSG00000108622 | B17: ICAM2 | C17: 2 | D17: 2 | E17: 1 | F17: 3 | G17: 0 | H17: 0 | I17: 0 | J17: 0 | K17: 0 | L17: 0 | M17: 0 | N17: 0 | O17: 0 | P17: 0 | Q17: 0 | R17: 0 | S17: 0 | T17: 0 | U17: 0 | V17: 0 | W17: 0 | X17: 0 | Y17: 0 | Z17: 1 | AA17: 0 | AB17: 0 | AC17: 0 | AD17: 0 | AE17: 0 | AF17: 1 | AG17: 0 | AH17: 1 | AI17: 0 | AJ17: 0 | AK17: 0 | AM17: =AVERAGE(C17:F17) -> 2 | AN17: =STDEV(C17:F17) -> 1 | AO17: =AVERAGE(U17:X17) -> 0 | AP17: =STDEV(U17:X17) -> 0 | AQ17: =AVERAGE(N17:Q17) -> 0 | AR17: =STDEV(N17:Q17) -> 0
A18: ENSG00000213949 | B18: ITGA1 | C18: 10 | D18: 7 | E18: 3 | F18: 10 | G18: 2 | H18: 1 | I18: 1 | J18: 4 | K18: 6 | L18: 4 | M18: 6 | N18: 3 | O18: 3 | P18: 4 | Q18: 3 | R18: 4 | S18: 3 | T18: 4 | U18: 40 | V18: 41 | W18: 43 | X18: 37 | Y18: 29 | Z18: 27 | AA18: 26 | AB18: 70 | AC18: 57 | AD18: 71 | AE18: 78 | AF18: 194 | AG18: 189 | AH18: 197 | AI18: 164 | AJ18: 124 | AK18: 115 | AM18: =AVERAGE(C18:F18) -> 7 | AN18: =STDEV(C18:F18) -> 4 | AO18: =AVERAGE(U18:X18) -> 40 | AP18: =STDEV(U18:X18) -> 2 | AQ18: =AVERAGE(N18:Q18) -> 3 | AR18: =STDEV(N18:Q18) -> 1
A19: ENSG00000005884 | B19: ITGA3 | C19: 125 | D19: 195 | E19: 94 | F19: 161 | G19: 18 | H19: 14 | I19: 17 | J19: 13 | K19: 20 | L19: 18 | M19: 15 | N19: 26 | O19: 21 | P19: 22 | Q19: 22 | R19: 17 | S19: 14 | T19: 17 | U19: 79 | V19: 77 | W19: 75 | X19: 72 | Y19: 126 | Z19: 138 | AA19: 139 | AB19: 151 | AC19: 170 | AD19: 155 | AE19: 153 | AF19: 360 | AG19: 372 | AH19: 358 | AI19: 336 | AJ19: 325 | AK19: 295 | AM19: =AVERAGE(C19:F19) -> 144 | AN19: =STDEV(C19:F19) -> 44 | AO19: =AVERAGE(U19:X19) -> 76 | AP19: =STDEV(U19:X19) -> 3 | AQ19: =AVERAGE(N19:Q19) -> 23 | AR19: =STDEV(N19:Q19) -> 2
A20: ENSG00000161638 | B20: ITGA5 | C20: 415 | D20: 472 | E20: 296 | F20: 331 | G20: 20 | H20: 21 | I20: 24 | J20: 35 | K20: 30 | L20: 30 | M20: 31 | N20: 13 | O20: 15 | P20: 11 | Q20: 12 | R20: 12 | S20: 12 | T20: 29 | U20: 304 | V20: 306 | W20: 310 | X20: 310 | Y20: 380 | Z20: 387 | AA20: 381 | AB20: 426 | AC20: 464 | AD20: 432 | AE20: 456 | AF20: 413 | AG20: 397 | AH20: 394 | AI20: 399 | AJ20: 407 | AK20: 440 | AM20: =AVERAGE(C20:F20) -> 378 | AN20: =STDEV(C20:F20) -> 80 | AO20: =AVERAGE(U20:X20) -> 307 | AP20: =STDEV(U20:X20) -> 3 | AQ20: =AVERAGE(N20:Q20) -> 13 | AR20: =STDEV(N20:Q20) -> 2
A21: ENSG00000091409 | B21: ITGA6 | C21: 5 | D21: 15 | E21: 7 | F21: 15 | G21: 51 | H21: 35 | I21: 54 | J21: 79 | K21: 76 | L21: 75 | M21: 74 | N21: 52 | O21: 55 | P21: 54 | Q21: 56 | R21: 69 | S21: 63 | T21: 73 | U21: 53 | V21: 56 | W21: 51 | X21: 53 | Y21: 29 | Z21: 24 | AA21: 28 | AB21: 13 | AC21: 12 | AD21: 14 | AE21: 15 | AF21: 13 | AG21: 12 | AH21: 13 | AI21: 21 | AJ21: 16 | AK21: 20 | AM21: =AVERAGE(C21:F21) -> 10 | AN21: =STDEV(C21:F21) -> 5 | AO21: =AVERAGE(U21:X21) -> 53 | AP21: =STDEV(U21:X21) -> 2 | AQ21: =AVERAGE(N21:Q21) -> 54 | AR21: =STDEV(N21:Q21) -> 2
A22: ENSG00000138448 | B22: ITGAV | C22: 54 | D22: 50 | E22: 35 | F22: 37 | G22: 15 | H22: 12 | I22: 15 | J22: 21 | K22: 27 | L22: 25 | M22: 24 | N22: 18 | O22: 18 | P22: 17 | Q22: 17 | R22: 26 | S22: 27 | T22: 31 | U22: 92 | V22: 88 | W22: 87 | X22: 84 | Y22: 254 | Z22: 237 | AA22: 243 | AB22: 328 | AC22: 303 | AD22: 338 | AE22: 352 | AF22: 460 | AG22: 480 | AH22: 467 | AI22: 560 | AJ22: 437 | AK22: 509 | AM22: =AVERAGE(C22:F22) -> 44 | AN22: =STDEV(C22:F22) -> 9 | AO22: =AVERAGE(U22:X22) -> 88 | AP22: =STDEV(U22:X22) -> 3 | AQ22: =AVERAGE(N22:Q22) -> 18 | AR22: =STDEV(N22:Q22) -> 1 | AT22: m
A23: ENSG00000150093 | B23: ITGB1 | C23: 1430 | D23: 1317 | E23: 956 | F23: 1133 | G23: 157 | H23: 126 | I23: 149 | J23: 207 | K23: 244 | L23: 241 | M23: 248 | N23: 226 | O23: 239 | P23: 234 | Q23: 229 | R23: 266 | S23: 277 | T23: 267 | U23: 1653 | V23: 1700 | W23: 1637 | X23: 1578 | Y23: 1528 | Z23: 1451 | AA23: 1431 | AB23: 1416 | AC23: 1379 | AD23: 1502 | AE23: 1572 | AF23: 2388 | AG23: 2314 | AH23: 2436 | AI23: 2570 | AJ23: 2187 | AK23: 2414 | AM23: =AVERAGE(C23:F23) -> 1209 | AN23: =STDEV(C23:F23) -> 208 | AO23: =AVERAGE(U23:X23) -> 1642 | AP23: =STDEV(U23:X23) -> 50 | AQ23: =AVERAGE(N23:Q23) -> 232 | AR23: =STDEV(N23:Q23) -> 6
A24: ENSG00000259207 | B24: ITGB3 | C24: 13 | D24: 14 | E24: 14 | F24: 16 | G24: 0 | H24: 0 | I24: 0 | J24: 0 | K24: 0 | L24: 0 | M24: 0 | N24: 0 | O24: 0 | P24: 0 | Q24: 0 | R24: 0 | S24: 0 | T24: 0 | U24: 3 | V24: 2 | W24: 3 | X24: 3 | Y24: 3 | Z24: 3 | AA24: 2 | AB24: 3 | AC24: 3 | AD24: 4 | AE24: 4 | AF24: 8 | AG24: 8 | AH24: 8 | AI24: 6 | AJ24: 6 | AK24: 6 | AM24: =AVERAGE(C24:F24) -> 14 | AN24: =STDEV(C24:F24) -> 1 | AO24: =AVERAGE(U24:X24) -> 3 | AP24: =STDEV(U24:X24) -> 0 | AQ24: =AVERAGE(N24:Q24) -> 0 | AR24: =STDEV(N24:Q24) -> 0
A25: ENSG00000132470 | B25: ITGB4 | C25: 0 | D25: 0 | E25: 1 | F25: 1 | G25: 3 | H25: 3 | I25: 5 | J25: 5 | K25: 6 | L25: 5 | M25: 8 | N25: 3 | O25: 3 | P25: 3 | Q25: 4 | R25: 2 | S25: 1 | T25: 4 | U25: 1 | V25: 1 | W25: 2 | X25: 1 | Y25: 1 | Z25: 1 | AA25: 1 | AB25: 1 | AC25: 1 | AD25: 0 | AE25: 1 | AF25: 1 | AG25: 1 | AH25: 1 | AI25: 0 | AJ25: 1 | AK25: 0 | AM25: =AVERAGE(C25:F25) -> 1 | AN25: =STDEV(C25:F25) -> 0 | AO25: =AVERAGE(U25:X25) -> 1 | AP25: =STDEV(U25:X25) -> 0 | AQ25: =AVERAGE(N25:Q25) -> 3 | AR25: =STDEV(N25:Q25) -> 1
A26: ENSG00000162692 | B26: VCAM1 | C26: 6 | D26: 3 | E26: 6 | F26: 4 | G26: 0 | H26: 0 | I26: 0 | J26: 0 | K26: 0 | L26: 0 | M26: 0 | N26: 0 | O26: 0 | P26: 0 | Q26: 0 | R26: 0 | S26: 0 | T26: 0 | U26: 45 | V26: 43 | W26: 43 | X26: 42 | Y26: 0 | Z26: 0 | AA26: 0 | AB26: 0 | AC26: 0 | AD26: 0 | AE26: 0 | AF26: 0 | AG26: 0 | AH26: 0 | AI26: 0 | AJ26: 0 | AK26: 0 | AM26: =AVERAGE(C26:F26) -> 5 | AN26: =STDEV(C26:F26) -> 2 | AO26: =AVERAGE(U26:X26) -> 43 | AP26: =STDEV(U26:X26) -> 1 | AQ26: =AVERAGE(N26:Q26) -> 0 | AR26: =STDEV(N26:Q26) -> 0
A27: ENSG00000164171 | B27: ITGA2 | C27: 15 | D27: 17 | E27: 15 | F27: 13 | G27: 4 | H27: 3 | I27: 3 | J27: 4 | K27: 4 | L27: 4 | M27: 4 | N27: 3 | O27: 3 | P27: 3 | Q27: 2 | R27: 3 | S27: 3 | T27: 5 | U27: 22 | V27: 22 | W27: 21 | X27: 21 | Y27: 18 | Z27: 17 | AA27: 17 | AB27: 7 | AC27: 6 | AD27: 7 | AE27: 8 | AF27: 26 | AG27: 25 | AH27: 27 | AI27: 26 | AJ27: 21 | AK27: 24 | AM27: =AVERAGE(C27:F27) -> 15 | AN27: =STDEV(C27:F27) -> 2 | AO27: =AVERAGE(U27:X27) -> 21 | AP27: =STDEV(U27:X27) -> 1 | AQ27: =AVERAGE(N27:Q27) -> 2 | AR27: =STDEV(N27:Q27) -> 0
A28: ENSG00000115232 | B28: ITGA4 | C28: 24 | D28: 19 | E28: 9 | F28: 18 | G28: 1 | H28: 0 | I28: 1 | J28: 1 | K28: 1 | L28: 1 | M28: 1 | N28: 0 | O28: 1 | P28: 1 | Q28: 1 | R28: 1 | S28: 1 | T28: 1 | U28: 17 | V28: 17 | W28: 17 | X28: 16 | Y28: 29 | Z28: 24 | AA28: 25 | AB28: 21 | AC28: 22 | AD28: 21 | AE28: 27 | AF28: 16 | AG28: 19 | AH28: 17 | AI28: 17 | AJ28: 18 | AK28: 18 | AM28: =AVERAGE(C28:F28) -> 18 | AN28: =STDEV(C28:F28) -> 6 | AO28: =AVERAGE(U28:X28) -> 17 | AP28: =STDEV(U28:X28) -> 0 | AQ28: =AVERAGE(N28:Q28) -> 1 | AR28: =STDEV(N28:Q28) -> 0
A29: ENSG00000120217 | B29: CD274 | C29: 5 | D29: 9 | E29: 1 | F29: 5 | G29: 0 | H29: 0 | I29: 0 | J29: 0 | K29: 0 | L29: 0 | M29: 0 | N29: 0 | O29: 0 | P29: 0 | Q29: 0 | R29: 0 | S29: 0 | T29: 0 | U29: 6 | V29: 5 | W29: 7 | X29: 7 | Y29: 3 | Z29: 2 | AA29: 2 | AB29: 2 | AC29: 2 | AD29: 1 | AE29: 2 | AF29: 3 | AG29: 5 | AH29: 5 | AI29: 5 | AJ29: 4 | AK29: 3 | AM29: =AVERAGE(C29:F29) -> 5 | AN29: =STDEV(C29:F29) -> 3 | AO29: =AVERAGE(U29:X29) -> 6 | AP29: =STDEV(U29:X29) -> 1 | AQ29: =AVERAGE(N29:Q29) -> 0 | AR29: =STDEV(N29:Q29) -> 0
A30: ENSG00000197646 | B30: PDCD1LG2 | C30: 10 | D30: 18 | E30: 7 | F30: 11 | G30: 0 | H30: 0 | I30: 0 | J30: 0 | K30: 0 | L30: 0 | M30: 0 | N30: 0 | O30: 0 | P30: 0 | Q30: 0 | R30: 0 | S30: 0 | T30: 0 | U30: 13 | V30: 13 | W30: 14 | X30: 13 | Y30: 13 | Z30: 13 | AA30: 11 | AB30: 8 | AC30: 8 | AD30: 8 | AE30: 9 | AF30: 13 | AG30: 13 | AH30: 13 | AI30: 24 | AJ30: 20 | AK30: 21 | AM30: =AVERAGE(C30:F30) -> 11 | AN30: =STDEV(C30:F30) -> 5 | AO30: =AVERAGE(U30:X30) -> 13 | AP30: =STDEV(U30:X30) -> 0 | AQ30: =AVERAGE(N30:Q30) -> 0 | AR30: =STDEV(N30:Q30) -> 0
A31: ENSG00000019991 | B31: HGF | C31: 27 | D31: 18 | E31: 26 | F31: 18 | G31: 0 | H31: 0 | I31: 0 | J31: 0 | K31: 0 | L31: 0 | M31: 0 | N31: 0 | O31: 0 | P31: 0 | Q31: 0 | R31: 0 | S31: 0 | T31: 0 | U31: 1 | V31: 1 | W31: 1 | X31: 1 | Y31: 0 | Z31: 0 | AA31: 0 | AB31: 0 | AC31: 0 | AD31: 0 | AE31: 0 | AF31: 0 | AG31: 0 | AH31: 0 | AI31: 0 | AJ31: 0 | AK31: 0 | AM31: =AVERAGE(C31:F31) -> 22 | AN31: =STDEV(C31:F31) -> 5 | AO31: =AVERAGE(U31:X31) -> 1 | AP31: =STDEV(U31:X31) -> 0 | AQ31: =AVERAGE(N31:Q31) -> 0 | AR31: =STDEV(N31:Q31) -> 0
A32: ENSG00000131203 | B32: IDO1 | C32: 0 | D32: 0 | E32: 0 | F32: 0 | G32: 76 | H32: 72 | I32: 77 | J32: 57 | K32: 80 | L32: 82 | M32: 76 | N32: 94 | O32: 85 | P32: 84 | Q32: 92 | R32: 60 | S32: 57 | T32: 142 | U32: 2 | V32: 1 | W32: 2 | X32: 1 | Y32: 0 | Z32: 0 | AA32: 0 | AB32: 0 | AC32: 0 | AD32: 0 | AE32: 0 | AF32: 0 | AG32: 0 | AH32: 0 | AI32: 0 | AJ32: 0 | AK32: 0 | AM32: =AVERAGE(C32:F32) -> 0 | AN32: =STDEV(C32:F32) -> 0 | AO32: =AVERAGE(U32:X32) -> 2 | AP32: =STDEV(U32:X32) -> 0 | AQ32: =AVERAGE(N32:Q32) -> 89 | AR32: =STDEV(N32:Q32) -> 5
A33: ENSG00000188676 | B33: IDO2 | C33: 0 | D33: 0 | E33: 0 | F33: 0 | G33: 0 | H33: 0 | I33: 0 | J33: 0 | K33: 0 | L33: 0 | M33: 0 | N33: 0 | O33: 0 | P33: 0 | Q33: 0 | R33: 0 | S33: 0 | T33: 0 | U33: 0 | V33: 0 | W33: 0 | X33: 0 | Y33: 0 | Z33: 0 | AA33: 0 | AB33: 0 | AC33: 0 | AD33: 0 | AE33: 0 | AF33: 0 | AG33: 0 | AH33: 0 | AI33: 0 | AJ33: 0 | AK33: 0 | AM33: =AVERAGE(C33:F33) -> 0 | AN33: =STDEV(C33:F33) -> 0 | AO33: =AVERAGE(U33:X33) -> 0 | AP33: =STDEV(U33:X33) -> 0 | AQ33: =AVERAGE(N33:Q33) -> 0 | AR33: =STDEV(N33:Q33) -> 0
A34: ENSG00000136244 | B34: IL6 | C34: 2 | D34: 1 | E34: 2 | F34: 3 | G34: 0 | H34: 1 | I34: 0 | J34: 0 | K34: 1 | L34: 1 | M34: 1 | N34: 2 | O34: 3 | P34: 2 | Q34: 1 | R34: 1 | S34: 1 | T34: 1 | U34: 1 | V34: 1 | W34: 1 | X34: 1 | Y34: 7 | Z34: 6 | AA34: 7 | AB34: 3 | AC34: 4 | AD34: 4 | AE34: 4 | AF34: 5 | AG34: 6 | AH34: 6 | AI34: 6 | AJ34: 4 | AK34: 6 | AM34: =AVERAGE(C34:F34) -> 2 | AN34: =STDEV(C34:F34) -> 1 | AO34: =AVERAGE(U34:X34) -> 1 | AP34: =STDEV(U34:X34) -> 0 | AQ34: =AVERAGE(N34:Q34) -> 2 | AR34: =STDEV(N34:Q34) -> 1
A35: ENSG00000100097 | B35: LGALS1 | C35: 4606 | D35: 5169 | E35: 6228 | F35: 5968 | G35: 38 | H35: 40 | I35: 38 | J35: 44 | K35: 35 | L35: 41 | M35: 34 | N35: 108 | O35: 107 | P35: 97 | Q35: 97 | R35: 22 | S35: 22 | T35: 26 | U35: 4814 | V35: 4708 | W35: 4983 | X35: 5146 | Y35: 1127 | Z35: 1175 | AA35: 1258 | AB35: 1103 | AC35: 1238 | AD35: 1058 | AE35: 966 | AF35: 1837 | AG35: 1957 | AH35: 1689 | AI35: 1182 | AJ35: 1444 | AK35: 1242 | AM35: =AVERAGE(C35:F35) -> 5493 | AN35: =STDEV(C35:F35) -> 743 | AO35: =AVERAGE(U35:X35) -> 4913 | AP35: =STDEV(U35:X35) -> 192 | AQ35: =AVERAGE(N35:Q35) -> 102 | AR35: =STDEV(N35:Q35) -> 6
A36: ENSG00000168961 | B36: LGALS9 | C36: 1 | D36: 1 | E36: 1 | F36: 1 | G36: 4 | H36: 4 | I36: 4 | J36: 3 | K36: 3 | L36: 3 | M36: 3 | N36: 1 | O36: 2 | P36: 2 | Q36: 2 | R36: 1 | S36: 1 | T36: 6 | U36: 8 | V36: 6 | W36: 7 | X36: 6 | Y36: 10 | Z36: 9 | AA36: 13 | AB36: 11 | AC36: 10 | AD36: 13 | AE36: 10 | AF36: 6 | AG36: 3 | AH36: 4 | AI36: 4 | AJ36: 3 | AK36: 4 | AM36: =AVERAGE(C36:F36) -> 1 | AN36: =STDEV(C36:F36) -> 0 | AO36: =AVERAGE(U36:X36) -> 7 | AP36: =STDEV(U36:X36) -> 1 | AQ36: =AVERAGE(N36:Q36) -> 2 | AR36: =STDEV(N36:Q36) -> 0
A37: ENSG00000075213 | B37: SEMA3A | C37: 2 | D37: 4 | E37: 5 | F37: 4 | G37: 7 | H37: 5 | I37: 9 | J37: 12 | K37: 16 | L37: 15 | M37: 15 | N37: 18 | O37: 20 | P37: 18 | Q37: 18 | R37: 32 | S37: 36 | T37: 26 | U37: 59 | V37: 64 | W37: 62 | X37: 56 | Y37: 7 | Z37: 6 | AA37: 7 | AB37: 6 | AC37: 6 | AD37: 6 | AE37: 7 | AF37: 8 | AG37: 8 | AH37: 8 | AI37: 9 | AJ37: 6 | AK37: 6 | AM37: =AVERAGE(C37:F37) -> 4 | AN37: =STDEV(C37:F37) -> 1 | AO37: =AVERAGE(U37:X37) -> 60 | AP37: =STDEV(U37:X37) -> 4 | AQ37: =AVERAGE(N37:Q37) -> 18 | AR37: =STDEV(N37:Q37) -> 1
A38: ENSG00000105329 | B38: TGFB1 | C38: 53 | D38: 59 | E38: 66 | F38: 53 | G38: 9 | H38: 7 | I38: 7 | J38: 5 | K38: 7 | L38: 10 | M38: 8 | N38: 16 | O38: 15 | P38: 14 | Q38: 14 | R38: 9 | S38: 8 | T38: 12 | U38: 62 | V38: 59 | W38: 59 | X38: 63 | Y38: 94 | Z38: 96 | AA38: 101 | AB38: 122 | AC38: 126 | AD38: 107 | AE38: 110 | AF38: 145 | AG38: 143 | AH38: 138 | AI38: 105 | AJ38: 113 | AK38: 111 | AM38: =AVERAGE(C38:F38) -> 58 | AN38: =STDEV(C38:F38) -> 6 | AO38: =AVERAGE(U38:X38) -> 61 | AP38: =STDEV(U38:X38) -> 2 | AQ38: =AVERAGE(N38:Q38) -> 15 | AR38: =STDEV(N38:Q38) -> 1
A39: ENSG00000069764 | B39: PLA2G10 | C39: 0 | D39: 0 | E39: 0 | F39: 0 | G39: 1 | H39: 1 | I39: 1 | J39: 1 | K39: 1 | L39: 1 | M39: 1 | N39: 1 | O39: 1 | P39: 1 | Q39: 1 | R39: 0 | S39: 1 | T39: 1 | U39: 0 | V39: 0 | W39: 0 | X39: 0 | Y39: 0 | Z39: 0 | AA39: 0 | AB39: 0 | AC39: 0 | AD39: 0 | AE39: 0 | AF39: 0 | AG39: 0 | AH39: 0 | AI39: 0 | AJ39: 0 | AK39: 0 | AM39: =AVERAGE(C39:F39) -> 0 | AN39: =STDEV(C39:F39) -> 0 | AO39: =AVERAGE(U39:X39) -> 0 | AP39: =STDEV(U39:X39) -> 0 | AQ39: =AVERAGE(N39:Q39) -> 1 | AR39: =STDEV(N39:Q39) -> 0
A40: ENSG00000123739 | B40: PLA2G12A | C40: 22 | D40: 26 | E40: 22 | F40: 31 | G40: 38 | H40: 34 | I40: 26 | J40: 47 | K40: 42 | L40: 46 | M40: 45 | N40: 34 | O40: 35 | P40: 36 | Q40: 39 | R40: 45 | S40: 41 | T40: 43 | U40: 27 | V40: 28 | W40: 29 | X40: 25 | Y40: 11 | Z40: 5 | AA40: 10 | AB40: 16 | AC40: 14 | AD40: 13 | AE40: 13 | AF40: 15 | AG40: 18 | AH40: 33 | AI40: 16 | AJ40: 16 | AK40: 20 | AM40: =AVERAGE(C40:F40) -> 25 | AN40: =STDEV(C40:F40) -> 4 | AO40: =AVERAGE(U40:X40) -> 27 | AP40: =STDEV(U40:X40) -> 2 | AQ40: =AVERAGE(N40:Q40) -> 36 | AR40: =STDEV(N40:Q40) -> 2
A41: ENSG00000224680 | B41: PLA2G12AP1 | C41: 1 | D41: 0 | E41: 0 | F41: 0 | G41: 1 | H41: 0 | I41: 0 | J41: 0 | K41: 0 | L41: 0 | M41: 0 | N41: 0 | O41: 0 | P41: 0 | Q41: 0 | R41: 0 | S41: 0 | T41: 0 | U41: 1 | V41: 0 | W41: 0 | X41: 0 | Y41: 0 | Z41: 1 | AA41: 0 | AB41: 0 | AC41: 1 | AD41: 1 | AE41: 1 | AF41: 0 | AG41: 1 | AH41: 0 | AI41: 1 | AJ41: 0 | AK41: 1 | AM41: =AVERAGE(C41:F41) -> 0 | AN41: =STDEV(C41:F41) -> 0 | AO41: =AVERAGE(U41:X41) -> 0 | AP41: =STDEV(U41:X41) -> 0 | AQ41: =AVERAGE(N41:Q41) -> 0 | AR41: =STDEV(N41:Q41) -> 0
A42: ENSG00000225221 | B42: PLA2G12AP2 | C42: 0 | D42: 0 | E42: 0 | F42: 0 | G42: 0 | H42: 0 | I42: 0 | J42: 0 | K42: 0 | L42: 0 | M42: 0 | N42: 0 | O42: 0 | P42: 0 | Q42: 0 | R42: 0 | S42: 0 | T42: 0 | U42: 0 | V42: 0 | W42: 0 | X42: 0 | Y42: 0 | Z42: 0 | AA42: 0 | AB42: 0 | AC42: 0 | AD42: 0 | AE42: 0 | AF42: 0 | AG42: 0 | AH42: 0 | AI42: 0 | AJ42: 0 | AK42: 0 | AM42: =AVERAGE(C42:F42) -> 0 | AN42: =STDEV(C42:F42) -> 0 | AO42: =AVERAGE(U42:X42) -> 0 | AP42: =STDEV(U42:X42) -> 0 | AQ42: =AVERAGE(N42:Q42) -> 0 | AR42: =STDEV(N42:Q42) -> 0
A43: ENSG00000138308 | B43: PLA2G12B | C43: 0 | D43: 0 | E43: 0 | F43: 0 | G43: 0 | H43: 0 | I43: 0 | J43: 0 | K43: 0 | L43: 0 | M43: 0 | N43: 0 | O43: 0 | P43: 0 | Q43: 0 | R43: 0 | S43: 0 | T43: 0 | U43: 0 | V43: 0 | W43: 0 | X43: 0 | Y43: 0 | Z43: 0 | AA43: 0 | AB43: 0 | AC43: 0 | AD43: 0 | AE43: 0 | AF43: 0 | AG43: 0 | AH43: 0 | AI43: 0 | AJ43: 0 | AK43: 0 | AM43: =AVERAGE(C43:F43) -> 0 | AN43: =STDEV(C43:F43) -> 0 | AO43: =AVERAGE(U43:X43) -> 0 | AP43: =STDEV(U43:X43) -> 0 | AQ43: =AVERAGE(N43:Q43) -> 0 | AR43: =STDEV(N43:Q43) -> 0
A44: ENSG00000103066 | B44: PLA2G15 | C44: 11 | D44: 14 | E44: 13 | F44: 12 | G44: 9 | H44: 7 | I44: 8 | J44: 6 | K44: 6 | L44: 6 | M44: 6 | N44: 8 | O44: 7 | P44: 7 | Q44: 7 | R44: 6 | S44: 7 | T44: 8 | U44: 21 | V44: 21 | W44: 21 | X44: 23 | Y44: 22 | Z44: 24 | AA44: 24 | AB44: 23 | AC44: 23 | AD44: 22 | AE44: 21 | AF44: 52 | AG44: 51 | AH44: 50 | AI44: 44 | AJ44: 57 | AK44: 50 | AM44: =AVERAGE(C44:F44) -> 12 | AN44: =STDEV(C44:F44) -> 1 | AO44: =AVERAGE(U44:X44) -> 22 | AP44: =STDEV(U44:X44) -> 1 | AQ44: =AVERAGE(N44:Q44) -> 7 | AR44: =STDEV(N44:Q44) -> 1
A45: ENSG00000176485 | B45: PLA2G16 | C45: 4 | D45: 7 | E45: 9 | F45: 7 | G45: 212 | H45: 208 | I45: 179 | J45: 174 | K45: 125 | L45: 136 | M45: 128 | N45: 196 | O45: 202 | P45: 196 | Q45: 192 | R45: 117 | S45: 123 | T45: 129 | U45: 7 | V45: 6 | W45: 7 | X45: 8 | Y45: 15 | Z45: 16 | AA45: 13 | AB45: 18 | AC45: 20 | AD45: 19 | AE45: 19 | AF45: 26 | AG45: 24 | AH45: 26 | AI45: 36 | AJ45: 38 | AK45: 37 | AM45: =AVERAGE(C45:F45) -> 7 | AN45: =STDEV(C45:F45) -> 2 | AO45: =AVERAGE(U45:X45) -> 7 | AP45: =STDEV(U45:X45) -> 1 | AQ45: =AVERAGE(N45:Q45) -> 196 | AR45: =STDEV(N45:Q45) -> 4
A46: ENSG00000170890 | B46: PLA2G1B | C46: 0 | D46: 0 | E46: 0 | F46: 0 | G46: 0 | H46: 0 | I46: 0 | J46: 0 | K46: 0 | L46: 0 | M46: 0 | N46: 0 | O46: 0 | P46: 0 | Q46: 0 | R46: 0 | S46: 0 | T46: 0 | U46: 0 | V46: 0 | W46: 0 | X46: 0 | Y46: 0 | Z46: 1 | AA46: 0 | AB46: 0 | AC46: 0 | AD46: 0 | AE46: 0 | AF46: 0 | AG46: 0 | AH46: 0 | AI46: 0 | AJ46: 0 | AK46: 0 | AM46: =AVERAGE(C46:F46) -> 0 | AN46: =STDEV(C46:F46) -> 0 | AO46: =AVERAGE(U46:X46) -> 0 | AP46: =STDEV(U46:X46) -> 0 | AQ46: =AVERAGE(N46:Q46) -> 0 | AR46: =STDEV(N46:Q46) -> 0
A47: ENSG00000188257 | B47: PLA2G2A | C47: 0 | D47: 0 | E47: 0 | F47: 0 | G47: 2 | H47: 1 | I47: 1 | J47: 5 | K47: 2 | L47: 3 | M47: 4 | N47: 3 | O47: 2 | P47: 2 | Q47: 2 | R47: 1 | S47: 2 | T47: 4 | U47: 0 | V47: 0 | W47: 0 | X47: 0 | Y47: 0 | Z47: 0 | AA47: 0 | AB47: 0 | AC47: 0 | AD47: 0 | AE47: 0 | AF47: 0 | AG47: 0 | AH47: 0 | AI47: 0 | AJ47: 0 | AK47: 0 | AM47: =AVERAGE(C47:F47) -> 0 | AN47: =STDEV(C47:F47) -> 0 | AO47: =AVERAGE(U47:X47) -> 0 | AP47: =STDEV(U47:X47) -> 0 | AQ47: =AVERAGE(N47:Q47) -> 2 | AR47: =STDEV(N47:Q47) -> 0
A48: ENSG00000187980 | B48: PLA2G2C | C48: 0 | D48: 0 | E48: 0 | F48: 0 | G48: 0 | H48: 0 | I48: 0 | J48: 0 | K48: 0 | L48: 0 | M48: 0 | N48: 0 | O48: 0 | P48: 0 | Q48: 0 | R48: 0 | S48: 0 | T48: 0 | U48: 0 | V48: 0 | W48: 0 | X48: 0 | Y48: 0 | Z48: 0 | AA48: 0 | AB48: 0 | AC48: 0 | AD48: 0 | AE48: 0 | AF48: 0 | AG48: 0 | AH48: 0 | AI48: 0 | AJ48: 0 | AK48: 0 | AM48: =AVERAGE(C48:F48) -> 0 | AN48: =STDEV(C48:F48) -> 0 | AO48: =AVERAGE(U48:X48) -> 0 | AP48: =STDEV(U48:X48) -> 0 | AQ48: =AVERAGE(N48:Q48) -> 0 | AR48: =STDEV(N48:Q48) -> 0
A49: ENSG00000117215 | B49: PLA2G2D | C49: 0 | D49: 0 | E49: 0 | F49: 0 | G49: 0 | H49: 0 | I49: 0 | J49: 0 | K49: 0 | L49: 0 | M49: 0 | N49: 0 | O49: 0 | P49: 0 | Q49: 0 | R49: 0 | S49: 0 | T49: 0 | U49: 0 | V49: 0 | W49: 0 | X49: 0 | Y49: 0 | Z49: 0 | AA49: 0 | AB49: 0 | AC49: 0 | AD49: 0 | AE49: 0 | AF49: 0 | AG49: 0 | AH49: 0 | AI49: 0 | AJ49: 0 | AK49: 0 | AM49: =AVERAGE(C49:F49) -> 0 | AN49: =STDEV(C49:F49) -> 0 | AO49: =AVERAGE(U49:X49) -> 0 | AP49: =STDEV(U49:X49) -> 0 | AQ49: =AVERAGE(N49:Q49) -> 0 | AR49: =STDEV(N49:Q49) -> 0
A50: ENSG00000188784 | B50: PLA2G2E | C50: 0 | D50: 0 | E50: 0 | F50: 0 | G50: 0 | H50: 0 | I50: 0 | J50: 0 | K50: 0 | L50: 0 | M50: 0 | N50: 0 | O50: 0 | P50: 0 | Q50: 0 | R50: 0 | S50: 0 | T50: 0 | U50: 0 | V50: 0 | W50: 0 | X50: 0 | Y50: 0 | Z50: 0 | AA50: 0 | AB50: 0 | AC50: 0 | AD50: 0 | AE50: 0 | AF50: 0 | AG50: 0 | AH50: 0 | AI50: 0 | AJ50: 0 | AK50: 0 | AM50: =AVERAGE(C50:F50) -> 0 | AN50: =STDEV(C50:F50) -> 0 | AO50: =AVERAGE(U50:X50) -> 0 | AP50: =STDEV(U50:X50) -> 0 | AQ50: =AVERAGE(N50:Q50) -> 0 | AR50: =STDEV(N50:Q50) -> 0
A51: ENSG00000158786 | B51: PLA2G2F | C51: 0 | D51: 0 | E51: 0 | F51: 0 | G51: 0 | H51: 0 | I51: 0 | J51: 0 | K51: 0 | L51: 0 | M51: 0 | N51: 0 | O51: 0 | P51: 0 | Q51: 0 | R51: 0 | S51: 0 | T51: 0 | U51: 0 | V51: 0 | W51: 0 | X51: 0 | Y51: 0 | Z51: 0 | AA51: 0 | AB51: 0 | AC51: 0 | AD51: 0 | AE51: 0 | AF51: 0 | AG51: 0 | AH51: 0 | AI51: 0 | AJ51: 0 | AK51: 0 | AM51: =AVERAGE(C51:F51) -> 0 | AN51: =STDEV(C51:F51) -> 0 | AO51: =AVERAGE(U51:X51) -> 0 | AP51: =STDEV(U51:X51) -> 0 | AQ51: =AVERAGE(N51:Q51) -> 0 | AR51: =STDEV(N51:Q51) -> 0
A52: ENSG00000100078 | B52: PLA2G3 | C52: 0 | D52: 0 | E52: 0 | F52: 0 | G52: 6 | H52: 5 | I52: 7 | J52: 8 | K52: 8 | L52: 7 | M52: 7 | N52: 30 | O52: 29 | P52: 28 | Q52: 25 | R52: 11 | S52: 11 | T52: 14 | U52: 2 | V52: 2 | W52: 2 | X52: 2 | Y52: 0 | Z52: 0 | AA52: 0 | AB52: 0 | AC52: 0 | AD52: 0 | AE52: 0 | AF52: 0 | AG52: 0 | AH52: 0 | AI52: 0 | AJ52: 0 | AK52: 0 | AM52: =AVERAGE(C52:F52) -> 0 | AN52: =STDEV(C52:F52) -> 0 | AO52: =AVERAGE(U52:X52) -> 2 | AP52: =STDEV(U52:X52) -> 0 | AQ52: =AVERAGE(N52:Q52) -> 28 | AR52: =STDEV(N52:Q52) -> 2
A53: ENSG00000116711 | B53: PLA2G4A | C53: 12 | D53: 14 | E53: 8 | F53: 14 | G53: 1 | H53: 1 | I53: 1 | J53: 1 | K53: 1 | L53: 1 | M53: 1 | N53: 1 | O53: 1 | P53: 1 | Q53: 1 | R53: 1 | S53: 1 | T53: 2 | U53: 5 | V53: 6 | W53: 6 | X53: 6 | Y53: 0 | Z53: 0 | AA53: 0 | AB53: 0 | AC53: 1 | AD53: 0 | AE53: 0 | AF53: 1 | AG53: 1 | AH53: 1 | AI53: 1 | AJ53: 1 | AK53: 1 | AM53: =AVERAGE(C53:F53) -> 12 | AN53: =STDEV(C53:F53) -> 3 | AO53: =AVERAGE(U53:X53) -> 6 | AP53: =STDEV(U53:X53) -> 0 | AQ53: =AVERAGE(N53:Q53) -> 1 | AR53: =STDEV(N53:Q53) -> 0
A54: ENSG00000243708 | B54: PLA2G4B | C54: 3 | D54: 2 | E54: 2 | F54: 2 | G54: 19 | H54: 15 | I54: 17 | J54: 10 | K54: 9 | L54: 2 | M54: 9 | N54: 6 | O54: 9 | P54: 4 | Q54: 6 | R54: 3 | S54: 4 | T54: 8 | U54: 3 | V54: 3 | W54: 6 | X54: 5 | Y54: 2 | Z54: 1 | AA54: 3 | AB54: 3 | AC54: 3 | AD54: 3 | AE54: 4 | AF54: 4 | AG54: 4 | AH54: 5 | AI54: 1 | AJ54: 1 | AK54: 1 | AM54: =AVERAGE(C54:F54) -> 2 | AN54: =STDEV(C54:F54) -> 0 | AO54: =AVERAGE(U54:X54) -> 4 | AP54: =STDEV(U54:X54) -> 1 | AQ54: =AVERAGE(N54:Q54) -> 6 | AR54: =STDEV(N54:Q54) -> 2
A55: ENSG00000105499 | B55: PLA2G4C | C55: 1 | D55: 1 | E55: 1 | F55: 3 | G55: 6 | H55: 5 | I55: 5 | J55: 6 | K55: 8 | L55: 9 | M55: 7 | N55: 2 | O55: 3 | P55: 3 | Q55: 2 | R55: 6 | S55: 7 | T55: 9 | U55: 2 | V55: 2 | W55: 2 | X55: 3 | Y55: 6 | Z55: 7 | AA55: 11 | AB55: 9 | AC55: 7 | AD55: 9 | AE55: 7 | AF55: 21 | AG55: 16 | AH55: 22 | AI55: 17 | AJ55: 11 | AK55: 16 | AM55: =AVERAGE(C55:F55) -> 2 | AN55: =STDEV(C55:F55) -> 1 | AO55: =AVERAGE(U55:X55) -> 2 | AP55: =STDEV(U55:X55) -> 0 | AQ55: =AVERAGE(N55:Q55) -> 3 | AR55: =STDEV(N55:Q55) -> 1
A56: ENSG00000159337 | B56: PLA2G4D | C56: 0 | D56: 0 | E56: 0 | F56: 0 | G56: 0 | H56: 0 | I56: 0 | J56: 0 | K56: 0 | L56: 0 | M56: 0 | N56: 0 | O56: 0 | P56: 0 | Q56: 0 | R56: 0 | S56: 0 | T56: 0 | U56: 0 | V56: 0 | W56: 0 | X56: 0 | Y56: 0 | Z56: 0 | AA56: 0 | AB56: 0 | AC56: 0 | AD56: 0 | AE56: 0 | AF56: 0 | AG56: 0 | AH56: 0 | AI56: 0 | AJ56: 0 | AK56: 0 | AM56: =AVERAGE(C56:F56) -> 0 | AN56: =STDEV(C56:F56) -> 0 | AO56: =AVERAGE(U56:X56) -> 0 | AP56: =STDEV(U56:X56) -> 0 | AQ56: =AVERAGE(N56:Q56) -> 0 | AR56: =STDEV(N56:Q56) -> 0
A57: ENSG00000188089 | B57: PLA2G4E | C57: 0 | D57: 0 | E57: 0 | F57: 0 | G57: 0 | H57: 0 | I57: 0 | J57: 0 | K57: 0 | L57: 0 | M57: 0 | N57: 0 | O57: 0 | P57: 0 | Q57: 0 | R57: 0 | S57: 0 | T57: 0 | U57: 0 | V57: 0 | W57: 0 | X57: 0 | Y57: 0 | Z57: 0 | AA57: 0 | AB57: 0 | AC57: 0 | AD57: 0 | AE57: 0 | AF57: 0 | AG57: 0 | AH57: 0 | AI57: 0 | AJ57: 0 | AK57: 0 | AM57: =AVERAGE(C57:F57) -> 0 | AN57: =STDEV(C57:F57) -> 0 | AO57: =AVERAGE(U57:X57) -> 0 | AP57: =STDEV(U57:X57) -> 0 | AQ57: =AVERAGE(N57:Q57) -> 0 | AR57: =STDEV(N57:Q57) -> 0
A58: ENSG00000168907 | B58: PLA2G4F | C58: 0 | D58: 0 | E58: 0 | F58: 0 | G58: 0 | H58: 0 | I58: 0 | J58: 0 | K58: 0 | L58: 0 | M58: 0 | N58: 0 | O58: 0 | P58: 0 | Q58: 0 | R58: 0 | S58: 0 | T58: 0 | U58: 0 | V58: 0 | W58: 0 | X58: 0 | Y58: 0 | Z58: 0 | AA58: 0 | AB58: 0 | AC58: 0 | AD58: 0 | AE58: 0 | AF58: 0 | AG58: 0 | AH58: 0 | AI58: 0 | AJ58: 0 | AK58: 0 | AM58: =AVERAGE(C58:F58) -> 0 | AN58: =STDEV(C58:F58) -> 0 | AO58: =AVERAGE(U58:X58) -> 0 | AP58: =STDEV(U58:X58) -> 0 | AQ58: =AVERAGE(N58:Q58) -> 0 | AR58: =STDEV(N58:Q58) -> 0
A59: ENSG00000127472 | B59: PLA2G5 | C59: 0 | D59: 0 | E59: 0 | F59: 0 | G59: 0 | H59: 0 | I59: 0 | J59: 0 | K59: 0 | L59: 0 | M59: 0 | N59: 0 | O59: 0 | P59: 0 | Q59: 0 | R59: 0 | S59: 0 | T59: 0 | U59: 0 | V59: 0 | W59: 0 | X59: 0 | Y59: 0 | Z59: 0 | AA59: 0 | AB59: 0 | AC59: 0 | AD59: 0 | AE59: 0 | AF59: 0 | AG59: 0 | AH59: 0 | AI59: 0 | AJ59: 0 | AK59: 0 | AM59: =AVERAGE(C59:F59) -> 0 | AN59: =STDEV(C59:F59) -> 0 | AO59: =AVERAGE(U59:X59) -> 0 | AP59: =STDEV(U59:X59) -> 0 | AQ59: =AVERAGE(N59:Q59) -> 0 | AR59: =STDEV(N59:Q59) -> 0
A60: ENSG00000184381 | B60: PLA2G6 | C60: 8 | D60: 4 | E60: 14 | F60: 9 | G60: 38 | H60: 32 | I60: 37 | J60: 22 | K60: 15 | L60: 16 | M60: 16 | N60: 14 | O60: 12 | P60: 11 | Q60: 11 | R60: 7 | S60: 7 | T60: 10 | U60: 11 | V60: 10 | W60: 9 | X60: 9 | Y60: 4 | Z60: 3 | AA60: 3 | AB60: 5 | AC60: 4 | AD60: 4 | AE60: 7 | AF60: 16 | AG60: 16 | AH60: 17 | AI60: 9 | AJ60: 10 | AK60: 11 | AM60: =AVERAGE(C60:F60) -> 9 | AN60: =STDEV(C60:F60) -> 4 | AO60: =AVERAGE(U60:X60) -> 10 | AP60: =STDEV(U60:X60) -> 1 | AQ60: =AVERAGE(N60:Q60) -> 12 | AR60: =STDEV(N60:Q60) -> 1
A61: ENSG00000146070 | B61: PLA2G7 | C61: 0 | D61: 0 | E61: 0 | F61: 0 | G61: 4 | H61: 4 | I61: 5 | J61: 6 | K61: 4 | L61: 4 | M61: 3 | N61: 2 | O61: 2 | P61: 2 | Q61: 2 | R61: 2 | S61: 2 | T61: 3 | U61: 3 | V61: 4 | W61: 4 | X61: 3 | Y61: 0 | Z61: 0 | AA61: 0 | AB61: 0 | AC61: 0 | AD61: 0 | AE61: 0 | AF61: 0 | AG61: 1 | AH61: 1 | AI61: 0 | AJ61: 0 | AK61: 0 | AM61: =AVERAGE(C61:F61) -> 0 | AN61: =STDEV(C61:F61) -> 0 | AO61: =AVERAGE(U61:X61) -> 3 | AP61: =STDEV(U61:X61) -> 0 | AQ61: =AVERAGE(N61:Q61) -> 2 | AR61: =STDEV(N61:Q61) -> 0
A62: ENSG00000153246 | B62: PLA2R1 | C62: 8 | D62: 7 | E62: 9 | F62: 6 | G62: 1 | H62: 1 | I62: 1 | J62: 1 | K62: 1 | L62: 2 | M62: 2 | N62: 1 | O62: 1 | P62: 1 | Q62: 1 | R62: 0 | S62: 0 | T62: 1 | U62: 11 | V62: 10 | W62: 11 | X62: 9 | Y62: 2 | Z62: 2 | AA62: 2 | AB62: 3 | AC62: 3 | AD62: 2 | AE62: 3 | AF62: 10 | AG62: 9 | AH62: 11 | AI62: 8 | AJ62: 7 | AK62: 5 | AM62: =AVERAGE(C62:F62) -> 8 | AN62: =STDEV(C62:F62) -> 1 | AO62: =AVERAGE(U62:X62) -> 10 | AP62: =STDEV(U62:X62) -> 1 | AQ62: =AVERAGE(N62:Q62) -> 1 | AR62: =STDEV(N62:Q62) -> 0
A63: ENSG00000148344 | B63: PTGES | C63: 2 | D63: 4 | E63: 3 | F63: 2 | G63: 2 | H63: 3 | I63: 2 | J63: 3 | K63: 3 | L63: 2 | M63: 4 | N63: 1 | O63: 2 | P63: 1 | Q63: 1 | R63: 1 | S63: 1 | T63: 2 | U63: 2 | V63: 2 | W63: 1 | X63: 2 | Y63: 1 | Z63: 2 | AA63: 1 | AB63: 2 | AC63: 2 | AD63: 1 | AE63: 1 | AF63: 0 | AG63: 0 | AH63: 0 | AI63: 0 | AJ63: 1 | AK63: 1 | AM63: =AVERAGE(C63:F63) -> 3 | AN63: =STDEV(C63:F63) -> 1 | AO63: =AVERAGE(U63:X63) -> 1 | AP63: =STDEV(U63:X63) -> 1 | AQ63: =AVERAGE(N63:Q63) -> 2 | AR63: =STDEV(N63:Q63) -> 0
A64: ENSG00000148334 | B64: PTGES2 | C64: 37 | D64: 42 | E64: 45 | F64: 46 | G64: 47 | H64: 39 | I64: 47 | J64: 52 | K64: 50 | L64: 51 | M64: 50 | N64: 58 | O64: 53 | P64: 50 | Q64: 48 | R64: 54 | S64: 54 | T64: 52 | U64: 45 | V64: 43 | W64: 48 | X64: 48 | Y64: 29 | Z64: 31 | AA64: 35 | AB64: 31 | AC64: 43 | AD64: 34 | AE64: 27 | AF64: 40 | AG64: 43 | AH64: 35 | AI64: 23 | AJ64: 30 | AK64: 29 | AM64: =AVERAGE(C64:F64) -> 42 | AN64: =STDEV(C64:F64) -> 4 | AO64: =AVERAGE(U64:X64) -> 46 | AP64: =STDEV(U64:X64) -> 2 | AQ64: =AVERAGE(N64:Q64) -> 52 | AR64: =STDEV(N64:Q64) -> 5
A65: ENSG00000110958 | B65: PTGES3 | C65: 279 | D65: 309 | E65: 176 | F65: 259 | G65: 384 | H65: 324 | I65: 341 | J65: 413 | K65: 404 | L65: 402 | M65: 413 | N65: 467 | O65: 501 | P65: 495 | Q65: 486 | R65: 497 | S65: 511 | T65: 420 | U65: 228 | V65: 255 | W65: 242 | X65: 240 | Y65: 409 | Z65: 376 | AA65: 383 | AB65: 315 | AC65: 338 | AD65: 325 | AE65: 343 | AF65: 158 | AG65: 150 | AH65: 161 | AI65: 207 | AJ65: 178 | AK65: 208 | AM65: =AVERAGE(C65:F65) -> 256 | AN65: =STDEV(C65:F65) -> 57 | AO65: =AVERAGE(U65:X65) -> 241 | AP65: =STDEV(U65:X65) -> 11 | AQ65: =AVERAGE(N65:Q65) -> 487 | AR65: =STDEV(N65:Q65) -> 15
A66: ENSG00000267060 | B66: PTGES3L | C66: 0 | D66: 0 | E66: 0 | F66: 0 | G66: 2 | H66: 3 | I66: 2 | J66: 3 | K66: 3 | L66: 2 | M66: 3 | N66: 2 | O66: 4 | P66: 3 | Q66: 4 | R66: 2 | S66: 2 | T66: 3 | U66: 1 | V66: 1 | W66: 1 | X66: 1 | Y66: 4 | Z66: 4 | AA66: 3 | AB66: 7 | AC66: 7 | AD66: 7 | AE66: 6 | AF66: 9 | AG66: 9 | AH66: 9 | AI66: 8 | AJ66: 11 | AK66: 8 | AM66: =AVERAGE(C66:F66) -> 0 | AN66: =STDEV(C66:F66) -> 0 | AO66: =AVERAGE(U66:X66) -> 1 | AP66: =STDEV(U66:X66) -> 0 | AQ66: =AVERAGE(N66:Q66) -> 3 | AR66: =STDEV(N66:Q66) -> 1
A67: ENSG00000108825 | B67: PTGES3L-AARSD1 | C67: 0 | D67: 0 | E67: 0 | F67: 0 | G67: 1 | H67: 2 | I67: 2 | J67: 2 | K67: 2 | L67: 2 | M67: 1 | N67: 2 | O67: 1 | P67: 3 | Q67: 1 | R67: 1 | S67: 2 | T67: 2 | U67: 1 | V67: 0 | W67: 1 | X67: 1 | Y67: 3 | Z67: 4 | AA67: 5 | AB67: 6 | AC67: 6 | AD67: 11 | AE67: 8 | AF67: 15 | AG67: 19 | AH67: 18 | AI67: 21 | AJ67: 17 | AK67: 19 | AM67: =AVERAGE(C67:F67) -> 0 | AN67: =STDEV(C67:F67) -> 0 | AO67: =AVERAGE(U67:X67) -> 1 | AP67: =STDEV(U67:X67) -> 0 | AQ67: =AVERAGE(N67:Q67) -> 2 | AR67: =STDEV(N67:Q67) -> 1
A68: ENSG00000095303 | B68: PTGS1 | C68: 77 | D68: 57 | E68: 31 | F68: 23 | G68: 2 | H68: 1 | I68: 3 | J68: 2 | K68: 2 | L68: 2 | M68: 2 | N68: 1 | O68: 1 | P68: 1 | Q68: 1 | R68: 1 | S68: 1 | T68: 2 | U68: 49 | V68: 45 | W68: 48 | X68: 46 | Y68: 1 | Z68: 0 | AA68: 0 | AB68: 1 | AC68: 0 | AD68: 1 | AE68: 1 | AF68: 1 | AG68: 2 | AH68: 2 | AI68: 2 | AJ68: 2 | AK68: 1 | AM68: =AVERAGE(C68:F68) -> 47 | AN68: =STDEV(C68:F68) -> 25 | AO68: =AVERAGE(U68:X68) -> 47 | AP68: =STDEV(U68:X68) -> 2 | AQ68: =AVERAGE(N68:Q68) -> 1 | AR68: =STDEV(N68:Q68) -> 0
A69: ENSG00000073756 | B69: PTGS2 | C69: 2 | D69: 3 | E69: 3 | F69: 2 | G69: 0 | H69: 0 | I69: 0 | J69: 0 | K69: 0 | L69: 0 | M69: 1 | N69: 0 | O69: 0 | P69: 0 | Q69: 0 | R69: 0 | S69: 1 | T69: 0 | U69: 1 | V69: 1 | W69: 1 | X69: 1 | Y69: 1 | Z69: 1 | AA69: 1 | AB69: 0 | AC69: 0 | AD69: 0 | AE69: 0 | AF69: 1 | AG69: 1 | AH69: 2 | AI69: 0 | AJ69: 0 | AK69: 0 | AM69: =AVERAGE(C69:F69) -> 3 | AN69: =STDEV(C69:F69) -> 1 | AO69: =AVERAGE(U69:X69) -> 1 | AP69: =STDEV(U69:X69) -> 0 | AQ69: =AVERAGE(N69:Q69) -> 0 | AR69: =STDEV(N69:Q69) -> 0
A70: ENSG00000168970 | B70: JMJD7-PLA2G4B | C70: 2 | D70: 2 | E70: 2 | F70: 2 | G70: 7 | H70: 6 | I70: 10 | J70: 8 | K70: 6 | L70: 5 | M70: 6 | N70: 5 | O70: 5 | P70: 6 | Q70: 5 | R70: 5 | S70: 4 | T70: 5 | U70: 4 | V70: 3 | W70: 3 | X70: 4 | Y70: 2 | Z70: 3 | AA70: 2 | AB70: 3 | AC70: 2 | AD70: 3 | AE70: 3 | AF70: 5 | AG70: 4 | AH70: 4 | AI70: 2 | AJ70: 2 | AK70: 3 | AM70: =AVERAGE(C70:F70) -> 2 | AN70: =STDEV(C70:F70) -> 0 | AO70: =AVERAGE(U70:X70) -> 4 | AP70: =STDEV(U70:X70) -> 0 | AQ70: =AVERAGE(N70:Q70) -> 5 | AR70: =STDEV(N70:Q70) -> 0
A71: ENSG00000011009 | B71: LYPLA2 | C71: 51 | D71: 64 | E71: 53 | F71: 59 | G71: 82 | H71: 84 | I71: 115 | J71: 91 | K71: 104 | L71: 96 | M71: 101 | N71: 133 | O71: 130 | P71: 122 | Q71: 109 | R71: 128 | S71: 136 | T71: 124 | U71: 74 | V71: 71 | W71: 81 | X71: 89 | Y71: 174 | Z71: 202 | AA71: 207 | AB71: 192 | AC71: 208 | AD71: 180 | AE71: 166 | AF71: 145 | AG71: 140 | AH71: 140 | AI71: 92 | AJ71: 140 | AK71: 142 | AM71: =AVERAGE(C71:F71) -> 57 | AN71: =STDEV(C71:F71) -> 6 | AO71: =AVERAGE(U71:X71) -> 79 | AP71: =STDEV(U71:X71) -> 8 | AQ71: =AVERAGE(N71:Q71) -> 123 | AR71: =STDEV(N71:Q71) -> 10
A72: ENSG00000112486 | B72: CCR6 | C72: 0 | D72: 0 | E72: 0 | F72: 0 | G72: 0 | H72: 0 | I72: 0 | J72: 0 | K72: 0 | L72: 0 | M72: 0 | N72: 0 | O72: 0 | P72: 0 | Q72: 0 | R72: 0 | S72: 0 | T72: 0 | U72: 0 | V72: 0 | W72: 0 | X72: 0 | Y72: 0 | Z72: 0 | AA72: 0 | AB72: 0 | AC72: 0 | AD72: 0 | AE72: 0 | AF72: 0 | AG72: 0 | AH72: 0 | AI72: 0 | AJ72: 0 | AK72: 0 | AM72: =AVERAGE(C72:F72) -> 0 | AN72: =STDEV(C72:F72) -> 0 | AO72: =AVERAGE(U72:X72) -> 0 | AP72: =STDEV(U72:X72) -> 0 | AQ72: =AVERAGE(N72:Q72) -> 0 | AR72: =STDEV(N72:Q72) -> 0
A73: ENSG00000090932 | B73: DLL3 | C73: 0 | D73: 0 | E73: 0 | F73: 0 | G73: 6 | H73: 7 | I73: 6 | J73: 4 | K73: 5 | L73: 5 | M73: 5 | N73: 1 | O73: 1 | P73: 1 | Q73: 1 | R73: 2 | S73: 3 | T73: 6 | U73: 0 | V73: 0 | W73: 0 | X73: 0 | Y73: 9 | Z73: 10 | AA73: 11 | AB73: 12 | AC73: 15 | AD73: 11 | AE73: 12 | AF73: 1 | AG73: 2 | AH73: 1 | AI73: 2 | AJ73: 2 | AK73: 4 | AM73: =AVERAGE(C73:F73) -> 0 | AN73: =STDEV(C73:F73) -> 0 | AO73: =AVERAGE(U73:X73) -> 0 | AP73: =STDEV(U73:X73) -> 0 | AQ73: =AVERAGE(N73:Q73) -> 1 | AR73: =STDEV(N73:Q73) -> 0
A74: ENSG00000128917 | B74: DLL4 | C74: 0 | D74: 0 | E74: 0 | F74: 0 | G74: 0 | H74: 0 | I74: 0 | J74: 0 | K74: 0 | L74: 0 | M74: 0 | N74: 0 | O74: 0 | P74: 0 | Q74: 0 | R74: 0 | S74: 0 | T74: 0 | U74: 0 | V74: 0 | W74: 0 | X74: 0 | Y74: 1 | Z74: 1 | AA74: 1 | AB74: 0 | AC74: 0 | AD74: 0 | AE74: 0 | AF74: 0 | AG74: 0 | AH74: 0 | AI74: 0 | AJ74: 0 | AK74: 0 | AM74: =AVERAGE(C74:F74) -> 0 | AN74: =STDEV(C74:F74) -> 0 | AO74: =AVERAGE(U74:X74) -> 0 | AP74: =STDEV(U74:X74) -> 0 | AQ74: =AVERAGE(N74:Q74) -> 0 | AR74: =STDEV(N74:Q74) -> 0
A75: ENSG00000204632 | B75: HLA-G | C75: 3 | D75: 1 | E75: 6 | F75: 3 | G75: 3 | H75: 2 | I75: 3 | J75: 3 | K75: 3 | L75: 3 | M75: 3 | N75: 1 | O75: 1 | P75: 1 | Q75: 1 | R75: 2 | S75: 2 | T75: 3 | U75: 1 | V75: 1 | W75: 1 | X75: 1 | Y75: 1 | Z75: 1 | AA75: 1 | AB75: 1 | AC75: 1 | AD75: 1 | AE75: 1 | AF75: 1 | AG75: 2 | AH75: 1 | AI75: 1 | AJ75: 2 | AK75: 1 | AM75: =AVERAGE(C75:F75) -> 3 | AN75: =STDEV(C75:F75) -> 2 | AO75: =AVERAGE(U75:X75) -> 1 | AP75: =STDEV(U75:X75) -> 0 | AQ75: =AVERAGE(N75:Q75) -> 1 | AR75: =STDEV(N75:Q75) -> 0
A76: ENSG00000100292 | B76: HMOX1 | C76: 76 | D76: 116 | E76: 203 | F76: 93 | G76: 9 | H76: 9 | I76: 8 | J76: 11 | K76: 11 | L76: 11 | M76: 11 | N76: 13 | O76: 12 | P76: 13 | Q76: 11 | R76: 22 | S76: 20 | T76: 9 | U76: 35 | V76: 35 | W76: 38 | X76: 39 | Y76: 127 | Z76: 132 | AA76: 133 | AB76: 77 | AC76: 88 | AD76: 75 | AE76: 77 | AF76: 7 | AG76: 7 | AH76: 8 | AI76: 8 | AJ76: 10 | AK76: 15 | AM76: =AVERAGE(C76:F76) -> 122 | AN76: =STDEV(C76:F76) -> 57 | AO76: =AVERAGE(U76:X76) -> 37 | AP76: =STDEV(U76:X76) -> 2 | AQ76: =AVERAGE(N76:Q76) -> 13 | AR76: =STDEV(N76:Q76) -> 1
A77: ENSG00000101384 | B77: JAG1 | C77: 3 | D77: 4 | E77: 3 | F77: 2 | G77: 25 | H77: 22 | I77: 26 | J77: 23 | K77: 22 | L77: 21 | M77: 21 | N77: 18 | O77: 18 | P77: 17 | Q77: 18 | R77: 18 | S77: 19 | T77: 28 | U77: 3 | V77: 2 | W77: 2 | X77: 2 | Y77: 13 | Z77: 13 | AA77: 13 | AB77: 28 | AC77: 26 | AD77: 28 | AE77: 26 | AF77: 17 | AG77: 18 | AH77: 16 | AI77: 19 | AJ77: 17 | AK77: 20 | AM77: =AVERAGE(C77:F77) -> 3 | AN77: =STDEV(C77:F77) -> 1 | AO77: =AVERAGE(U77:X77) -> 2 | AP77: =STDEV(U77:X77) -> 0 | AQ77: =AVERAGE(N77:Q77) -> 18 | AR77: =STDEV(N77:Q77) -> 0
A78: ENSG00000270408 | B78: JAG1 | C78: 0 | D78: 0 | E78: 0 | F78: 0 | G78: 0 | H78: 0 | I78: 0 | J78: 0 | K78: 1 | L78: 0 | M78: 0 | N78: 0 | O78: 0 | P78: 0 | Q78: 1 | R78: 0 | S78: 0 | T78: 0 | U78: 0 | V78: 0 | W78: 0 | X78: 0 | Y78: 0 | Z78: 1 | AA78: 0 | AB78: 1 | AC78: 0 | AD78: 1 | AE78: 0 | AF78: 0 | AG78: 0 | AH78: 0 | AI78: 0 | AJ78: 0 | AK78: 0 | AM78: =AVERAGE(C78:F78) -> 0 | AN78: =STDEV(C78:F78) -> 0 | AO78: =AVERAGE(U78:X78) -> 0 | AP78: =STDEV(U78:X78) -> 0 | AQ78: =AVERAGE(N78:Q78) -> 0 | AR78: =STDEV(N78:Q78) -> 0
A79: ENSG00000128342 | B79: LIF | C79: 13 | D79: 11 | E79: 6 | F79: 9 | G79: 2 | H79: 2 | I79: 2 | J79: 3 | K79: 3 | L79: 3 | M79: 3 | N79: 3 | O79: 3 | P79: 3 | Q79: 3 | R79: 2 | S79: 2 | T79: 4 | U79: 18 | V79: 18 | W79: 20 | X79: 19 | Y79: 23 | Z79: 22 | AA79: 23 | AB79: 15 | AC79: 12 | AD79: 13 | AE79: 12 | AF79: 62 | AG79: 63 | AH79: 62 | AI79: 38 | AJ79: 48 | AK79: 47 | AM79: =AVERAGE(C79:F79) -> 10 | AN79: =STDEV(C79:F79) -> 3 | AO79: =AVERAGE(U79:X79) -> 19 | AP79: =STDEV(U79:X79) -> 1 | AQ79: =AVERAGE(N79:Q79) -> 3 | AR79: =STDEV(N79:Q79) -> 0
A80: ENSG00000006074 | B80: CCL18 | C80: 0 | D80: 0 | E80: 0 | F80: 0 | G80: 0 | H80: 0 | I80: 0 | J80: 0 | K80: 0 | L80: 0 | M80: 0 | N80: 0 | O80: 0 | P80: 0 | Q80: 0 | R80: 0 | S80: 0 | T80: 0 | U80: 0 | V80: 0 | W80: 0 | X80: 0 | Y80: 0 | Z80: 0 | AA80: 0 | AB80: 0 | AC80: 0 | AD80: 0 | AE80: 0 | AF80: 0 | AG80: 0 | AH80: 0 | AI80: 0 | AJ80: 0 | AK80: 0 | AM80: =AVERAGE(C80:F80) -> 0 | AN80: =STDEV(C80:F80) -> 0 | AO80: =AVERAGE(U80:X80) -> 0 | AP80: =STDEV(U80:X80) -> 0 | AQ80: =AVERAGE(N80:Q80) -> 0 | AR80: =STDEV(N80:Q80) -> 0
A81: ENSG00000136634 | B81: IL10 | C81: 0 | D81: 0 | E81: 0 | F81: 0 | G81: 0 | H81: 0 | I81: 0 | J81: 0 | K81: 0 | L81: 0 | M81: 0 | N81: 0 | O81: 0 | P81: 0 | Q81: 0 | R81: 0 | S81: 0 | T81: 0 | U81: 0 | V81: 0 | W81: 0 | X81: 0 | Y81: 0 | Z81: 0 | AA81: 0 | AB81: 0 | AC81: 0 | AD81: 0 | AE81: 0 | AF81: 0 | AG81: 0 | AH81: 0 | AI81: 0 | AJ81: 0 | AK81: 0 | AM81: =AVERAGE(C81:F81) -> 0 | AN81: =STDEV(C81:F81) -> 0 | AO81: =AVERAGE(U81:X81) -> 0 | AP81: =STDEV(U81:X81) -> 0 | AQ81: =AVERAGE(N81:Q81) -> 0 | AR81: =STDEV(N81:Q81) -> 0
A82: ENSG00000145416 | B82: 36951 | C82: 0 | D82: 0 | E82: 0 | F82: 0 | G82: 0 | H82: 0 | I82: 0 | J82: 0 | K82: 0 | L82: 0 | M82: 0 | N82: 0 | O82: 0 | P82: 0 | Q82: 0 | R82: 0 | S82: 0 | T82: 1 | U82: 0 | V82: 0 | W82: 0 | X82: 0 | Y82: 0 | Z82: 0 | AA82: 0 | AB82: 0 | AC82: 0 | AD82: 0 | AE82: 0 | AF82: 0 | AG82: 0 | AH82: 0 | AI82: 0 | AJ82: 0 | AK82: 0 | AM82: =AVERAGE(C82:F82) -> 0 | AN82: =STDEV(C82:F82) -> 0 | AO82: =AVERAGE(U82:X82) -> 0 | AP82: =STDEV(U82:X82) -> 0 | AQ82: =AVERAGE(N82:Q82) -> 0 | AR82: =STDEV(N82:Q82) -> 0
A83: ENSG00000186205 | B83: 36951 | C83: 3 | D83: 3 | E83: 2 | F83: 4 | G83: 22 | H83: 22 | I83: 22 | J83: 26 | K83: 28 | L83: 29 | M83: 29 | N83: 26 | O83: 26 | P83: 27 | Q83: 27 | R83: 31 | S83: 29 | T83: 28 | U83: 1 | V83: 1 | W83: 1 | X83: 1 | Y83: 3 | Z83: 3 | AA83: 3 | AB83: 3 | AC83: 3 | AD83: 3 | AE83: 4 | AF83: 2 | AG83: 2 | AH83: 2 | AI83: 4 | AJ83: 2 | AK83: 2 | AM83: =AVERAGE(C83:F83) -> 3 | AN83: =STDEV(C83:F83) -> 1 | AO83: =AVERAGE(U83:X83) -> 1 | AP83: =STDEV(U83:X83) -> 0 | AQ83: =AVERAGE(N83:Q83) -> 26 | AR83: =STDEV(N83:Q83) -> 1
A84: ENSG00000180096 | B84: 37135 | C84: 0 | D84: 0 | E84: 1 | F84: 0 | G84: 0 | H84: 0 | I84: 0 | J84: 1 | K84: 0 | L84: 0 | M84: 1 | N84: 0 | O84: 0 | P84: 0 | Q84: 0 | R84: 1 | S84: 0 | T84: 0 | U84: 0 | V84: 0 | W84: 0 | X84: 0 | Y84: 1 | Z84: 0 | AA84: 1 | AB84: 0 | AC84: 0 | AD84: 0 | AE84: 0 | AF84: 1 | AG84: 1 | AH84: 1 | AI84: 0 | AJ84: 0 | AK84: 0 | AM84: =AVERAGE(C84:F84) -> 0 | AN84: =STDEV(C84:F84) -> 0 | AO84: =AVERAGE(U84:X84) -> 0 | AP84: =STDEV(U84:X84) -> 0 | AQ84: =AVERAGE(N84:Q84) -> 0 | AR84: =STDEV(N84:Q84) -> 0
A85: ENSG00000270466 | B85: 37135 | C85: 0 | D85: 0 | E85: 0 | F85: 0 | G85: 0 | H85: 0 | I85: 0 | J85: 0 | K85: 0 | L85: 0 | M85: 0 | N85: 0 | O85: 0 | P85: 0 | Q85: 0 | R85: 0 | S85: 0 | T85: 0 | U85: 0 | V85: 0 | W85: 0 | X85: 0 | Y85: 0 | Z85: 0 | AA85: 0 | AB85: 0 | AC85: 0 | AD85: 0 | AE85: 0 | AF85: 0 | AG85: 0 | AH85: 0 | AI85: 0 | AJ85: 0 | AK85: 0 | AM85: =AVERAGE(C85:F85) -> 0 | AN85: =STDEV(C85:F85) -> 0 | AO85: =AVERAGE(U85:X85) -> 0 | AP85: =STDEV(U85:X85) -> 0 | AQ85: =AVERAGE(N85:Q85) -> 0 | AR85: =STDEV(N85:Q85) -> 0
A86: ENSG00000173077 | B86: 37226 | C86: 0 | D86: 0 | E86: 0 | F86: 0 | G86: 0 | H86: 0 | I86: 0 | J86: 0 | K86: 0 | L86: 0 | M86: 0 | N86: 0 | O86: 0 | P86: 0 | Q86: 0 | R86: 0 | S86: 0 | T86: 1 | U86: 0 | V86: 0 | W86: 0 | X86: 0 | Y86: 1 | Z86: 1 | AA86: 1 | AB86: 1 | AC86: 2 | AD86: 1 | AE86: 2 | AF86: 3 | AG86: 3 | AH86: 2 | AI86: 3 | AJ86: 2 | AK86: 2 | AM86: =AVERAGE(C86:F86) -> 0 | AN86: =STDEV(C86:F86) -> 0 | AO86: =AVERAGE(U86:X86) -> 0 | AP86: =STDEV(U86:X86) -> 0 | AQ86: =AVERAGE(N86:Q86) -> 0 | AR86: =STDEV(N86:Q86) -> 0
A87: ENSG00000099785 | B87: 37316 | C87: 11 | D87: 8 | E87: 18 | F87: 12 | G87: 18 | H87: 19 | I87: 20 | J87: 16 | K87: 15 | L87: 13 | M87: 11 | N87: 17 | O87: 16 | P87: 15 | Q87: 14 | R87: 9 | S87: 9 | T87: 12 | U87: 13 | V87: 14 | W87: 13 | X87: 17 | Y87: 18 | Z87: 19 | AA87: 23 | AB87: 19 | AC87: 24 | AD87: 21 | AE87: 19 | AF87: 39 | AG87: 32 | AH87: 30 | AI87: 26 | AJ87: 32 | AK87: 26 | AM87: =AVERAGE(C87:F87) -> 12 | AN87: =STDEV(C87:F87) -> 4 | AO87: =AVERAGE(U87:X87) -> 14 | AP87: =STDEV(U87:X87) -> 2 | AQ87: =AVERAGE(N87:Q87) -> 16 | AR87: =STDEV(N87:Q87) -> 2
A88: ENSG00000117791 | B88: 37316 | C88: 4 | D88: 5 | E88: 6 | F88: 6 | G88: 12 | H88: 8 | I88: 11 | J88: 11 | K88: 8 | L88: 13 | M88: 12 | N88: 10 | O88: 9 | P88: 9 | Q88: 9 | R88: 7 | S88: 7 | T88: 14 | U88: 1 | V88: 1 | W88: 1 | X88: 0 | Y88: 1 | Z88: 1 | AA88: 1 | AB88: 1 | AC88: 1 | AD88: 1 | AE88: 1 | AF88: 1 | AG88: 1 | AH88: 2 | AI88: 1 | AJ88: 1 | AK88: 1 | AM88: =AVERAGE(C88:F88) -> 5 | AN88: =STDEV(C88:F88) -> 1 | AO88: =AVERAGE(U88:X88) -> 1 | AP88: =STDEV(U88:X88) -> 0 | AQ88: =AVERAGE(N88:Q88) -> 9 | AR88: =STDEV(N88:Q88) -> 1
A89: ENSG00000168385 | B89: 37500 | C89: 402 | D89: 336 | E89: 305 | F89: 356 | G89: 317 | H89: 239 | I89: 320 | J89: 406 | K89: 357 | L89: 382 | M89: 384 | N89: 334 | O89: 354 | P89: 345 | Q89: 348 | R89: 437 | S89: 414 | T89: 383 | U89: 468 | V89: 463 | W89: 430 | X89: 426 | Y89: 507 | Z89: 490 | AA89: 471 | AB89: 500 | AC89: 505 | AD89: 522 | AE89: 534 | AF89: 473 | AG89: 479 | AH89: 501 | AI89: 522 | AJ89: 440 | AK89: 536 | AM89: =AVERAGE(C89:F89) -> 350 | AN89: =STDEV(C89:F89) -> 41 | AO89: =AVERAGE(U89:X89) -> 447 | AP89: =STDEV(U89:X89) -> 22 | AQ89: =AVERAGE(N89:Q89) -> 345 | AR89: =STDEV(N89:Q89) -> 9
A90: ENSG00000173926 | B90: 37681 | C90: 6 | D90: 12 | E90: 9 | F90: 5 | G90: 11 | H90: 10 | I90: 11 | J90: 10 | K90: 12 | L90: 11 | M90: 9 | N90: 6 | O90: 6 | P90: 6 | Q90: 6 | R90: 8 | S90: 10 | T90: 9 | U90: 1 | V90: 1 | W90: 1 | X90: 1 | Y90: 5 | Z90: 5 | AA90: 6 | AB90: 6 | AC90: 6 | AD90: 5 | AE90: 6 | AF90: 18 | AG90: 19 | AH90: 18 | AI90: 13 | AJ90: 21 | AK90: 16 | AM90: =AVERAGE(C90:F90) -> 8 | AN90: =STDEV(C90:F90) -> 3 | AO90: =AVERAGE(U90:X90) -> 1 | AP90: =STDEV(U90:X90) -> 0 | AQ90: =AVERAGE(N90:Q90) -> 6 | AR90: =STDEV(N90:Q90) -> 0
A91: ENSG00000100167 | B91: 37865 | C91: 0 | D91: 0 | E91: 0 | F91: 0 | G91: 37 | H91: 34 | I91: 39 | J91: 34 | K91: 23 | L91: 24 | M91: 23 | N91: 22 | O91: 22 | P91: 22 | Q91: 23 | R91: 16 | S91: 17 | T91: 27 | U91: 0 | V91: 0 | W91: 0 | X91: 0 | Y91: 2 | Z91: 3 | AA91: 3 | AB91: 3 | AC91: 3 | AD91: 3 | AE91: 3 | AF91: 1 | AG91: 1 | AH91: 1 | AI91: 1 | AJ91: 1 | AK91: 2 | AM91: =AVERAGE(C91:F91) -> 0 | AN91: =STDEV(C91:F91) -> 0 | AO91: =AVERAGE(U91:X91) -> 0 | AP91: =STDEV(U91:X91) -> 0 | AQ91: =AVERAGE(N91:Q91) -> 22 | AR91: =STDEV(N91:Q91) -> 1
A92: ENSG00000144583 | B92: 38047 | C92: 3 | D92: 6 | E92: 2 | F92: 3 | G92: 1 | H92: 1 | I92: 1 | J92: 1 | K92: 1 | L92: 1 | M92: 1 | N92: 2 | O92: 2 | P92: 2 | Q92: 1 | R92: 1 | S92: 1 | T92: 1 | U92: 4 | V92: 4 | W92: 4 | X92: 5 | Y92: 15 | Z92: 16 | AA92: 17 | AB92: 15 | AC92: 15 | AD92: 13 | AE92: 13 | AF92: 15 | AG92: 14 | AH92: 14 | AI92: 23 | AJ92: 26 | AK92: 29 | AM92: =AVERAGE(C92:F92) -> 4 | AN92: =STDEV(C92:F92) -> 2 | AO92: =AVERAGE(U92:X92) -> 4 | AP92: =STDEV(U92:X92) -> 0 | AQ92: =AVERAGE(N92:Q92) -> 2 | AR92: =STDEV(N92:Q92) -> 0
A93: ENSG00000108387 | B93: 38231 | C93: 5 | D93: 4 | E93: 3 | F93: 5 | G93: 13 | H93: 12 | I93: 13 | J93: 10 | K93: 10 | L93: 10 | M93: 10 | N93: 9 | O93: 9 | P93: 8 | Q93: 8 | R93: 8 | S93: 6 | T93: 12 | U93: 1 | V93: 1 | W93: 1 | X93: 2 | Y93: 0 | Z93: 0 | AA93: 0 | AB93: 1 | AC93: 0 | AD93: 0 | AE93: 1 | AF93: 1 | AG93: 0 | AH93: 0 | AI93: 0 | AJ93: 0 | AK93: 0 | AM93: =AVERAGE(C93:F93) -> 4 | AN93: =STDEV(C93:F93) -> 1 | AO93: =AVERAGE(U93:X93) -> 1 | AP93: =STDEV(U93:X93) -> 0 | AQ93: =AVERAGE(N93:Q93) -> 9 | AR93: =STDEV(N93:Q93) -> 0
A94: ENSG00000198060 | B94: 38412 | C94: 34 | D94: 33 | E94: 30 | F94: 33 | G94: 20 | H94: 16 | I94: 18 | J94: 19 | K94: 13 | L94: 12 | M94: 14 | N94: 16 | O94: 16 | P94: 18 | Q94: 17 | R94: 15 | S94: 14 | T94: 28 | U94: 41 | V94: 39 | W94: 39 | X94: 40 | Y94: 42 | Z94: 43 | AA94: 41 | AB94: 41 | AC94: 44 | AD94: 43 | AE94: 54 | AF94: 36 | AG94: 38 | AH94: 37 | AI94: 37 | AJ94: 36 | AK94: 45 | AM94: =AVERAGE(C94:F94) -> 33 | AN94: =STDEV(C94:F94) -> 2 | AO94: =AVERAGE(U94:X94) -> 40 | AP94: =STDEV(U94:X94) -> 1 | AQ94: =AVERAGE(N94:Q94) -> 17 | AR94: =STDEV(N94:Q94) -> 1
A95: ENSG00000184702 | B95: 38596 | C95: 11 | D95: 17 | E95: 25 | F95: 15 | G95: 7 | H95: 7 | I95: 7 | J95: 6 | K95: 8 | L95: 6 | M95: 5 | N95: 8 | O95: 7 | P95: 6 | Q95: 7 | R95: 6 | S95: 6 | T95: 9 | U95: 34 | V95: 28 | W95: 34 | X95: 23 | Y95: 15 | Z95: 14 | AA95: 16 | AB95: 18 | AC95: 18 | AD95: 15 | AE95: 17 | AF95: 14 | AG95: 11 | AH95: 13 | AI95: 12 | AJ95: 9 | AK95: 11 | AM95: =AVERAGE(C95:F95) -> 17 | AN95: =STDEV(C95:F95) -> 6 | AO95: =AVERAGE(U95:X95) -> 30 | AP95: =STDEV(U95:X95) -> 5 | AQ95: =AVERAGE(N95:Q95) -> 7 | AR95: =STDEV(N95:Q95) -> 1
A96: ENSG00000145495 | B96: 38777 | C96: 72 | D96: 68 | E96: 61 | F96: 65 | G96: 82 | H96: 77 | I96: 78 | J96: 82 | K96: 67 | L96: 64 | M96: 69 | N96: 60 | O96: 58 | P96: 58 | Q96: 59 | R96: 73 | S96: 68 | T96: 72 | U96: 73 | V96: 76 | W96: 74 | X96: 74 | Y96: 77 | Z96: 75 | AA96: 68 | AB96: 80 | AC96: 73 | AD96: 87 | AE96: 92 | AF96: 90 | AG96: 92 | AH96: 107 | AI96: 96 | AJ96: 74 | AK96: 89 | AM96: =AVERAGE(C96:F96) -> 67 | AN96: =STDEV(C96:F96) -> 5 | AO96: =AVERAGE(U96:X96) -> 74 | AP96: =STDEV(U96:X96) -> 1 | AQ96: =AVERAGE(N96:Q96) -> 58 | AR96: =STDEV(N96:Q96) -> 1
A97: ENSG00000125354 | B97: 38961 | C97: 6 | D97: 6 | E97: 8 | F97: 8 | G97: 23 | H97: 21 | I97: 25 | J97: 27 | K97: 24 | L97: 19 | M97: 21 | N97: 17 | O97: 18 | P97: 17 | Q97: 17 | R97: 13 | S97: 12 | T97: 19 | U97: 27 | V97: 26 | W97: 26 | X97: 26 | Y97: 30 | Z97: 29 | AA97: 26 | AB97: 41 | AC97: 42 | AD97: 41 | AE97: 41 | AF97: 27 | AG97: 27 | AH97: 27 | AI97: 29 | AJ97: 25 | AK97: 31 | AM97: =AVERAGE(C97:F97) -> 7 | AN97: =STDEV(C97:F97) -> 1 | AO97: =AVERAGE(U97:X97) -> 26 | AP97: =STDEV(U97:X97) -> 1 | AQ97: =AVERAGE(N97:Q97) -> 17 | AR97: =STDEV(N97:Q97) -> 1
A98: ENSG00000136536 | B98: 39142 | C98: 80 | D98: 66 | E98: 53 | F98: 67 | G98: 125 | H98: 94 | I98: 108 | J98: 125 | K98: 100 | L98: 105 | M98: 99 | N98: 92 | O98: 96 | P98: 90 | Q98: 90 | R98: 104 | S98: 99 | T98: 97 | U98: 75 | V98: 82 | W98: 80 | X98: 74 | Y98: 109 | Z98: 107 | AA98: 103 | AB98: 106 | AC98: 114 | AD98: 113 | AE98: 130 | AF98: 84 | AG98: 82 | AH98: 87 | AI98: 106 | AJ98: 85 | AK98: 100 | AM98: =AVERAGE(C98:F98) -> 66 | AN98: =STDEV(C98:F98) -> 11 | AO98: =AVERAGE(U98:X98) -> 78 | AP98: =STDEV(U98:X98) -> 3 | AQ98: =AVERAGE(N98:Q98) -> 92 | AR98: =STDEV(N98:Q98) -> 3
A99: ENSG00000122545 | B99: 39326 | C99: 168 | D99: 170 | E99: 122 | F99: 148 | G99: 107 | H99: 89 | I99: 87 | J99: 110 | K99: 105 | L99: 105 | M99: 108 | N99: 112 | O99: 121 | P99: 122 | Q99: 118 | R99: 119 | S99: 118 | T99: 107 | U99: 166 | V99: 172 | W99: 161 | X99: 158 | Y99: 219 | Z99: 211 | AA99: 199 | AB99: 199 | AC99: 202 | AD99: 210 | AE99: 226 | AF99: 166 | AG99: 157 | AH99: 170 | AI99: 206 | AJ99: 176 | AK99: 198 | AM99: =AVERAGE(C99:F99) -> 152 | AN99: =STDEV(C99:F99) -> 22 | AO99: =AVERAGE(U99:X99) -> 164 | AP99: =STDEV(U99:X99) -> 6 | AQ99: =AVERAGE(N99:Q99) -> 118 | AR99: =STDEV(N99:Q99) -> 5
A100: ENSG00000165406 | B100: 39508 | C100: 13 | D100: 10 | E100: 14 | F100: 14 | G100: 16 | H100: 12 | I100: 17 | J100: 20 | K100: 17 | L100: 14 | M100: 15 | N100: 11 | O100: 13 | P100: 12 | Q100: 13 | R100: 14 | S100: 14 | T100: 17 | U100: 14 | V100: 14 | W100: 15 | X100: 13 | Y100: 10 | Z100: 10 | AA100: 8 | AB100: 13 | AC100: 12 | AD100: 12 | AE100: 13 | AF100: 10 | AG100: 10 | AH100: 10 | AI100: 10 | AJ100: 9 | AK100: 11 | AM100: =AVERAGE(C100:F100) -> 13 | AN100: =STDEV(C100:F100) -> 2 | AO100: =AVERAGE(U100:X100) -> 14 | AP100: =STDEV(U100:X100) -> 1 | AQ100: =AVERAGE(N100:Q100) -> 12 | AR100: =STDEV(N100:Q100) -> 1
A101: ENSG00000164402 | B101: 39692 | C101: 49 | D101: 51 | E101: 46 | F101: 51 | G101: 25 | H101: 21 | I101: 29 | J101: 35 | K101: 32 | L101: 29 | M101: 30 | N101: 26 | O101: 25 | P101: 25 | Q101: 23 | R101: 25 | S101: 25 | T101: 32 | U101: 47 | V101: 49 | W101: 50 | X101: 46 | Y101: 48 | Z101: 48 | AA101: 48 | AB101: 51 | AC101: 47 | AD101: 49 | AE101: 48 | AF101: 43 | AG101: 48 | AH101: 53 | AI101: 37 | AJ101: 35 | AK101: 48 | AM101: =AVERAGE(C101:F101) -> 49 | AN101: =STDEV(C101:F101) -> 2 | AO101: =AVERAGE(U101:X101) -> 48 | AP101: =STDEV(U101:X101) -> 2 | AQ101: =AVERAGE(N101:Q101) -> 25 | AR101: =STDEV(N101:Q101) -> 1
A102: ENSG00000139266 | B102: 39873 | C102: 3 | D102: 1 | E102: 5 | F102: 2 | G102: 10 | H102: 10 | I102: 10 | J102: 9 | K102: 5 | L102: 5 | M102: 6 | N102: 7 | O102: 7 | P102: 6 | Q102: 6 | R102: 5 | S102: 5 | T102: 7 | U102: 4 | V102: 5 | W102: 5 | X102: 5 | Y102: 2 | Z102: 3 | AA102: 3 | AB102: 2 | AC102: 2 | AD102: 3 | AE102: 3 | AF102: 6 | AG102: 5 | AH102: 5 | AI102: 3 | AJ102: 4 | AK102: 4 | AM102: =AVERAGE(C102:F102) -> 3 | AN102: =STDEV(C102:F102) -> 1 | AO102: =AVERAGE(U102:X102) -> 5 | AP102: =STDEV(U102:X102) -> 0 | AQ102: =AVERAGE(N102:Q102) -> 7 | AR102: =STDEV(N102:Q102) -> 0
A103: ENSG00000184640 | B103: 40057 | C103: 127 | D103: 147 | E103: 148 | F103: 136 | G103: 144 | H103: 117 | I103: 169 | J103: 170 | K103: 200 | L103: 187 | M103: 173 | N103: 188 | O103: 171 | P103: 166 | Q103: 164 | R103: 164 | S103: 171 | T103: 194 | U103: 226 | V103: 232 | W103: 251 | X103: 256 | Y103: 319 | Z103: 342 | AA103: 362 | AB103: 370 | AC103: 376 | AD103: 336 | AE103: 328 | AF103: 206 | AG103: 216 | AH103: 198 | AI103: 161 | AJ103: 191 | AK103: 203 | AM103: =AVERAGE(C103:F103) -> 140 | AN103: =STDEV(C103:F103) -> 10 | AO103: =AVERAGE(U103:X103) -> 241 | AP103: =STDEV(U103:X103) -> 15 | AQ103: =AVERAGE(N103:Q103) -> 172 | AR103: =STDEV(N103:Q103) -> 11
A104: ENSG00000173838 | B104: 40238 | C104: 0 | D104: 0 | E104: 0 | F104: 0 | G104: 0 | H104: 0 | I104: 0 | J104: 0 | K104: 1 | L104: 0 | M104: 0 | N104: 0 | O104: 0 | P104: 0 | Q104: 0 | R104: 0 | S104: 1 | T104: 1 | U104: 0 | V104: 0 | W104: 0 | X104: 0 | Y104: 0 | Z104: 0 | AA104: 0 | AB104: 0 | AC104: 0 | AD104: 0 | AE104: 0 | AF104: 0 | AG104: 0 | AH104: 0 | AI104: 0 | AJ104: 0 | AK104: 0 | AM104: =AVERAGE(C104:F104) -> 0 | AN104: =STDEV(C104:F104) -> 0 | AO104: =AVERAGE(U104:X104) -> 0 | AP104: =STDEV(U104:X104) -> 0 | AQ104: =AVERAGE(N104:Q104) -> 0 | AR104: =STDEV(N104:Q104) -> 0
A105: ENSG00000186522 | B105: 40422 | C105: 77 | D105: 74 | E105: 70 | F105: 73 | G105: 54 | H105: 39 | I105: 53 | J105: 65 | K105: 74 | L105: 73 | M105: 71 | N105: 76 | O105: 77 | P105: 77 | Q105: 78 | R105: 65 | S105: 62 | T105: 79 | U105: 72 | V105: 70 | W105: 65 | X105: 62 | Y105: 77 | Z105: 74 | AA105: 71 | AB105: 68 | AC105: 70 | AD105: 70 | AE105: 76 | AF105: 59 | AG105: 59 | AH105: 65 | AI105: 74 | AJ105: 64 | AK105: 74 | AM105: =AVERAGE(C105:F105) -> 73 | AN105: =STDEV(C105:F105) -> 3 | AO105: =AVERAGE(U105:X105) -> 67 | AP105: =STDEV(U105:X105) -> 5 | AQ105: =AVERAGE(N105:Q105) -> 77 | AR105: =STDEV(N105:Q105) -> 1
A106: ENSG00000183654 | B106: 40603 | C106: 0 | D106: 0 | E106: 0 | F106: 0 | G106: 4 | H106: 2 | I106: 3 | J106: 0 | K106: 0 | L106: 0 | M106: 1 | N106: 0 | O106: 0 | P106: 0 | Q106: 0 | R106: 1 | S106: 1 | T106: 0 | U106: 0 | V106: 0 | W106: 0 | X106: 0 | Y106: 0 | Z106: 0 | AA106: 0 | AB106: 0 | AC106: 0 | AD106: 0 | AE106: 0 | AF106: 0 | AG106: 0 | AH106: 0 | AI106: 0 | AJ106: 1 | AK106: 0 | AM106: =AVERAGE(C106:F106) -> 0 | AN106: =STDEV(C106:F106) -> 0 | AO106: =AVERAGE(U106:X106) -> 0 | AP106: =STDEV(U106:X106) -> 0 | AQ106: =AVERAGE(N106:Q106) -> 0 | AR106: =STDEV(N106:Q106) -> 0
A107: ENSG00000138758 | B107: 40787 | C107: 175 | D107: 191 | E107: 114 | F107: 134 | G107: 41 | H107: 32 | I107: 41 | J107: 63 | K107: 63 | L107: 60 | M107: 60 | N107: 49 | O107: 54 | P107: 52 | Q107: 52 | R107: 58 | S107: 58 | T107: 60 | U107: 230 | V107: 253 | W107: 234 | X107: 228 | Y107: 335 | Z107: 327 | AA107: 331 | AB107: 310 | AC107: 302 | AD107: 321 | AE107: 338 | AF107: 329 | AG107: 326 | AH107: 323 | AI107: 383 | AJ107: 315 | AK107: 367 | AM107: =AVERAGE(C107:F107) -> 153 | AN107: =STDEV(C107:F107) -> 36 | AO107: =AVERAGE(U107:X107) -> 236 | AP107: =STDEV(U107:X107) -> 12 | AQ107: =AVERAGE(N107:Q107) -> 52 | AR107: =STDEV(N107:Q107) -> 2
A108: ENSG00000140623 | B108: 41153 | C108: 0 | D108: 0 | E108: 0 | F108: 0 | G108: 0 | H108: 0 | I108: 1 | J108: 0 | K108: 0 | L108: 1 | M108: 0 | N108: 0 | O108: 0 | P108: 0 | Q108: 0 | R108: 0 | S108: 0 | T108: 0 | U108: 0 | V108: 0 | W108: 0 | X108: 0 | Y108: 0 | Z108: 0 | AA108: 0 | AB108: 0 | AC108: 0 | AD108: 0 | AE108: 0 | AF108: 0 | AG108: 0 | AH108: 0 | AI108: 0 | AJ108: 0 | AK108: 0 | AM108: =AVERAGE(C108:F108) -> 0 | AN108: =STDEV(C108:F108) -> 0 | AO108: =AVERAGE(U108:X108) -> 0 | AP108: =STDEV(U108:X108) -> 0 | AQ108: =AVERAGE(N108:Q108) -> 0 | AR108: =STDEV(N108:Q108) -> 0
A109: ENSG00000154997 | B109: 41883 | C109: 0 | D109: 0 | E109: 0 | F109: 0 | G109: 0 | H109: 0 | I109: 0 | J109: 0 | K109: 0 | L109: 0 | M109: 0 | N109: 0 | O109: 0 | P109: 0 | Q109: 0 | R109: 0 | S109: 0 | T109: 0 | U109: 0 | V109: 0 | W109: 0 | X109: 0 | Y109: 0 | Z109: 0 | AA109: 0 | AB109: 0 | AC109: 0 | AD109: 0 | AE109: 0 | AF109: 0 | AG109: 0 | AH109: 0 | AI109: 0 | AJ109: 0 | AK109: 0 | AM109: =AVERAGE(C109:F109) -> 0 | AN109: =STDEV(C109:F109) -> 0 | AO109: =AVERAGE(U109:X109) -> 0 | AP109: =STDEV(U109:X109) -> 0 | AQ109: =AVERAGE(N109:Q109) -> 0 | AR109: =STDEV(N109:Q109) -> 0
A110: ENSG00000183291 | B110: 42248 | C110: 274 | D110: 227 | E110: 245 | F110: 242 | G110: 132 | H110: 116 | I110: 117 | J110: 160 | K110: 169 | L110: 164 | M110: 177 | N110: 143 | O110: 151 | P110: 156 | Q110: 146 | R110: 183 | S110: 180 | T110: 164 | U110: 242 | V110: 244 | W110: 228 | X110: 235 | Y110: 164 | Z110: 157 | AA110: 157 | AB110: 161 | AC110: 177 | AD110: 172 | AE110: 183 | AF110: 155 | AG110: 157 | AH110: 158 | AI110: 183 | AJ110: 157 | AK110: 156 | AM110: =AVERAGE(C110:F110) -> 247 | AN110: =STDEV(C110:F110) -> 20 | AO110: =AVERAGE(U110:X110) -> 237 | AP110: =STDEV(U110:X110) -> 7 | AQ110: =AVERAGE(N110:Q110) -> 149 | AR110: =STDEV(N110:Q110) -> 5
A111: ENSG00000201285 | B111: 5S_rRNA | C111: 0 | D111: 0 | E111: 0 | F111: 0 | G111: 0 | H111: 0 | I111: 0 | J111: 0 | K111: 0 | L111: 0 | M111: 0 | N111: 0 | O111: 0 | P111: 0 | Q111: 0 | R111: 0 | S111: 0 | T111: 0 | U111: 0 | V111: 0 | W111: 0 | X111: 0 | Y111: 0 | Z111: 0 | AA111: 0 | AB111: 0 | AC111: 0 | AD111: 0 | AE111: 0 | AF111: 0 | AG111: 0 | AH111: 0 | AI111: 0 | AJ111: 0 | AK111: 0 | AM111: =AVERAGE(C111:F111) -> 0 | AN111: =STDEV(C111:F111) -> 0 | AO111: =AVERAGE(U111:X111) -> 0 | AP111: =STDEV(U111:X111) -> 0 | AQ111: =AVERAGE(N111:Q111) -> 0 | AR111: =STDEV(N111:Q111) -> 0
A112: ENSG00000212595 | B112: 5S_rRNA | C112: 0 | D112: 0 | E112: 0 | F112: 0 | G112: 0 | H112: 0 | I112: 0 | J112: 0 | K112: 0 | L112: 0 | M112: 0 | N112: 0 | O112: 0 | P112: 0 | Q112: 0 | R112: 0 | S112: 0 | T112: 0 | U112: 0 | V112: 0 | W112: 0 | X112: 0 | Y112: 0 | Z112: 0 | AA112: 0 | AB112: 0 | AC112: 0 | AD112: 0 | AE112: 0 | AF112: 0 | AG112: 0 | AH112: 0 | AI112: 0 | AJ112: 0 | AK112: 0 | AM112: =AVERAGE(C112:F112) -> 0 | AN112: =STDEV(C112:F112) -> 0 | AO112: =AVERAGE(U112:X112) -> 0 | AP112: =STDEV(U112:X112) -> 0 | AQ112: =AVERAGE(N112:Q112) -> 0 | AR112: =STDEV(N112:Q112) -> 0
A113: ENSG00000261122 | B113: 5S_rRNA | C113: 0 | D113: 0 | E113: 0 | F113: 0 | G113: 0 | H113: 0 | I113: 0 | J113: 0 | K113: 0 | L113: 0 | M113: 0 | N113: 0 | O113: 0 | P113: 0 | Q113: 0 | R113: 0 | S113: 0 | T113: 0 | U113: 0 | V113: 0 | W113: 0 | X113: 0 | Y113: 0 | Z113: 0 | AA113: 0 | AB113: 0 | AC113: 0 | AD113: 0 | AE113: 0 | AF113: 0 | AG113: 0 | AH113: 0 | AI113: 0 | AJ113: 0 | AK113: 0 | AM113: =AVERAGE(C113:F113) -> 0 | AN113: =STDEV(C113:F113) -> 0 | AO113: =AVERAGE(U113:X113) -> 0 | AP113: =STDEV(U113:X113) -> 0 | AQ113: =AVERAGE(N113:Q113) -> 0 | AR113: =STDEV(N113:Q113) -> 0
A114: ENSG00000271924 | B114: 5S_rRNA | C114: 0 | D114: 0 | E114: 0 | F114: 0 | G114: 0 | H114: 0 | I114: 0 | J114: 0 | K114: 0 | L114: 0 | M114: 0 | N114: 0 | O114: 0 | P114: 0 | Q114: 0 | R114: 0 | S114: 0 | T114: 0 | U114: 0 | V114: 0 | W114: 0 | X114: 0 | Y114: 4 | Z114: 0 | AA114: 0 | AB114: 0 | AC114: 0 | AD114: 0 | AE114: 0 | AF114: 0 | AG114: 0 | AH114: 0 | AI114: 0 | AJ114: 0 | AK114: 0 | AM114: =AVERAGE(C114:F114) -> 0 | AN114: =STDEV(C114:F114) -> 0 | AO114: =AVERAGE(U114:X114) -> 0 | AP114: =STDEV(U114:X114) -> 0 | AQ114: =AVERAGE(N114:Q114) -> 0 | AR114: =STDEV(N114:Q114) -> 0
A115: ENSG00000272253 | B115: 5S_rRNA | C115: 0 | D115: 0 | E115: 0 | F115: 0 | G115: 0 | H115: 0 | I115: 0 | J115: 0 | K115: 0 | L115: 0 | M115: 0 | N115: 0 | O115: 0 | P115: 0 | Q115: 0 | R115: 0 | S115: 0 | T115: 0 | U115: 0 | V115: 0 | W115: 0 | X115: 0 | Y115: 0 | Z115: 0 | AA115: 0 | AB115: 0 | AC115: 0 | AD115: 0 | AE115: 0 | AF115: 0 | AG115: 0 | AH115: 0 | AI115: 0 | AJ115: 0 | AK115: 0 | AM115: =AVERAGE(C115:F115) -> 0 | AN115: =STDEV(C115:F115) -> 0 | AO115: =AVERAGE(U115:X115) -> 0 | AP115: =STDEV(U115:X115) -> 0 | AQ115: =AVERAGE(N115:Q115) -> 0 | AR115: =STDEV(N115:Q115) -> 0
A116: ENSG00000272351 | B116: 5S_rRNA | C116: 0 | D116: 0 | E116: 0 | F116: 0 | G116: 0 | H116: 0 | I116: 0 | J116: 0 | K116: 0 | L116: 0 | M116: 0 | N116: 0 | O116: 0 | P116: 0 | Q116: 0 | R116: 0 | S116: 0 | T116: 0 | U116: 0 | V116: 0 | W116: 0 | X116: 0 | Y116: 0 | Z116: 0 | AA116: 0 | AB116: 0 | AC116: 0 | AD116: 0 | AE116: 0 | AF116: 0 | AG116: 0 | AH116: 0 | AI116: 0 | AJ116: 0 | AK116: 0 | AM116: =AVERAGE(C116:F116) -> 0 | AN116: =STDEV(C116:F116) -> 0 | AO116: =AVERAGE(U116:X116) -> 0 | AP116: =STDEV(U116:X116) -> 0 | AQ116: =AVERAGE(N116:Q116) -> 0 | AR116: =STDEV(N116:Q116) -> 0
A117: ENSG00000272435 | B117: 5S_rRNA | C117: 0 | D117: 0 | E117: 0 | F117: 0 | G117: 0 | H117: 0 | I117: 0 | J117: 0 | K117: 0 | L117: 0 | M117: 0 | N117: 0 | O117: 0 | P117: 0 | Q117: 0 | R117: 0 | S117: 0 | T117: 0 | U117: 0 | V117: 0 | W117: 0 | X117: 0 | Y117: 0 | Z117: 0 | AA117: 0 | AB117: 0 | AC117: 0 | AD117: 0 | AE117: 0 | AF117: 0 | AG117: 0 | AH117: 0 | AI117: 0 | AJ117: 0 | AK117: 0 | AM117: =AVERAGE(C117:F117) -> 0 | AN117: =STDEV(C117:F117) -> 0 | AO117: =AVERAGE(U117:X117) -> 0 | AP117: =STDEV(U117:X117) -> 0 | AQ117: =AVERAGE(N117:Q117) -> 0 | AR117: =STDEV(N117:Q117) -> 0
A118: ENSG00000232512 | B118: 7SK | C118: 0 | D118: 0 | E118: 0 | F118: 0 | G118: 0 | H118: 0 | I118: 0 | J118: 0 | K118: 0 | L118: 0 | M118: 0 | N118: 0 | O118: 0 | P118: 0 | Q118: 0 | R118: 0 | S118: 0 | T118: 0 | U118: 0 | V118: 0 | W118: 0 | X118: 0 | Y118: 0 | Z118: 0 | AA118: 0 | AB118: 0 | AC118: 0 | AD118: 0 | AE118: 0 | AF118: 0 | AG118: 0 | AH118: 0 | AI118: 0 | AJ118: 0 | AK118: 0 | AM118: =AVERAGE(C118:F118) -> 0 | AN118: =STDEV(C118:F118) -> 0 | AO118: =AVERAGE(U118:X118) -> 0 | AP118: =STDEV(U118:X118) -> 0 | AQ118: =AVERAGE(N118:Q118) -> 0 | AR118: =STDEV(N118:Q118) -> 0
A119: ENSG00000249352 | B119: 7SK | C119: 0 | D119: 0 | E119: 0 | F119: 0 | G119: 0 | H119: 0 | I119: 0 | J119: 0 | K119: 0 | L119: 0 | M119: 0 | N119: 0 | O119: 0 | P119: 0 | Q119: 0 | R119: 0 | S119: 0 | T119: 0 | U119: 0 | V119: 0 | W119: 0 | X119: 0 | Y119: 0 | Z119: 0 | AA119: 0 | AB119: 0 | AC119: 0 | AD119: 0 | AE119: 0 | AF119: 0 | AG119: 0 | AH119: 0 | AI119: 0 | AJ119: 0 | AK119: 0 | AM119: =AVERAGE(C119:F119) -> 0 | AN119: =STDEV(C119:F119) -> 0 | AO119: =AVERAGE(U119:X119) -> 0 | AP119: =STDEV(U119:X119) -> 0 | AQ119: =AVERAGE(N119:Q119) -> 0 | AR119: =STDEV(N119:Q119) -> 0
A120: ENSG00000254144 | B120: 7SK | C120: 1 | D120: 0 | E120: 1 | F120: 0 | G120: 0 | H120: 0 | I120: 0 | J120: 0 | K120: 0 | L120: 0 | M120: 0 | N120: 0 | O120: 0 | P120: 0 | Q120: 0 | R120: 0 | S120: 0 | T120: 0 | U120: 0 | V120: 1 | W120: 1 | X120: 0 | Y120: 0 | Z120: 1 | AA120: 0 | AB120: 1 | AC120: 0 | AD120: 0 | AE120: 0 | AF120: 1 | AG120: 0 | AH120: 0 | AI120: 0 | AJ120: 0 | AK120: 0 | AM120: =AVERAGE(C120:F120) -> 1 | AN120: =STDEV(C120:F120) -> 1 | AO120: =AVERAGE(U120:X120) -> 0 | AP120: =STDEV(U120:X120) -> 0 | AQ120: =AVERAGE(N120:Q120) -> 0 | AR120: =STDEV(N120:Q120) -> 0
A121: ENSG00000260682 | B121: 7SK | C121: 0 | D121: 0 | E121: 0 | F121: 0 | G121: 2 | H121: 3 | I121: 2 | J121: 1 | K121: 1 | L121: 1 | M121: 1 | N121: 1 | O121: 0 | P121: 1 | Q121: 1 | R121: 1 | S121: 0 | T121: 1 | U121: 0 | V121: 0 | W121: 0 | X121: 0 | Y121: 0 | Z121: 0 | AA121: 0 | AB121: 0 | AC121: 0 | AD121: 0 | AE121: 0 | AF121: 0 | AG121: 0 | AH121: 0 | AI121: 0 | AJ121: 0 | AK121: 0 | AM121: =AVERAGE(C121:F121) -> 0 | AN121: =STDEV(C121:F121) -> 0 | AO121: =AVERAGE(U121:X121) -> 0 | AP121: =STDEV(U121:X121) -> 0 | AQ121: =AVERAGE(N121:Q121) -> 1 | AR121: =STDEV(N121:Q121) -> 0
A122: ENSG00000271765 | B122: 7SK | C122: 0 | D122: 0 | E122: 0 | F122: 0 | G122: 0 | H122: 0 | I122: 0 | J122: 0 | K122: 0 | L122: 0 | M122: 0 | N122: 0 | O122: 0 | P122: 0 | Q122: 0 | R122: 0 | S122: 0 | T122: 0 | U122: 0 | V122: 0 | W122: 0 | X122: 0 | Y122: 0 | Z122: 0 | AA122: 0 | AB122: 0 | AC122: 0 | AD122: 0 | AE122: 0 | AF122: 0 | AG122: 0 | AH122: 0 | AI122: 0 | AJ122: 0 | AK122: 0 | AM122: =AVERAGE(C122:F122) -> 0 | AN122: =STDEV(C122:F122) -> 0 | AO122: =AVERAGE(U122:X122) -> 0 | AP122: =STDEV(U122:X122) -> 0 | AQ122: =AVERAGE(N122:Q122) -> 0 | AR122: =STDEV(N122:Q122) -> 0
A123: ENSG00000271814 | B123: 7SK | C123: 0 | D123: 0 | E123: 0 | F123: 0 | G123: 0 | H123: 0 | I123: 0 | J123: 0 | K123: 0 | L123: 0 | M123: 0 | N123: 0 | O123: 0 | P123: 0 | Q123: 0 | R123: 0 | S123: 0 | T123: 0 | U123: 0 | V123: 0 | W123: 0 | X123: 0 | Y123: 0 | Z123: 0 | AA123: 0 | AB123: 0 | AC123: 0 | AD123: 0 | AE123: 0 | AF123: 0 | AG123: 0 | AH123: 0 | AI123: 0 | AJ123: 0 | AK123: 0 | AM123: =AVERAGE(C123:F123) -> 0 | AN123: =STDEV(C123:F123) -> 0 | AO123: =AVERAGE(U123:X123) -> 0 | AP123: =STDEV(U123:X123) -> 0 | AQ123: =AVERAGE(N123:Q123) -> 0 | AR123: =STDEV(N123:Q123) -> 0
A124: ENSG00000271818 | B124: 7SK | C124: 0 | D124: 0 | E124: 0 | F124: 0 | G124: 0 | H124: 0 | I124: 0 | J124: 0 | K124: 0 | L124: 0 | M124: 0 | N124: 0 | O124: 0 | P124: 0 | Q124: 0 | R124: 0 | S124: 0 | T124: 0 | U124: 0 | V124: 0 | W124: 0 | X124: 0 | Y124: 0 | Z124: 0 | AA124: 0 | AB124: 0 | AC124: 0 | AD124: 0 | AE124: 0 | AF124: 0 | AG124: 0 | AH124: 0 | AI124: 0 | AJ124: 0 | AK124: 0 | AM124: =AVERAGE(C124:F124) -> 0 | AN124: =STDEV(C124:F124) -> 0 | AO124: =AVERAGE(U124:X124) -> 0 | AP124: =STDEV(U124:X124) -> 0 | AQ124: =AVERAGE(N124:Q124) -> 0 | AR124: =STDEV(N124:Q124) -> 0
A125: ENSG00000121410 | B125: A1BG | C125: 3 | D125: 3 | E125: 12 | F125: 7 | G125: 10 | H125: 12 | I125: 10 | J125: 8 | K125: 8 | L125: 8 | M125: 11 | N125: 7 | O125: 6 | P125: 6 | Q125: 5 | R125: 5 | S125: 6 | T125: 8 | U125: 10 | V125: 15 | W125: 14 | X125: 20 | Y125: 10 | Z125: 12 | AA125: 15 | AB125: 15 | AC125: 18 | AD125: 12 | AE125: 11 | AF125: 31 | AG125: 29 | AH125: 25 | AI125: 14 | AJ125: 25 | AK125: 20 | AM125: =AVERAGE(C125:F125) -> 6 | AN125: =STDEV(C125:F125) -> 4 | AO125: =AVERAGE(U125:X125) -> 15 | AP125: =STDEV(U125:X125) -> 4 | AQ125: =AVERAGE(N125:Q125) -> 6 | AR125: =STDEV(N125:Q125) -> 1
A126: ENSG00000268895 | B126: A1BG-AS1 | C126: 6 | D126: 7 | E126: 9 | F126: 7 | G126: 3 | H126: 2 | I126: 4 | J126: 4 | K126: 3 | L126: 3 | M126: 3 | N126: 4 | O126: 4 | P126: 4 | Q126: 3 | R126: 2 | S126: 3 | T126: 3 | U126: 15 | V126: 15 | W126: 15 | X126: 15 | Y126: 19 | Z126: 18 | AA126: 18 | AB126: 21 | AC126: 22 | AD126: 19 | AE126: 20 | AF126: 33 | AG126: 30 | AH126: 31 | AI126: 25 | AJ126: 32 | AK126: 28 | AM126: =AVERAGE(C126:F126) -> 7 | AN126: =STDEV(C126:F126) -> 1 | AO126: =AVERAGE(U126:X126) -> 15 | AP126: =STDEV(U126:X126) -> 0 | AQ126: =AVERAGE(N126:Q126) -> 4 | AR126: =STDEV(N126:Q126) -> 0
A127: ENSG00000148584 | B127: A1CF | C127: 0 | D127: 0 | E127: 0 | F127: 0 | G127: 0 | H127: 0 | I127: 0 | J127: 0 | K127: 0 | L127: 0 | M127: 0 | N127: 0 | O127: 0 | P127: 0 | Q127: 0 | R127: 0 | S127: 0 | T127: 0 | U127: 0 | V127: 0 | W127: 0 | X127: 0 | Y127: 0 | Z127: 0 | AA127: 0 | AB127: 0 | AC127: 0 | AD127: 0 | AE127: 0 | AF127: 0 | AG127: 0 | AH127: 0 | AI127: 0 | AJ127: 0 | AK127: 0 | AM127: =AVERAGE(C127:F127) -> 0 | AN127: =STDEV(C127:F127) -> 0 | AO127: =AVERAGE(U127:X127) -> 0 | AP127: =STDEV(U127:X127) -> 0 | AQ127: =AVERAGE(N127:Q127) -> 0 | AR127: =STDEV(N127:Q127) -> 0
A128: ENSG00000175899 | B128: A2M | C128: 0 | D128: 0 | E128: 0 | F128: 1 | G128: 0 | H128: 0 | I128: 0 | J128: 0 | K128: 0 | L128: 0 | M128: 0 | N128: 0 | O128: 0 | P128: 0 | Q128: 0 | R128: 0 | S128: 0 | T128: 0 | U128: 1 | V128: 1 | W128: 1 | X128: 1 | Y128: 0 | Z128: 0 | AA128: 0 | AB128: 2 | AC128: 2 | AD128: 3 | AE128: 2 | AF128: 43 | AG128: 43 | AH128: 46 | AI128: 9 | AJ128: 9 | AK128: 6 | AM128: =AVERAGE(C128:F128) -> 1 | AN128: =STDEV(C128:F128) -> 1 | AO128: =AVERAGE(U128:X128) -> 1 | AP128: =STDEV(U128:X128) -> 0 | AQ128: =AVERAGE(N128:Q128) -> 0 | AR128: =STDEV(N128:Q128) -> 0
A129: ENSG00000245105 | B129: A2M-AS1 | C129: 0 | D129: 0 | E129: 1 | F129: 1 | G129: 0 | H129: 0 | I129: 0 | J129: 0 | K129: 0 | L129: 0 | M129: 0 | N129: 0 | O129: 0 | P129: 0 | Q129: 0 | R129: 0 | S129: 0 | T129: 0 | U129: 0 | V129: 0 | W129: 0 | X129: 0 | Y129: 1 | Z129: 1 | AA129: 1 | AB129: 2 | AC129: 2 | AD129: 2 | AE129: 2 | AF129: 1 | AG129: 1 | AH129: 1 | AI129: 1 | AJ129: 1 | AK129: 1 | AM129: =AVERAGE(C129:F129) -> 0 | AN129: =STDEV(C129:F129) -> 0 | AO129: =AVERAGE(U129:X129) -> 0 | AP129: =STDEV(U129:X129) -> 0 | AQ129: =AVERAGE(N129:Q129) -> 0 | AR129: =STDEV(N129:Q129) -> 0
A130: ENSG00000166535 | B130: A2ML1 | C130: 0 | D130: 0 | E130: 0 | F130: 0 | G130: 7 | H130: 5 | I130: 5 | J130: 7 | K130: 9 | L130: 8 | M130: 7 | N130: 5 | O130: 4 | P130: 3 | Q130: 4 | R130: 4 | S130: 4 | T130: 8 | U130: 0 | V130: 0 | W130: 0 | X130: 0 | Y130: 0 | Z130: 0 | AA130: 0 | AB130: 0 | AC130: 0 | AD130: 0 | AE130: 0 | AF130: 0 | AG130: 0 | AH130: 0 | AI130: 0 | AJ130: 0 | AK130: 0 | AM130: =AVERAGE(C130:F130) -> 0 | AN130: =STDEV(C130:F130) -> 0 | AO130: =AVERAGE(U130:X130) -> 0 | AP130: =STDEV(U130:X130) -> 0 | AQ130: =AVERAGE(N130:Q130) -> 4 | AR130: =STDEV(N130:Q130) -> 1
A131: ENSG00000256661 | B131: A2ML1-AS1 | C131: 0 | D131: 0 | E131: 0 | F131: 0 | G131: 0 | H131: 1 | I131: 0 | J131: 1 | K131: 0 | L131: 0 | M131: 0 | N131: 0 | O131: 0 | P131: 0 | Q131: 0 | R131: 0 | S131: 0 | T131: 0 | U131: 0 | V131: 0 | W131: 0 | X131: 0 | Y131: 0 | Z131: 0 | AA131: 0 | AB131: 0 | AC131: 0 | AD131: 0 | AE131: 0 | AF131: 0 | AG131: 0 | AH131: 0 | AI131: 0 | AJ131: 0 | AK131: 0 | AM131: =AVERAGE(C131:F131) -> 0 | AN131: =STDEV(C131:F131) -> 0 | AO131: =AVERAGE(U131:X131) -> 0 | AP131: =STDEV(U131:X131) -> 0 | AQ131: =AVERAGE(N131:Q131) -> 0 | AR131: =STDEV(N131:Q131) -> 0
A132: ENSG00000256904 | B132: A2ML1-AS2 | C132: 0 | D132: 0 | E132: 0 | F132: 0 | G132: 0 | H132: 0 | I132: 0 | J132: 0 | K132: 0 | L132: 0 | M132: 0 | N132: 0 | O132: 0 | P132: 0 | Q132: 0 | R132: 0 | S132: 0 | T132: 0 | U132: 0 | V132: 0 | W132: 0 | X132: 0 | Y132: 0 | Z132: 0 | AA132: 0 | AB132: 0 | AC132: 0 | AD132: 0 | AE132: 0 | AF132: 0 | AG132: 0 | AH132: 0 | AI132: 0 | AJ132: 0 | AK132: 0 | AM132: =AVERAGE(C132:F132) -> 0 | AN132: =STDEV(C132:F132) -> 0 | AO132: =AVERAGE(U132:X132) -> 0 | AP132: =STDEV(U132:X132) -> 0 | AQ132: =AVERAGE(N132:Q132) -> 0 | AR132: =STDEV(N132:Q132) -> 0
A133: ENSG00000256069 | B133: A2MP1 | C133: 0 | D133: 0 | E133: 0 | F133: 0 | G133: 0 | H133: 0 | I133: 0 | J133: 0 | K133: 0 | L133: 0 | M133: 0 | N133: 0 | O133: 0 | P133: 0 | Q133: 0 | R133: 0 | S133: 0 | T133: 0 | U133: 0 | V133: 0 | W133: 0 | X133: 0 | Y133: 0 | Z133: 0 | AA133: 0 | AB133: 0 | AC133: 0 | AD133: 0 | AE133: 0 | AF133: 0 | AG133: 0 | AH133: 0 | AI133: 0 | AJ133: 0 | AK133: 0 | AM133: =AVERAGE(C133:F133) -> 0 | AN133: =STDEV(C133:F133) -> 0 | AO133: =AVERAGE(U133:X133) -> 0 | AP133: =STDEV(U133:X133) -> 0 | AQ133: =AVERAGE(N133:Q133) -> 0 | AR133: =STDEV(N133:Q133) -> 0
A134: ENSG00000184389 | B134: A3GALT2 | C134: 0 | D134: 0 | E134: 0 | F134: 0 | G134: 0 | H134: 0 | I134: 0 | J134: 0 | K134: 0 | L134: 0 | M134: 0 | N134: 0 | O134: 0 | P134: 0 | Q134: 0 | R134: 0 | S134: 0 | T134: 0 | U134: 0 | V134: 0 | W134: 0 | X134: 0 | Y134: 0 | Z134: 0 | AA134: 0 | AB134: 0 | AC134: 0 | AD134: 0 | AE134: 0 | AF134: 0 | AG134: 0 | AH134: 0 | AI134: 0 | AJ134: 0 | AK134: 0 | AM134: =AVERAGE(C134:F134) -> 0 | AN134: =STDEV(C134:F134) -> 0 | AO134: =AVERAGE(U134:X134) -> 0 | AP134: =STDEV(U134:X134) -> 0 | AQ134: =AVERAGE(N134:Q134) -> 0 | AR134: =STDEV(N134:Q134) -> 0
A135: ENSG00000128274 | B135: A4GALT | C135: 4 | D135: 6 | E135: 8 | F135: 2 | G135: 11 | H135: 11 | I135: 13 | J135: 8 | K135: 7 | L135: 5 | M135: 5 | N135: 5 | O135: 4 | P135: 4 | Q135: 3 | R135: 1 | S135: 2 | T135: 3 | U135: 1 | V135: 1 | W135: 1 | X135: 1 | Y135: 4 | Z135: 6 | AA135: 5 | AB135: 3 | AC135: 4 | AD135: 2 | AE135: 2 | AF135: 2 | AG135: 2 | AH135: 2 | AI135: 2 | AJ135: 3 | AK135: 3 | AM135: =AVERAGE(C135:F135) -> 5 | AN135: =STDEV(C135:F135) -> 2 | AO135: =AVERAGE(U135:X135) -> 1 | AP135: =STDEV(U135:X135) -> 0 | AQ135: =AVERAGE(N135:Q135) -> 4 | AR135: =STDEV(N135:Q135) -> 1
A136: ENSG00000118017 | B136: A4GNT | C136: 0 | D136: 0 | E136: 0 | F136: 0 | G136: 0 | H136: 0 | I136: 0 | J136: 0 | K136: 0 | L136: 0 | M136: 0 | N136: 0 | O136: 0 | P136: 0 | Q136: 0 | R136: 0 | S136: 0 | T136: 0 | U136: 0 | V136: 0 | W136: 0 | X136: 0 | Y136: 0 | Z136: 0 | AA136: 0 | AB136: 0 | AC136: 0 | AD136: 0 | AE136: 0 | AF136: 0 | AG136: 0 | AH136: 0 | AI136: 0 | AJ136: 0 | AK136: 0 | AM136: =AVERAGE(C136:F136) -> 0 | AN136: =STDEV(C136:F136) -> 0 | AO136: =AVERAGE(U136:X136) -> 0 | AP136: =STDEV(U136:X136) -> 0 | AQ136: =AVERAGE(N136:Q136) -> 0 | AR136: =STDEV(N136:Q136) -> 0
A137: ENSG00000094914 | B137: AAAS | C137: 59 | D137: 60 | E137: 53 | F137: 60 | G137: 94 | H137: 86 | I137: 92 | J137: 80 | K137: 71 | L137: 73 | M137: 74 | N137: 69 | O137: 70 | P137: 72 | Q137: 72 | R137: 78 | S137: 79 | T137: 59 | U137: 60 | V137: 58 | W137: 64 | X137: 63 | Y137: 41 | Z137: 44 | AA137: 47 | AB137: 48 | AC137: 47 | AD137: 49 | AE137: 49 | AF137: 64 | AG137: 64 | AH137: 71 | AI137: 48 | AJ137: 47 | AK137: 55 | AM137: =AVERAGE(C137:F137) -> 58 | AN137: =STDEV(C137:F137) -> 3 | AO137: =AVERAGE(U137:X137) -> 61 | AP137: =STDEV(U137:X137) -> 3 | AQ137: =AVERAGE(N137:Q137) -> 71 | AR137: =STDEV(N137:Q137) -> 1
A138: ENSG00000081760 | B138: AACS | C138: 19 | D138: 22 | E138: 23 | F138: 21 | G138: 26 | H138: 21 | I138: 30 | J138: 36 | K138: 35 | L138: 33 | M138: 32 | N138: 35 | O138: 34 | P138: 34 | Q138: 34 | R138: 27 | S138: 28 | T138: 32 | U138: 21 | V138: 19 | W138: 20 | X138: 19 | Y138: 23 | Z138: 21 | AA138: 24 | AB138: 21 | AC138: 24 | AD138: 23 | AE138: 21 | AF138: 27 | AG138: 27 | AH138: 26 | AI138: 25 | AJ138: 26 | AK138: 27 | AM138: =AVERAGE(C138:F138) -> 21 | AN138: =STDEV(C138:F138) -> 1 | AO138: =AVERAGE(U138:X138) -> 20 | AP138: =STDEV(U138:X138) -> 1 | AQ138: =AVERAGE(N138:Q138) -> 34 | AR138: =STDEV(N138:Q138) -> 1
A139: ENSG00000250420 | B139: AACSP1 | C139: 0 | D139: 0 | E139: 0 | F139: 0 | G139: 0 | H139: 0 | I139: 0 | J139: 4 | K139: 2 | L139: 2 | M139: 3 | N139: 2 | O139: 1 | P139: 1 | Q139: 2 | R139: 1 | S139: 1 | T139: 1 | U139: 0 | V139: 0 | W139: 0 | X139: 0 | Y139: 0 | Z139: 0 | AA139: 0 | AB139: 0 | AC139: 0 | AD139: 0 | AE139: 0 | AF139: 0 | AG139: 0 | AH139: 0 | AI139: 0 | AJ139: 0 | AK139: 0 | AM139: =AVERAGE(C139:F139) -> 0 | AN139: =STDEV(C139:F139) -> 0 | AO139: =AVERAGE(U139:X139) -> 0 | AP139: =STDEV(U139:X139) -> 0 | AQ139: =AVERAGE(N139:Q139) -> 1 | AR139: =STDEV(N139:Q139) -> 0
A140: ENSG00000114771 | B140: AADAC | C140: 0 | D140: 0 | E140: 0 | F140: 0 | G140: 0 | H140: 0 | I140: 0 | J140: 0 | K140: 0 | L140: 0 | M140: 0 | N140: 0 | O140: 0 | P140: 0 | Q140: 0 | R140: 0 | S140: 0 | T140: 0 | U140: 0 | V140: 0 | W140: 0 | X140: 0 | Y140: 0 | Z140: 0 | AA140: 0 | AB140: 0 | AC140: 0 | AD140: 0 | AE140: 0 | AF140: 0 | AG140: 0 | AH140: 0 | AI140: 0 | AJ140: 0 | AK140: 0 | AM140: =AVERAGE(C140:F140) -> 0 | AN140: =STDEV(C140:F140) -> 0 | AO140: =AVERAGE(U140:X140) -> 0 | AP140: =STDEV(U140:X140) -> 0 | AQ140: =AVERAGE(N140:Q140) -> 0 | AR140: =STDEV(N140:Q140) -> 0
A141: ENSG00000197953 | B141: AADACL2 | C141: 0 | D141: 0 | E141: 0 | F141: 0 | G141: 0 | H141: 0 | I141: 0 | J141: 0 | K141: 0 | L141: 0 | M141: 0 | N141: 0 | O141: 0 | P141: 0 | Q141: 0 | R141: 0 | S141: 0 | T141: 0 | U141: 0 | V141: 0 | W141: 0 | X141: 0 | Y141: 0 | Z141: 0 | AA141: 0 | AB141: 0 | AC141: 0 | AD141: 0 | AE141: 0 | AF141: 0 | AG141: 0 | AH141: 0 | AI141: 0 | AJ141: 0 | AK141: 0 | AM141: =AVERAGE(C141:F141) -> 0 | AN141: =STDEV(C141:F141) -> 0 | AO141: =AVERAGE(U141:X141) -> 0 | AP141: =STDEV(U141:X141) -> 0 | AQ141: =AVERAGE(N141:Q141) -> 0 | AR141: =STDEV(N141:Q141) -> 0
A142: ENSG00000188984 | B142: AADACL3 | C142: 0 | D142: 0 | E142: 0 | F142: 0 | G142: 1 | H142: 0 | I142: 1 | J142: 0 | K142: 1 | L142: 2 | M142: 2 | N142: 2 | O142: 2 | P142: 1 | Q142: 2 | R142: 2 | S142: 2 | T142: 5 | U142: 0 | V142: 0 | W142: 0 | X142: 0 | Y142: 0 | Z142: 0 | AA142: 0 | AB142: 0 | AC142: 0 | AD142: 0 | AE142: 0 | AF142: 0 | AG142: 0 | AH142: 0 | AI142: 0 | AJ142: 0 | AK142: 0 | AM142: =AVERAGE(C142:F142) -> 0 | AN142: =STDEV(C142:F142) -> 0 | AO142: =AVERAGE(U142:X142) -> 0 | AP142: =STDEV(U142:X142) -> 0 | AQ142: =AVERAGE(N142:Q142) -> 2 | AR142: =STDEV(N142:Q142) -> 0
A143: ENSG00000204518 | B143: AADACL4 | C143: 0 | D143: 0 | E143: 0 | F143: 0 | G143: 0 | H143: 0 | I143: 0 | J143: 0 | K143: 0 | L143: 0 | M143: 0 | N143: 0 | O143: 0 | P143: 0 | Q143: 0 | R143: 0 | S143: 0 | T143: 0 | U143: 0 | V143: 0 | W143: 0 | X143: 0 | Y143: 0 | Z143: 0 | AA143: 0 | AB143: 0 | AC143: 0 | AD143: 0 | AE143: 0 | AF143: 0 | AG143: 0 | AH143: 0 | AI143: 0 | AJ143: 0 | AK143: 0 | AM143: =AVERAGE(C143:F143) -> 0 | AN143: =STDEV(C143:F143) -> 0 | AO143: =AVERAGE(U143:X143) -> 0 | AP143: =STDEV(U143:X143) -> 0 | AQ143: =AVERAGE(N143:Q143) -> 0 | AR143: =STDEV(N143:Q143) -> 0
A144: ENSG00000109576 | B144: AADAT | C144: 19 | D144: 17 | E144: 16 | F144: 17 | G144: 11 | H144: 8 | I144: 11 | J144: 8 | K144: 9 | L144: 8 | M144: 8 | N144: 10 | O144: 10 | P144: 9 | Q144: 9 | R144: 11 | S144: 11 | T144: 13 | U144: 22 | V144: 23 | W144: 22 | X144: 25 | Y144: 22 | Z144: 20 | AA144: 22 | AB144: 18 | AC144: 17 | AD144: 20 | AE144: 18 | AF144: 19 | AG144: 15 | AH144: 19 | AI144: 13 | AJ144: 14 | AK144: 15 | AM144: =AVERAGE(C144:F144) -> 17 | AN144: =STDEV(C144:F144) -> 1 | AO144: =AVERAGE(U144:X144) -> 23 | AP144: =STDEV(U144:X144) -> 1 | AQ144: =AVERAGE(N144:Q144) -> 9 | AR144: =STDEV(N144:Q144) -> 0
A145: ENSG00000158122 | B145: AAED1 | C145: 10 | D145: 11 | E145: 9 | F145: 11 | G145: 4 | H145: 4 | I145: 4 | J145: 4 | K145: 3 | L145: 3 | M145: 3 | N145: 3 | O145: 3 | P145: 3 | Q145: 3 | R145: 3 | S145: 3 | T145: 4 | U145: 8 | V145: 8 | W145: 8 | X145: 8 | Y145: 7 | Z145: 5 | AA145: 6 | AB145: 5 | AC145: 7 | AD145: 6 | AE145: 7 | AF145: 7 | AG145: 7 | AH145: 9 | AI145: 10 | AJ145: 8 | AK145: 7 | AM145: =AVERAGE(C145:F145) -> 10 | AN145: =STDEV(C145:F145) -> 1 | AO145: =AVERAGE(U145:X145) -> 8 | AP145: =STDEV(U145:X145) -> 0 | AQ145: =AVERAGE(N145:Q145) -> 3 | AR145: =STDEV(N145:Q145) -> 0
A146: ENSG00000103591 | B146: AAGAB | C146: 37 | D146: 39 | E146: 31 | F146: 35 | G146: 18 | H146: 16 | I146: 20 | J146: 34 | K146: 31 | L146: 31 | M146: 35 | N146: 37 | O146: 34 | P146: 42 | Q146: 38 | R146: 40 | S146: 39 | T146: 35 | U146: 35 | V146: 37 | W146: 36 | X146: 33 | Y146: 40 | Z146: 37 | AA146: 37 | AB146: 34 | AC146: 37 | AD146: 37 | AE146: 38 | AF146: 33 | AG146: 34 | AH146: 35 | AI146: 38 | AJ146: 33 | AK146: 36 | AM146: =AVERAGE(C146:F146) -> 36 | AN146: =STDEV(C146:F146) -> 3 | AO146: =AVERAGE(U146:X146) -> 35 | AP146: =STDEV(U146:X146) -> 2 | AQ146: =AVERAGE(N146:Q146) -> 38 | AR146: =STDEV(N146:Q146) -> 3
A147: ENSG00000115977 | B147: AAK1 | C147: 8 | D147: 9 | E147: 7 | F147: 7 | G147: 2 | H147: 1 | I147: 3 | J147: 4 | K147: 5 | L147: 7 | M147: 5 | N147: 4 | O147: 4 | P147: 4 | Q147: 5 | R147: 5 | S147: 5 | T147: 5 | U147: 11 | V147: 10 | W147: 10 | X147: 10 | Y147: 11 | Z147: 11 | AA147: 12 | AB147: 12 | AC147: 10 | AD147: 12 | AE147: 11 | AF147: 16 | AG147: 18 | AH147: 15 | AI147: 12 | AJ147: 14 | AK147: 14 | AM147: =AVERAGE(C147:F147) -> 8 | AN147: =STDEV(C147:F147) -> 1 | AO147: =AVERAGE(U147:X147) -> 10 | AP147: =STDEV(U147:X147) -> 1 | AQ147: =AVERAGE(N147:Q147) -> 4 | AR147: =STDEV(N147:Q147) -> 0
A148: ENSG00000087884 | B148: AAMDC | C148: 36 | D148: 39 | E148: 33 | F148: 35 | G148: 42 | H148: 47 | I148: 37 | J148: 31 | K148: 31 | L148: 31 | M148: 29 | N148: 33 | O148: 32 | P148: 36 | Q148: 38 | R148: 27 | S148: 25 | T148: 29 | U148: 44 | V148: 43 | W148: 42 | X148: 40 | Y148: 45 | Z148: 40 | AA148: 45 | AB148: 44 | AC148: 43 | AD148: 44 | AE148: 41 | AF148: 47 | AG148: 51 | AH148: 49 | AI148: 59 | AJ148: 52 | AK148: 53 | AM148: =AVERAGE(C148:F148) -> 36 | AN148: =STDEV(C148:F148) -> 2 | AO148: =AVERAGE(U148:X148) -> 42 | AP148: =STDEV(U148:X148) -> 2 | AQ148: =AVERAGE(N148:Q148) -> 35 | AR148: =STDEV(N148:Q148) -> 3
A149: ENSG00000127837 | B149: AAMP | C149: 87 | D149: 90 | E149: 78 | F149: 83 | G149: 89 | H149: 85 | I149: 97 | J149: 89 | K149: 101 | L149: 99 | M149: 91 | N149: 110 | O149: 104 | P149: 107 | Q149: 110 | R149: 119 | S149: 116 | T149: 113 | U149: 79 | V149: 67 | W149: 81 | X149: 68 | Y149: 101 | Z149: 98 | AA149: 102 | AB149: 110 | AC149: 106 | AD149: 93 | AE149: 91 | AF149: 75 | AG149: 83 | AH149: 87 | AI149: 83 | AJ149: 83 | AK149: 85 | AM149: =AVERAGE(C149:F149) -> 85 | AN149: =STDEV(C149:F149) -> 5 | AO149: =AVERAGE(U149:X149) -> 74 | AP149: =STDEV(U149:X149) -> 7 | AQ149: =AVERAGE(N149:Q149) -> 108 | AR149: =STDEV(N149:Q149) -> 3
A150: ENSG00000129673 | B150: AANAT | C150: 0 | D150: 0 | E150: 0 | F150: 0 | G150: 0 | H150: 0 | I150: 0 | J150: 1 | K150: 0 | L150: 1 | M150: 0 | N150: 0 | O150: 0 | P150: 0 | Q150: 0 | R150: 0 | S150: 0 | T150: 1 | U150: 0 | V150: 0 | W150: 0 | X150: 0 | Y150: 0 | Z150: 0 | AA150: 0 | AB150: 0 | AC150: 0 | AD150: 0 | AE150: 0 | AF150: 1 | AG150: 0 | AH150: 0 | AI150: 0 | AJ150: 0 | AK150: 0 | AM150: =AVERAGE(C150:F150) -> 0 | AN150: =STDEV(C150:F150) -> 0 | AO150: =AVERAGE(U150:X150) -> 0 | AP150: =STDEV(U150:X150) -> 0 | AQ150: =AVERAGE(N150:Q150) -> 0 | AR150: =STDEV(N150:Q150) -> 0
A151: ENSG00000131043 | B151: AAR2 | C151: 24 | D151: 26 | E151: 22 | F151: 23 | G151: 26 | H151: 22 | I151: 25 | J151: 21 | K151: 20 | L151: 21 | M151: 21 | N151: 24 | O151: 23 | P151: 23 | Q151: 23 | R151: 31 | S151: 30 | T151: 20 | U151: 26 | V151: 27 | W151: 27 | X151: 27 | Y151: 39 | Z151: 36 | AA151: 38 | AB151: 36 | AC151: 38 | AD151: 35 | AE151: 35 | AF151: 27 | AG151: 26 | AH151: 24 | AI151: 29 | AJ151: 28 | AK151: 28 | AM151: =AVERAGE(C151:F151) -> 24 | AN151: =STDEV(C151:F151) -> 2 | AO151: =AVERAGE(U151:X151) -> 27 | AP151: =STDEV(U151:X151) -> 0 | AQ151: =AVERAGE(N151:Q151) -> 23 | AR151: =STDEV(N151:Q151) -> 0
A152: ENSG00000205002 | B152: AARD | C152: 0 | D152: 0 | E152: 0 | F152: 0 | G152: 1 | H152: 1 | I152: 1 | J152: 1 | K152: 2 | L152: 2 | M152: 1 | N152: 1 | O152: 1 | P152: 1 | Q152: 1 | R152: 2 | S152: 1 | T152: 1 | U152: 0 | V152: 0 | W152: 0 | X152: 0 | Y152: 1 | Z152: 1 | AA152: 0 | AB152: 1 | AC152: 1 | AD152: 1 | AE152: 1 | AF152: 0 | AG152: 0 | AH152: 0 | AI152: 0 | AJ152: 0 | AK152: 1 | AM152: =AVERAGE(C152:F152) -> 0 | AN152: =STDEV(C152:F152) -> 0 | AO152: =AVERAGE(U152:X152) -> 0 | AP152: =STDEV(U152:X152) -> 0 | AQ152: =AVERAGE(N152:Q152) -> 1 | AR152: =STDEV(N152:Q152) -> 0
A153: ENSG00000090861 | B153: AARS | C153: 143 | D153: 100 | E153: 140 | F153: 140 | G153: 73 | H153: 55 | I153: 110 | J153: 330 | K153: 327 | L153: 331 | M153: 319 | N153: 142 | O153: 138 | P153: 138 | Q153: 144 | R153: 141 | S153: 147 | T153: 247 | U153: 147 | V153: 137 | W153: 138 | X153: 136 | Y153: 60 | Z153: 65 | AA153: 63 | AB153: 73 | AC153: 78 | AD153: 75 | AE153: 79 | AF153: 61 | AG153: 64 | AH153: 65 | AI153: 63 | AJ153: 63 | AK153: 69 | AM153: =AVERAGE(C153:F153) -> 131 | AN153: =STDEV(C153:F153) -> 20 | AO153: =AVERAGE(U153:X153) -> 140 | AP153: =STDEV(U153:X153) -> 5 | AQ153: =AVERAGE(N153:Q153) -> 140 | AR153: =STDEV(N153:Q153) -> 3
A154: ENSG00000124608 | B154: AARS2 | C154: 7 | D154: 8 | E154: 6 | F154: 8 | G154: 19 | H154: 18 | I154: 22 | J154: 15 | K154: 12 | L154: 12 | M154: 13 | N154: 15 | O154: 14 | P154: 13 | Q154: 12 | R154: 12 | S154: 12 | T154: 14 | U154: 10 | V154: 10 | W154: 10 | X154: 11 | Y154: 15 | Z154: 17 | AA154: 18 | AB154: 15 | AC154: 15 | AD154: 14 | AE154: 14 | AF154: 9 | AG154: 10 | AH154: 9 | AI154: 5 | AJ154: 6 | AK154: 8 | AM154: =AVERAGE(C154:F154) -> 7 | AN154: =STDEV(C154:F154) -> 1 | AO154: =AVERAGE(U154:X154) -> 10 | AP154: =STDEV(U154:X154) -> 1 | AQ154: =AVERAGE(N154:Q154) -> 13 | AR154: =STDEV(N154:Q154) -> 1
A155: ENSG00000266967 | B155: AARSD1 | C155: 56 | D155: 51 | E155: 53 | F155: 56 | G155: 72 | H155: 70 | I155: 68 | J155: 69 | K155: 61 | L155: 64 | M155: 60 | N155: 64 | O155: 66 | P155: 63 | Q155: 63 | R155: 75 | S155: 64 | T155: 57 | U155: 63 | V155: 59 | W155: 59 | X155: 65 | Y155: 47 | Z155: 48 | AA155: 51 | AB155: 61 | AC155: 65 | AD155: 59 | AE155: 60 | AF155: 73 | AG155: 82 | AH155: 82 | AI155: 75 | AJ155: 74 | AK155: 76 | AM155: =AVERAGE(C155:F155) -> 54 | AN155: =STDEV(C155:F155) -> 3 | AO155: =AVERAGE(U155:X155) -> 61 | AP155: =STDEV(U155:X155) -> 3 | AQ155: =AVERAGE(N155:Q155) -> 64 | AR155: =STDEV(N155:Q155) -> 1
A156: ENSG00000157426 | B156: AASDH | C156: 7 | D156: 7 | E156: 6 | F156: 7 | G156: 9 | H156: 6 | I156: 9 | J156: 11 | K156: 13 | L156: 11 | M156: 11 | N156: 8 | O156: 8 | P156: 9 | Q156: 8 | R156: 7 | S156: 7 | T156: 12 | U156: 7 | V156: 7 | W156: 7 | X156: 6 | Y156: 3 | Z156: 3 | AA156: 3 | AB156: 4 | AC156: 4 | AD156: 5 | AE156: 5 | AF156: 4 | AG156: 4 | AH156: 4 | AI156: 4 | AJ156: 2 | AK156: 4 | AM156: =AVERAGE(C156:F156) -> 7 | AN156: =STDEV(C156:F156) -> 1 | AO156: =AVERAGE(U156:X156) -> 7 | AP156: =STDEV(U156:X156) -> 0 | AQ156: =AVERAGE(N156:Q156) -> 8 | AR156: =STDEV(N156:Q156) -> 0
A157: ENSG00000149313 | B157: AASDHPPT | C157: 34 | D157: 30 | E157: 25 | F157: 27 | G157: 28 | H157: 24 | I157: 22 | J157: 30 | K157: 26 | L157: 30 | M157: 26 | N157: 29 | O157: 31 | P157: 28 | Q157: 29 | R157: 31 | S157: 31 | T157: 29 | U157: 27 | V157: 31 | W157: 30 | X157: 26 | Y157: 35 | Z157: 36 | AA157: 40 | AB157: 37 | AC157: 38 | AD157: 39 | AE157: 39 | AF157: 29 | AG157: 32 | AH157: 34 | AI157: 34 | AJ157: 33 | AK157: 36 | AM157: =AVERAGE(C157:F157) -> 29 | AN157: =STDEV(C157:F157) -> 4 | AO157: =AVERAGE(U157:X157) -> 29 | AP157: =STDEV(U157:X157) -> 2 | AQ157: =AVERAGE(N157:Q157) -> 29 | AR157: =STDEV(N157:Q157) -> 1
A158: ENSG00000008311 | B158: AASS | C158: 30 | D158: 20 | E158: 27 | F158: 25 | G158: 456 | H158: 366 | I158: 438 | J158: 460 | K158: 433 | L158: 425 | M158: 423 | N158: 327 | O158: 334 | P158: 312 | Q158: 322 | R158: 408 | S158: 422 | T158: 502 | U158: 18 | V158: 16 | W158: 15 | X158: 16 | Y158: 8 | Z158: 8 | AA158: 7 | AB158: 8 | AC158: 6 | AD158: 8 | AE158: 9 | AF158: 14 | AG158: 12 | AH158: 14 | AI158: 12 | AJ158: 8 | AK158: 10 | AM158: =AVERAGE(C158:F158) -> 26 | AN158: =STDEV(C158:F158) -> 4 | AO158: =AVERAGE(U158:X158) -> 16 | AP158: =STDEV(U158:X158) -> 1 | AQ158: =AVERAGE(N158:Q158) -> 324 | AR158: =STDEV(N158:Q158) -> 9
A159: ENSG00000108270 | B159: AATF | C159: 34 | D159: 47 | E159: 36 | F159: 35 | G159: 31 | H159: 33 | I159: 32 | J159: 38 | K159: 38 | L159: 39 | M159: 37 | N159: 40 | O159: 42 | P159: 45 | Q159: 45 | R159: 38 | S159: 38 | T159: 33 | U159: 31 | V159: 29 | W159: 30 | X159: 30 | Y159: 49 | Z159: 49 | AA159: 49 | AB159: 40 | AC159: 43 | AD159: 44 | AE159: 41 | AF159: 30 | AG159: 29 | AH159: 29 | AI159: 33 | AJ159: 31 | AK159: 36 | AM159: =AVERAGE(C159:F159) -> 38 | AN159: =STDEV(C159:F159) -> 6 | AO159: =AVERAGE(U159:X159) -> 30 | AP159: =STDEV(U159:X159) -> 1 | AQ159: =AVERAGE(N159:Q159) -> 43 | AR159: =STDEV(N159:Q159) -> 2
A160: ENSG00000181409 | B160: AATK | C160: 0 | D160: 0 | E160: 0 | F160: 0 | G160: 1 | H160: 2 | I160: 2 | J160: 2 | K160: 1 | L160: 1 | M160: 1 | N160: 1 | O160: 1 | P160: 1 | Q160: 0 | R160: 0 | S160: 0 | T160: 1 | U160: 0 | V160: 0 | W160: 0 | X160: 0 | Y160: 0 | Z160: 0 | AA160: 0 | AB160: 0 | AC160: 0 | AD160: 0 | AE160: 0 | AF160: 0 | AG160: 0 | AH160: 0 | AI160: 0 | AJ160: 0 | AK160: 0 | AM160: =AVERAGE(C160:F160) -> 0 | AN160: =STDEV(C160:F160) -> 0 | AO160: =AVERAGE(U160:X160) -> 0 | AP160: =STDEV(U160:X160) -> 0 | AQ160: =AVERAGE(N160:Q160) -> 1 | AR160: =STDEV(N160:Q160) -> 0
A161: ENSG00000225180 | B161: AATK-AS1 | C161: 0 | D161: 0 | E161: 0 | F161: 0 | G161: 0 | H161: 0 | I161: 0 | J161: 0 | K161: 0 | L161: 0 | M161: 0 | N161: 0 | O161: 0 | P161: 0 | Q161: 0 | R161: 0 | S161: 0 | T161: 0 | U161: 0 | V161: 0 | W161: 0 | X161: 0 | Y161: 0 | Z161: 0 | AA161: 0 | AB161: 0 | AC161: 0 | AD161: 0 | AE161: 0 | AF161: 0 | AG161: 0 | AH161: 0 | AI161: 0 | AJ161: 0 | AK161: 0 | AM161: =AVERAGE(C161:F161) -> 0 | AN161: =STDEV(C161:F161) -> 0 | AO161: =AVERAGE(U161:X161) -> 0 | AP161: =STDEV(U161:X161) -> 0 | AQ161: =AVERAGE(N161:Q161) -> 0 | AR161: =STDEV(N161:Q161) -> 0
A162: ENSG00000254180 | B162: AB015752.3 | C162: 0 | D162: 0 | E162: 0 | F162: 0 | G162: 0 | H162: 0 | I162: 0 | J162: 0 | K162: 0 | L162: 0 | M162: 0 | N162: 0 | O162: 0 | P162: 1 | Q162: 1 | R162: 0 | S162: 0 | T162: 0 | U162: 0 | V162: 0 | W162: 0 | X162: 0 | Y162: 0 | Z162: 0 | AA162: 0 | AB162: 0 | AC162: 0 | AD162: 0 | AE162: 0 | AF162: 0 | AG162: 0 | AH162: 0 | AI162: 0 | AJ162: 0 | AK162: 0 | AM162: =AVERAGE(C162:F162) -> 0 | AN162: =STDEV(C162:F162) -> 0 | AO162: =AVERAGE(U162:X162) -> 0 | AP162: =STDEV(U162:X162) -> 0 | AQ162: =AVERAGE(N162:Q162) -> 0 | AR162: =STDEV(N162:Q162) -> 0
A163: ENSG00000228757 | B163: AB019438.66 | C163: 0 | D163: 0 | E163: 0 | F163: 0 | G163: 0 | H163: 0 | I163: 0 | J163: 0 | K163: 0 | L163: 0 | M163: 0 | N163: 0 | O163: 0 | P163: 0 | Q163: 0 | R163: 0 | S163: 0 | T163: 0 | U163: 0 | V163: 0 | W163: 0 | X163: 0 | Y163: 0 | Z163: 0 | AA163: 0 | AB163: 0 | AC163: 0 | AD163: 0 | AE163: 0 | AF163: 0 | AG163: 0 | AH163: 0 | AI163: 0 | AJ163: 0 | AK163: 0 | AM163: =AVERAGE(C163:F163) -> 0 | AN163: =STDEV(C163:F163) -> 0 | AO163: =AVERAGE(U163:X163) -> 0 | AP163: =STDEV(U163:X163) -> 0 | AQ163: =AVERAGE(N163:Q163) -> 0 | AR163: =STDEV(N163:Q163) -> 0
A164: ENSG00000221180 | B164: AB019440.1 | C164: 0 | D164: 0 | E164: 0 | F164: 0 | G164: 0 | H164: 0 | I164: 0 | J164: 0 | K164: 0 | L164: 0 | M164: 0 | N164: 0 | O164: 0 | P164: 0 | Q164: 0 | R164: 0 | S164: 0 | T164: 0 | U164: 0 | V164: 0 | W164: 0 | X164: 0 | Y164: 0 | Z164: 0 | AA164: 0 | AB164: 0 | AC164: 0 | AD164: 0 | AE164: 0 | AF164: 0 | AG164: 0 | AH164: 0 | AI164: 0 | AJ164: 0 | AK164: 0 | AM164: =AVERAGE(C164:F164) -> 0 | AN164: =STDEV(C164:F164) -> 0 | AO164: =AVERAGE(U164:X164) -> 0 | AP164: =STDEV(U164:X164) -> 0 | AQ164: =AVERAGE(N164:Q164) -> 0 | AR164: =STDEV(N164:Q164) -> 0
A165: ENSG00000271201 | B165: AB019440.50 | C165: 0 | D165: 0 | E165: 0 | F165: 0 | G165: 0 | H165: 0 | I165: 0 | J165: 0 | K165: 0 | L165: 0 | M165: 0 | N165: 0 | O165: 0 | P165: 0 | Q165: 0 | R165: 0 | S165: 0 | T165: 0 | U165: 0 | V165: 0 | W165: 0 | X165: 0 | Y165: 0 | Z165: 0 | AA165: 0 | AB165: 0 | AC165: 0 | AD165: 0 | AE165: 0 | AF165: 0 | AG165: 0 | AH165: 0 | AI165: 0 | AJ165: 0 | AK165: 0 | AM165: =AVERAGE(C165:F165) -> 0 | AN165: =STDEV(C165:F165) -> 0 | AO165: =AVERAGE(U165:X165) -> 0 | AP165: =STDEV(U165:X165) -> 0 | AQ165: =AVERAGE(N165:Q165) -> 0 | AR165: =STDEV(N165:Q165) -> 0
A166: ENSG00000225200 | B166: AB019441.29 | C166: 0 | D166: 0 | E166: 0 | F166: 0 | G166: 1 | H166: 1 | I166: 1 | J166: 1 | K166: 1 | L166: 0 | M166: 1 | N166: 1 | O166: 1 | P166: 1 | Q166: 1 | R166: 0 | S166: 0 | T166: 0 | U166: 0 | V166: 1 | W166: 1 | X166: 0 | Y166: 1 | Z166: 0 | AA166: 0 | AB166: 0 | AC166: 0 | AD166: 1 | AE166: 1 | AF166: 0 | AG166: 1 | AH166: 0 | AI166: 0 | AJ166: 0 | AK166: 0 | AM166: =AVERAGE(C166:F166) -> 0 | AN166: =STDEV(C166:F166) -> 0 | AO166: =AVERAGE(U166:X166) -> 0 | AP166: =STDEV(U166:X166) -> 0 | AQ166: =AVERAGE(N166:Q166) -> 1 | AR166: =STDEV(N166:Q166) -> 0
A167: ENSG00000183044 | B167: ABAT | C167: 9 | D167: 6 | E167: 5 | F167: 5 | G167: 5 | H167: 4 | I167: 5 | J167: 8 | K167: 7 | L167: 7 | M167: 7 | N167: 5 | O167: 4 | P167: 5 | Q167: 5 | R167: 4 | S167: 4 | T167: 6 | U167: 5 | V167: 5 | W167: 4 | X167: 4 | Y167: 8 | Z167: 8 | AA167: 8 | AB167: 10 | AC167: 10 | AD167: 10 | AE167: 10 | AF167: 14 | AG167: 14 | AH167: 14 | AI167: 12 | AJ167: 11 | AK167: 12 | AM167: =AVERAGE(C167:F167) -> 6 | AN167: =STDEV(C167:F167) -> 2 | AO167: =AVERAGE(U167:X167) -> 5 | AP167: =STDEV(U167:X167) -> 0 | AQ167: =AVERAGE(N167:Q167) -> 5 | AR167: =STDEV(N167:Q167) -> 0
A168: ENSG00000237215 | B168: ABC12-47043100G14.2 | C168: 0 | D168: 0 | E168: 0 | F168: 0 | G168: 0 | H168: 0 | I168: 0 | J168: 0 | K168: 0 | L168: 0 | M168: 0 | N168: 0 | O168: 0 | P168: 0 | Q168: 0 | R168: 0 | S168: 0 | T168: 0 | U168: 0 | V168: 0 | W168: 0 | X168: 0 | Y168: 0 | Z168: 0 | AA168: 0 | AB168: 0 | AC168: 0 | AD168: 0 | AE168: 0 | AF168: 0 | AG168: 0 | AH168: 0 | AI168: 0 | AJ168: 0 | AK168: 0 | AM168: =AVERAGE(C168:F168) -> 0 | AN168: =STDEV(C168:F168) -> 0 | AO168: =AVERAGE(U168:X168) -> 0 | AP168: =STDEV(U168:X168) -> 0 | AQ168: =AVERAGE(N168:Q168) -> 0 | AR168: =STDEV(N168:Q168) -> 0
A169: ENSG00000226210 | B169: ABC7-42389800N19.1 | C169: 11 | D169: 10 | E169: 14 | F169: 6 | G169: 15 | H169: 16 | I169: 17 | J169: 15 | K169: 13 | L169: 12 | M169: 14 | N169: 15 | O169: 11 | P169: 11 | Q169: 10 | R169: 10 | S169: 10 | T169: 12 | U169: 11 | V169: 11 | W169: 10 | X169: 13 | Y169: 13 | Z169: 13 | AA169: 13 | AB169: 13 | AC169: 14 | AD169: 13 | AE169: 11 | AF169: 15 | AG169: 15 | AH169: 12 | AI169: 7 | AJ169: 11 | AK169: 12 | AM169: =AVERAGE(C169:F169) -> 10 | AN169: =STDEV(C169:F169) -> 3 | AO169: =AVERAGE(U169:X169) -> 11 | AP169: =STDEV(U169:X169) -> 2 | AQ169: =AVERAGE(N169:Q169) -> 12 | AR169: =STDEV(N169:Q169) -> 2
A170: ENSG00000271153 | B170: ABC7-43041300I9.1 | C170: 0 | D170: 0 | E170: 0 | F170: 0 | G170: 0 | H170: 0 | I170: 0 | J170: 0 | K170: 0 | L170: 0 | M170: 0 | N170: 0 | O170: 0 | P170: 0 | Q170: 0 | R170: 0 | S170: 0 | T170: 0 | U170: 0 | V170: 0 | W170: 0 | X170: 0 | Y170: 0 | Z170: 0 | AA170: 0 | AB170: 0 | AC170: 0 | AD170: 0 | AE170: 0 | AF170: 0 | AG170: 0 | AH170: 0 | AI170: 0 | AJ170: 0 | AK170: 0 | AM170: =AVERAGE(C170:F170) -> 0 | AN170: =STDEV(C170:F170) -> 0 | AO170: =AVERAGE(U170:X170) -> 0 | AP170: =STDEV(U170:X170) -> 0 | AQ170: =AVERAGE(N170:Q170) -> 0 | AR170: =STDEV(N170:Q170) -> 0
A171: ENSG00000165029 | B171: ABCA1 | C171: 13 | D171: 14 | E171: 9 | F171: 10 | G171: 4 | H171: 3 | I171: 5 | J171: 5 | K171: 4 | L171: 4 | M171: 3 | N171: 3 | O171: 2 | P171: 2 | Q171: 3 | R171: 5 | S171: 4 | T171: 3 | U171: 11 | V171: 11 | W171: 10 | X171: 10 | Y171: 3 | Z171: 3 | AA171: 3 | AB171: 10 | AC171: 9 | AD171: 11 | AE171: 11 | AF171: 9 | AG171: 10 | AH171: 10 | AI171: 9 | AJ171: 8 | AK171: 10 | AM171: =AVERAGE(C171:F171) -> 12 | AN171: =STDEV(C171:F171) -> 2 | AO171: =AVERAGE(U171:X171) -> 10 | AP171: =STDEV(U171:X171) -> 0 | AQ171: =AVERAGE(N171:Q171) -> 2 | AR171: =STDEV(N171:Q171) -> 0
A172: ENSG00000154263 | B172: ABCA10 | C172: 0 | D172: 0 | E172: 0 | F172: 0 | G172: 0 | H172: 0 | I172: 0 | J172: 0 | K172: 0 | L172: 0 | M172: 0 | N172: 0 | O172: 0 | P172: 0 | Q172: 0 | R172: 0 | S172: 0 | T172: 0 | U172: 0 | V172: 1 | W172: 1 | X172: 1 | Y172: 0 | Z172: 0 | AA172: 0 | AB172: 0 | AC172: 0 | AD172: 0 | AE172: 0 | AF172: 1 | AG172: 1 | AH172: 1 | AI172: 1 | AJ172: 1 | AK172: 1 | AM172: =AVERAGE(C172:F172) -> 0 | AN172: =STDEV(C172:F172) -> 0 | AO172: =AVERAGE(U172:X172) -> 1 | AP172: =STDEV(U172:X172) -> 0 | AQ172: =AVERAGE(N172:Q172) -> 0 | AR172: =STDEV(N172:Q172) -> 0
A173: ENSG00000251595 | B173: ABCA11P | C173: 5 | D173: 3 | E173: 4 | F173: 3 | G173: 3 | H173: 4 | I173: 3 | J173: 6 | K173: 6 | L173: 5 | M173: 4 | N173: 3 | O173: 4 | P173: 3 | Q173: 3 | R173: 5 | S173: 4 | T173: 4 | U173: 4 | V173: 5 | W173: 4 | X173: 5 | Y173: 7 | Z173: 8 | AA173: 7 | AB173: 5 | AC173: 7 | AD173: 7 | AE173: 8 | AF173: 6 | AG173: 7 | AH173: 6 | AI173: 6 | AJ173: 6 | AK173: 5 | AM173: =AVERAGE(C173:F173) -> 4 | AN173: =STDEV(C173:F173) -> 1 | AO173: =AVERAGE(U173:X173) -> 5 | AP173: =STDEV(U173:X173) -> 0 | AQ173: =AVERAGE(N173:Q173) -> 3 | AR173: =STDEV(N173:Q173) -> 0
A174: ENSG00000144452 | B174: ABCA12 | C174: 0 | D174: 0 | E174: 0 | F174: 0 | G174: 0 | H174: 0 | I174: 0 | J174: 0 | K174: 0 | L174: 0 | M174: 0 | N174: 0 | O174: 0 | P174: 0 | Q174: 0 | R174: 0 | S174: 0 | T174: 0 | U174: 0 | V174: 0 | W174: 0 | X174: 0 | Y174: 1 | Z174: 1 | AA174: 1 | AB174: 1 | AC174: 1 | AD174: 1 | AE174: 1 | AF174: 3 | AG174: 3 | AH174: 3 | AI174: 2 | AJ174: 2 | AK174: 2 | AM174: =AVERAGE(C174:F174) -> 0 | AN174: =STDEV(C174:F174) -> 0 | AO174: =AVERAGE(U174:X174) -> 0 | AP174: =STDEV(U174:X174) -> 0 | AQ174: =AVERAGE(N174:Q174) -> 0 | AR174: =STDEV(N174:Q174) -> 0
A175: ENSG00000179869 | B175: ABCA13 | C175: 0 | D175: 1 | E175: 0 | F175: 0 | G175: 0 | H175: 0 | I175: 0 | J175: 0 | K175: 0 | L175: 0 | M175: 0 | N175: 0 | O175: 0 | P175: 0 | Q175: 0 | R175: 0 | S175: 0 | T175: 0 | U175: 0 | V175: 0 | W175: 0 | X175: 0 | Y175: 0 | Z175: 0 | AA175: 0 | AB175: 0 | AC175: 1 | AD175: 0 | AE175: 0 | AF175: 0 | AG175: 0 | AH175: 0 | AI175: 0 | AJ175: 1 | AK175: 0 | AM175: =AVERAGE(C175:F175) -> 0 | AN175: =STDEV(C175:F175) -> 0 | AO175: =AVERAGE(U175:X175) -> 0 | AP175: =STDEV(U175:X175) -> 0 | AQ175: =AVERAGE(N175:Q175) -> 0 | AR175: =STDEV(N175:Q175) -> 0
A176: ENSG00000238098 | B176: ABCA17P | C176: 0 | D176: 0 | E176: 0 | F176: 0 | G176: 0 | H176: 0 | I176: 0 | J176: 0 | K176: 0 | L176: 0 | M176: 0 | N176: 0 | O176: 0 | P176: 0 | Q176: 0 | R176: 0 | S176: 0 | T176: 0 | U176: 0 | V176: 0 | W176: 0 | X176: 0 | Y176: 0 | Z176: 0 | AA176: 0 | AB176: 0 | AC176: 0 | AD176: 0 | AE176: 0 | AF176: 0 | AG176: 0 | AH176: 0 | AI176: 0 | AJ176: 0 | AK176: 1 | AM176: =AVERAGE(C176:F176) -> 0 | AN176: =STDEV(C176:F176) -> 0 | AO176: =AVERAGE(U176:X176) -> 0 | AP176: =STDEV(U176:X176) -> 0 | AQ176: =AVERAGE(N176:Q176) -> 0 | AR176: =STDEV(N176:Q176) -> 0
A177: ENSG00000107331 | B177: ABCA2 | C177: 12 | D177: 16 | E177: 23 | F177: 16 | G177: 19 | H177: 24 | I177: 24 | J177: 16 | K177: 11 | L177: 11 | M177: 13 | N177: 8 | O177: 7 | P177: 3 | Q177: 4 | R177: 6 | S177: 6 | T177: 12 | U177: 16 | V177: 14 | W177: 18 | X177: 20 | Y177: 7 | Z177: 6 | AA177: 5 | AB177: 5 | AC177: 5 | AD177: 6 | AE177: 4 | AF177: 20 | AG177: 21 | AH177: 22 | AI177: 12 | AJ177: 17 | AK177: 14 | AM177: =AVERAGE(C177:F177) -> 17 | AN177: =STDEV(C177:F177) -> 4 | AO177: =AVERAGE(U177:X177) -> 17 | AP177: =STDEV(U177:X177) -> 3 | AQ177: =AVERAGE(N177:Q177) -> 5 | AR177: =STDEV(N177:Q177) -> 2
A178: ENSG00000167972 | B178: ABCA3 | C178: 0 | D178: 0 | E178: 1 | F178: 0 | G178: 12 | H178: 10 | I178: 13 | J178: 12 | K178: 9 | L178: 10 | M178: 9 | N178: 4 | O178: 4 | P178: 3 | Q178: 4 | R178: 4 | S178: 4 | T178: 7 | U178: 0 | V178: 0 | W178: 0 | X178: 0 | Y178: 5 | Z178: 4 | AA178: 4 | AB178: 5 | AC178: 4 | AD178: 4 | AE178: 4 | AF178: 9 | AG178: 9 | AH178: 8 | AI178: 7 | AJ178: 8 | AK178: 8 | AM178: =AVERAGE(C178:F178) -> 0 | AN178: =STDEV(C178:F178) -> 0 | AO178: =AVERAGE(U178:X178) -> 0 | AP178: =STDEV(U178:X178) -> 0 | AQ178: =AVERAGE(N178:Q178) -> 4 | AR178: =STDEV(N178:Q178) -> 1
A179: ENSG00000198691 | B179: ABCA4 | C179: 0 | D179: 0 | E179: 0 | F179: 0 | G179: 0 | H179: 0 | I179: 0 | J179: 0 | K179: 0 | L179: 0 | M179: 0 | N179: 0 | O179: 0 | P179: 0 | Q179: 0 | R179: 0 | S179: 0 | T179: 0 | U179: 0 | V179: 0 | W179: 0 | X179: 0 | Y179: 0 | Z179: 0 | AA179: 0 | AB179: 0 | AC179: 0 | AD179: 0 | AE179: 0 | AF179: 0 | AG179: 0 | AH179: 0 | AI179: 0 | AJ179: 0 | AK179: 0 | AM179: =AVERAGE(C179:F179) -> 0 | AN179: =STDEV(C179:F179) -> 0 | AO179: =AVERAGE(U179:X179) -> 0 | AP179: =STDEV(U179:X179) -> 0 | AQ179: =AVERAGE(N179:Q179) -> 0 | AR179: =STDEV(N179:Q179) -> 0
A180: ENSG00000154265 | B180: ABCA5 | C180: 5 | D180: 3 | E180: 4 | F180: 4 | G180: 1 | H180: 1 | I180: 1 | J180: 1 | K180: 1 | L180: 1 | M180: 2 | N180: 4 | O180: 3 | P180: 3 | Q180: 4 | R180: 2 | S180: 2 | T180: 3 | U180: 5 | V180: 6 | W180: 4 | X180: 4 | Y180: 2 | Z180: 2 | AA180: 2 | AB180: 2 | AC180: 2 | AD180: 2 | AE180: 3 | AF180: 6 | AG180: 7 | AH180: 6 | AI180: 6 | AJ180: 6 | AK180: 4 | AM180: =AVERAGE(C180:F180) -> 4 | AN180: =STDEV(C180:F180) -> 1 | AO180: =AVERAGE(U180:X180) -> 5 | AP180: =STDEV(U180:X180) -> 1 | AQ180: =AVERAGE(N180:Q180) -> 3 | AR180: =STDEV(N180:Q180) -> 0
A181: ENSG00000154262 | B181: ABCA6 | C181: 4 | D181: 2 | E181: 6 | F181: 1 | G181: 0 | H181: 0 | I181: 0 | J181: 0 | K181: 0 | L181: 0 | M181: 0 | N181: 0 | O181: 0 | P181: 0 | Q181: 0 | R181: 0 | S181: 0 | T181: 0 | U181: 0 | V181: 0 | W181: 0 | X181: 0 | Y181: 0 | Z181: 0 | AA181: 0 | AB181: 0 | AC181: 0 | AD181: 0 | AE181: 0 | AF181: 0 | AG181: 0 | AH181: 0 | AI181: 0 | AJ181: 0 | AK181: 0 | AM181: =AVERAGE(C181:F181) -> 3 | AN181: =STDEV(C181:F181) -> 2 | AO181: =AVERAGE(U181:X181) -> 0 | AP181: =STDEV(U181:X181) -> 0 | AQ181: =AVERAGE(N181:Q181) -> 0 | AR181: =STDEV(N181:Q181) -> 0
A182: ENSG00000064687 | B182: ABCA7 | C182: 4 | D182: 3 | E182: 4 | F182: 2 | G182: 14 | H182: 14 | I182: 17 | J182: 14 | K182: 14 | L182: 14 | M182: 14 | N182: 13 | O182: 12 | P182: 11 | Q182: 10 | R182: 8 | S182: 9 | T182: 22 | U182: 5 | V182: 3 | W182: 4 | X182: 5 | Y182: 4 | Z182: 3 | AA182: 4 | AB182: 4 | AC182: 3 | AD182: 4 | AE182: 3 | AF182: 17 | AG182: 18 | AH182: 16 | AI182: 7 | AJ182: 9 | AK182: 9 | AM182: =AVERAGE(C182:F182) -> 3 | AN182: =STDEV(C182:F182) -> 1 | AO182: =AVERAGE(U182:X182) -> 4 | AP182: =STDEV(U182:X182) -> 1 | AQ182: =AVERAGE(N182:Q182) -> 11 | AR182: =STDEV(N182:Q182) -> 1
A183: ENSG00000141338 | B183: ABCA8 | C183: 5 | D183: 3 | E183: 2 | F183: 1 | G183: 0 | H183: 0 | I183: 0 | J183: 0 | K183: 0 | L183: 0 | M183: 0 | N183: 0 | O183: 0 | P183: 0 | Q183: 0 | R183: 0 | S183: 0 | T183: 0 | U183: 3 | V183: 2 | W183: 2 | X183: 2 | Y183: 0 | Z183: 0 | AA183: 0 | AB183: 0 | AC183: 0 | AD183: 0 | AE183: 0 | AF183: 0 | AG183: 0 | AH183: 0 | AI183: 0 | AJ183: 0 | AK183: 0 | AM183: =AVERAGE(C183:F183) -> 3 | AN183: =STDEV(C183:F183) -> 2 | AO183: =AVERAGE(U183:X183) -> 2 | AP183: =STDEV(U183:X183) -> 0 | AQ183: =AVERAGE(N183:Q183) -> 0 | AR183: =STDEV(N183:Q183) -> 0
A184: ENSG00000154258 | B184: ABCA9 | C184: 1 | D184: 0 | E184: 2 | F184: 0 | G184: 0 | H184: 0 | I184: 0 | J184: 0 | K184: 0 | L184: 0 | M184: 0 | N184: 0 | O184: 0 | P184: 0 | Q184: 0 | R184: 0 | S184: 0 | T184: 0 | U184: 0 | V184: 0 | W184: 0 | X184: 0 | Y184: 0 | Z184: 0 | AA184: 0 | AB184: 0 | AC184: 0 | AD184: 0 | AE184: 0 | AF184: 1 | AG184: 0 | AH184: 0 | AI184: 0 | AJ184: 0 | AK184: 0 | AM184: =AVERAGE(C184:F184) -> 1 | AN184: =STDEV(C184:F184) -> 1 | AO184: =AVERAGE(U184:X184) -> 0 | AP184: =STDEV(U184:X184) -> 0 | AQ184: =AVERAGE(N184:Q184) -> 0 | AR184: =STDEV(N184:Q184) -> 0
A185: ENSG00000231749 | B185: ABCA9-AS1 | C185: 0 | D185: 0 | E185: 0 | F185: 0 | G185: 2 | H185: 0 | I185: 0 | J185: 1 | K185: 1 | L185: 1 | M185: 1 | N185: 0 | O185: 0 | P185: 0 | Q185: 0 | R185: 0 | S185: 0 | T185: 0 | U185: 0 | V185: 0 | W185: 0 | X185: 0 | Y185: 0 | Z185: 0 | AA185: 0 | AB185: 0 | AC185: 0 | AD185: 0 | AE185: 0 | AF185: 0 | AG185: 0 | AH185: 0 | AI185: 0 | AJ185: 0 | AK185: 0 | AM185: =AVERAGE(C185:F185) -> 0 | AN185: =STDEV(C185:F185) -> 0 | AO185: =AVERAGE(U185:X185) -> 0 | AP185: =STDEV(U185:X185) -> 0 | AQ185: =AVERAGE(N185:Q185) -> 0 | AR185: =STDEV(N185:Q185) -> 0
A186: ENSG00000085563 | B186: ABCB1 | C186: 0 | D186: 0 | E186: 0 | F186: 0 | G186: 0 | H186: 0 | I186: 0 | J186: 0 | K186: 0 | L186: 0 | M186: 0 | N186: 1 | O186: 0 | P186: 0 | Q186: 0 | R186: 0 | S186: 1 | T186: 1 | U186: 0 | V186: 0 | W186: 0 | X186: 0 | Y186: 1 | Z186: 1 | AA186: 1 | AB186: 1 | AC186: 1 | AD186: 1 | AE186: 0 | AF186: 1 | AG186: 2 | AH186: 0 | AI186: 1 | AJ186: 1 | AK186: 1 | AM186: =AVERAGE(C186:F186) -> 0 | AN186: =STDEV(C186:F186) -> 0 | AO186: =AVERAGE(U186:X186) -> 0 | AP186: =STDEV(U186:X186) -> 0 | AQ186: =AVERAGE(N186:Q186) -> 0 | AR186: =STDEV(N186:Q186) -> 0
A187: ENSG00000135776 | B187: ABCB10 | C187: 12 | D187: 12 | E187: 8 | F187: 10 | G187: 6 | H187: 5 | I187: 6 | J187: 9 | K187: 8 | L187: 10 | M187: 8 | N187: 8 | O187: 8 | P187: 8 | Q187: 7 | R187: 9 | S187: 8 | T187: 9 | U187: 7 | V187: 8 | W187: 8 | X187: 7 | Y187: 14 | Z187: 13 | AA187: 13 | AB187: 14 | AC187: 12 | AD187: 14 | AE187: 15 | AF187: 12 | AG187: 11 | AH187: 13 | AI187: 15 | AJ187: 14 | AK187: 16 | AM187: =AVERAGE(C187:F187) -> 10 | AN187: =STDEV(C187:F187) -> 2 | AO187: =AVERAGE(U187:X187) -> 7 | AP187: =STDEV(U187:X187) -> 0 | AQ187: =AVERAGE(N187:Q187) -> 8 | AR187: =STDEV(N187:Q187) -> 0
A188: ENSG00000259689 | B188: ABCB10P1 | C188: 0 | D188: 0 | E188: 0 | F188: 0 | G188: 0 | H188: 0 | I188: 0 | J188: 1 | K188: 1 | L188: 1 | M188: 1 | N188: 1 | O188: 1 | P188: 1 | Q188: 1 | R188: 1 | S188: 0 | T188: 1 | U188: 0 | V188: 0 | W188: 0 | X188: 0 | Y188: 0 | Z188: 0 | AA188: 0 | AB188: 0 | AC188: 0 | AD188: 0 | AE188: 0 | AF188: 0 | AG188: 0 | AH188: 0 | AI188: 0 | AJ188: 0 | AK188: 0 | AM188: =AVERAGE(C188:F188) -> 0 | AN188: =STDEV(C188:F188) -> 0 | AO188: =AVERAGE(U188:X188) -> 0 | AP188: =STDEV(U188:X188) -> 0 | AQ188: =AVERAGE(N188:Q188) -> 1 | AR188: =STDEV(N188:Q188) -> 0
A189: ENSG00000261524 | B189: ABCB10P3 | C189: 0 | D189: 0 | E189: 0 | F189: 0 | G189: 0 | H189: 0 | I189: 0 | J189: 0 | K189: 0 | L189: 0 | M189: 0 | N189: 0 | O189: 0 | P189: 1 | Q189: 0 | R189: 0 | S189: 0 | T189: 0 | U189: 0 | V189: 0 | W189: 0 | X189: 0 | Y189: 0 | Z189: 0 | AA189: 0 | AB189: 0 | AC189: 0 | AD189: 0 | AE189: 0 | AF189: 0 | AG189: 0 | AH189: 0 | AI189: 0 | AJ189: 0 | AK189: 0 | AM189: =AVERAGE(C189:F189) -> 0 | AN189: =STDEV(C189:F189) -> 0 | AO189: =AVERAGE(U189:X189) -> 0 | AP189: =STDEV(U189:X189) -> 0 | AQ189: =AVERAGE(N189:Q189) -> 0 | AR189: =STDEV(N189:Q189) -> 0
A190: ENSG00000260053 | B190: ABCB10P4 | C190: 0 | D190: 0 | E190: 0 | F190: 0 | G190: 0 | H190: 0 | I190: 0 | J190: 1 | K190: 0 | L190: 0 | M190: 1 | N190: 0 | O190: 0 | P190: 0 | Q190: 0 | R190: 0 | S190: 0 | T190: 0 | U190: 0 | V190: 0 | W190: 0 | X190: 0 | Y190: 0 | Z190: 0 | AA190: 0 | AB190: 0 | AC190: 0 | AD190: 0 | AE190: 0 | AF190: 0 | AG190: 0 | AH190: 0 | AI190: 0 | AJ190: 0 | AK190: 0 | AM190: =AVERAGE(C190:F190) -> 0 | AN190: =STDEV(C190:F190) -> 0 | AO190: =AVERAGE(U190:X190) -> 0 | AP190: =STDEV(U190:X190) -> 0 | AQ190: =AVERAGE(N190:Q190) -> 0 | AR190: =STDEV(N190:Q190) -> 0
A191: ENSG00000073734 | B191: ABCB11 | C191: 0 | D191: 0 | E191: 0 | F191: 0 | G191: 0 | H191: 0 | I191: 0 | J191: 0 | K191: 0 | L191: 0 | M191: 0 | N191: 0 | O191: 0 | P191: 0 | Q191: 0 | R191: 0 | S191: 0 | T191: 0 | U191: 0 | V191: 0 | W191: 0 | X191: 0 | Y191: 0 | Z191: 0 | AA191: 0 | AB191: 0 | AC191: 0 | AD191: 0 | AE191: 0 | AF191: 0 | AG191: 0 | AH191: 0 | AI191: 0 | AJ191: 0 | AK191: 0 | AM191: =AVERAGE(C191:F191) -> 0 | AN191: =STDEV(C191:F191) -> 0 | AO191: =AVERAGE(U191:X191) -> 0 | AP191: =STDEV(U191:X191) -> 0 | AQ191: =AVERAGE(N191:Q191) -> 0 | AR191: =STDEV(N191:Q191) -> 0
A192: ENSG00000005471 | B192: ABCB4 | C192: 0 | D192: 0 | E192: 0 | F192: 0 | G192: 1 | H192: 1 | I192: 2 | J192: 2 | K192: 2 | L192: 2 | M192: 1 | N192: 2 | O192: 1 | P192: 1 | Q192: 1 | R192: 0 | S192: 1 | T192: 2 | U192: 0 | V192: 0 | W192: 0 | X192: 0 | Y192: 4 | Z192: 4 | AA192: 4 | AB192: 5 | AC192: 4 | AD192: 5 | AE192: 5 | AF192: 4 | AG192: 5 | AH192: 5 | AI192: 4 | AJ192: 3 | AK192: 4 | AM192: =AVERAGE(C192:F192) -> 0 | AN192: =STDEV(C192:F192) -> 0 | AO192: =AVERAGE(U192:X192) -> 0 | AP192: =STDEV(U192:X192) -> 0 | AQ192: =AVERAGE(N192:Q192) -> 1 | AR192: =STDEV(N192:Q192) -> 1
A193: ENSG00000004846 | B193: ABCB5 | C193: 0 | D193: 0 | E193: 0 | F193: 0 | G193: 0 | H193: 0 | I193: 0 | J193: 0 | K193: 0 | L193: 0 | M193: 0 | N193: 0 | O193: 0 | P193: 0 | Q193: 0 | R193: 0 | S193: 0 | T193: 0 | U193: 0 | V193: 0 | W193: 0 | X193: 0 | Y193: 0 | Z193: 0 | AA193: 0 | AB193: 0 | AC193: 0 | AD193: 0 | AE193: 0 | AF193: 0 | AG193: 0 | AH193: 0 | AI193: 0 | AJ193: 0 | AK193: 0 | AM193: =AVERAGE(C193:F193) -> 0 | AN193: =STDEV(C193:F193) -> 0 | AO193: =AVERAGE(U193:X193) -> 0 | AP193: =STDEV(U193:X193) -> 0 | AQ193: =AVERAGE(N193:Q193) -> 0 | AR193: =STDEV(N193:Q193) -> 0
A194: ENSG00000115657 | B194: ABCB6 | C194: 19 | D194: 16 | E194: 22 | F194: 15 | G194: 27 | H194: 32 | I194: 36 | J194: 31 | K194: 33 | L194: 36 | M194: 31 | N194: 31 | O194: 30 | P194: 27 | Q194: 27 | R194: 31 | S194: 28 | T194: 34 | U194: 24 | V194: 24 | W194: 25 | X194: 24 | Y194: 10 | Z194: 12 | AA194: 12 | AB194: 14 | AC194: 13 | AD194: 12 | AE194: 15 | AF194: 17 | AG194: 18 | AH194: 18 | AI194: 16 | AJ194: 14 | AK194: 16 | AM194: =AVERAGE(C194:F194) -> 18 | AN194: =STDEV(C194:F194) -> 3 | AO194: =AVERAGE(U194:X194) -> 25 | AP194: =STDEV(U194:X194) -> 1 | AQ194: =AVERAGE(N194:Q194) -> 29 | AR194: =STDEV(N194:Q194) -> 2
A195: ENSG00000131269 | B195: ABCB7 | C195: 13 | D195: 13 | E195: 14 | F195: 13 | G195: 37 | H195: 27 | I195: 33 | J195: 35 | K195: 32 | L195: 33 | M195: 32 | N195: 30 | O195: 29 | P195: 29 | Q195: 29 | R195: 25 | S195: 29 | T195: 36 | U195: 13 | V195: 11 | W195: 12 | X195: 11 | Y195: 15 | Z195: 13 | AA195: 14 | AB195: 14 | AC195: 17 | AD195: 18 | AE195: 19 | AF195: 10 | AG195: 10 | AH195: 11 | AI195: 11 | AJ195: 10 | AK195: 11 | AM195: =AVERAGE(C195:F195) -> 13 | AN195: =STDEV(C195:F195) -> 0 | AO195: =AVERAGE(U195:X195) -> 12 | AP195: =STDEV(U195:X195) -> 1 | AQ195: =AVERAGE(N195:Q195) -> 29 | AR195: =STDEV(N195:Q195) -> 0
A196: ENSG00000197150 | B196: ABCB8 | C196: 26 | D196: 27 | E196: 28 | F196: 30 | G196: 13 | H196: 10 | I196: 15 | J196: 12 | K196: 13 | L196: 14 | M196: 13 | N196: 15 | O196: 13 | P196: 13 | Q196: 13 | R196: 9 | S196: 11 | T196: 14 | U196: 32 | V196: 34 | W196: 32 | X196: 40 | Y196: 28 | Z196: 29 | AA196: 33 | AB196: 28 | AC196: 23 | AD196: 25 | AE196: 24 | AF196: 43 | AG196: 43 | AH196: 39 | AI196: 19 | AJ196: 29 | AK196: 31 | AM196: =AVERAGE(C196:F196) -> 28 | AN196: =STDEV(C196:F196) -> 2 | AO196: =AVERAGE(U196:X196) -> 35 | AP196: =STDEV(U196:X196) -> 4 | AQ196: =AVERAGE(N196:Q196) -> 13 | AR196: =STDEV(N196:Q196) -> 1
A197: ENSG00000150967 | B197: ABCB9 | C197: 5 | D197: 5 | E197: 4 | F197: 5 | G197: 2 | H197: 1 | I197: 1 | J197: 2 | K197: 2 | L197: 2 | M197: 2 | N197: 2 | O197: 2 | P197: 2 | Q197: 3 | R197: 2 | S197: 2 | T197: 3 | U197: 6 | V197: 6 | W197: 7 | X197: 7 | Y197: 3 | Z197: 3 | AA197: 3 | AB197: 4 | AC197: 3 | AD197: 3 | AE197: 3 | AF197: 5 | AG197: 4 | AH197: 5 | AI197: 2 | AJ197: 5 | AK197: 5 | AM197: =AVERAGE(C197:F197) -> 5 | AN197: =STDEV(C197:F197) -> 0 | AO197: =AVERAGE(U197:X197) -> 6 | AP197: =STDEV(U197:X197) -> 0 | AQ197: =AVERAGE(N197:Q197) -> 2 | AR197: =STDEV(N197:Q197) -> 0
A198: ENSG00000103222 | B198: ABCC1 | C198: 25 | D198: 25 | E198: 28 | F198: 24 | G198: 39 | H198: 33 | I198: 42 | J198: 38 | K198: 38 | L198: 38 | M198: 36 | N198: 32 | O198: 31 | P198: 28 | Q198: 27 | R198: 27 | S198: 28 | T198: 39 | U198: 37 | V198: 35 | W198: 37 | X198: 36 | Y198: 11 | Z198: 12 | AA198: 12 | AB198: 13 | AC198: 13 | AD198: 13 | AE198: 13 | AF198: 17 | AG198: 21 | AH198: 16 | AI198: 13 | AJ198: 13 | AK198: 15 | AM198: =AVERAGE(C198:F198) -> 25 | AN198: =STDEV(C198:F198) -> 2 | AO198: =AVERAGE(U198:X198) -> 36 | AP198: =STDEV(U198:X198) -> 1 | AQ198: =AVERAGE(N198:Q198) -> 29 | AR198: =STDEV(N198:Q198) -> 2
A199: ENSG00000124574 | B199: ABCC10 | C199: 16 | D199: 13 | E199: 20 | F199: 21 | G199: 11 | H199: 11 | I199: 14 | J199: 10 | K199: 9 | L199: 11 | M199: 8 | N199: 16 | O199: 13 | P199: 11 | Q199: 15 | R199: 13 | S199: 12 | T199: 12 | U199: 24 | V199: 22 | W199: 26 | X199: 25 | Y199: 20 | Z199: 17 | AA199: 17 | AB199: 19 | AC199: 17 | AD199: 23 | AE199: 20 | AF199: 39 | AG199: 36 | AH199: 34 | AI199: 29 | AJ199: 30 | AK199: 37 | AM199: =AVERAGE(C199:F199) -> 18 | AN199: =STDEV(C199:F199) -> 4 | AO199: =AVERAGE(U199:X199) -> 24 | AP199: =STDEV(U199:X199) -> 2 | AQ199: =AVERAGE(N199:Q199) -> 14 | AR199: =STDEV(N199:Q199) -> 2
A200: ENSG00000121270 | B200: ABCC11 | C200: 0 | D200: 0 | E200: 0 | F200: 0 | G200: 0 | H200: 0 | I200: 0 | J200: 0 | K200: 0 | L200: 0 | M200: 0 | N200: 0 | O200: 0 | P200: 0 | Q200: 0 | R200: 0 | S200: 0 | T200: 0 | U200: 0 | V200: 0 | W200: 0 | X200: 0 | Y200: 0 | Z200: 0 | AA200: 0 | AB200: 0 | AC200: 0 | AD200: 0 | AE200: 0 | AF200: 0 | AG200: 0 | AH200: 0 | AI200: 0 | AJ200: 0 | AK200: 0 | AM200: =AVERAGE(C200:F200) -> 0 | AN200: =STDEV(C200:F200) -> 0 | AO200: =AVERAGE(U200:X200) -> 0 | AP200: =STDEV(U200:X200) -> 0 | AQ200: =AVERAGE(N200:Q200) -> 0 | AR200: =STDEV(N200:Q200) -> 0
... 2050 more rows
